Body Name,Body,Service Label,Service Code,CIPFA Detailed Expenditure Type,CIPFA Detailed Expenditure Code,Date,Transaction Number,Net Amount,Supplier Name
Nottinghamshire County Council,1111/1001,Surplus or Deficit from Trading Undertak,TRADING,Employee Related,AAA,01/08/2017,05-10001,537.87,A & T Active Recruitment Ltd
Nottinghamshire County Council,1111/1001,Surplus or Deficit from Trading Undertak,TRADING,Supplies & Services,DDA,04/08/2017,05-10001,665.2,Staedtler Uk Ltd
Nottinghamshire County Council,1111/1001,Surplus or Deficit from Trading Undertak,TRADING,Supplies & Services,DDA,04/08/2017,05-10001,712.64,Bostik Ltd
Nottinghamshire County Council,1111/1001,Surplus or Deficit from Trading Undertak,TRADING,Supplies & Services,DAA,04/08/2017,05-10001,"1,710.00",Office Innovations
Nottinghamshire County Council,1111/1001,Surplus or Deficit from Trading Undertak,TRADING,Supplies & Services,DAA,04/08/2017,05-10001,980,Office Innovations
Nottinghamshire County Council,1111/1001,Surplus or Deficit from Trading Undertak,TRADING,Supplies & Services,DDA,04/08/2017,05-10001,"2,441.98",Higher Kings Mill Ltd
Nottinghamshire County Council,1111/1001,Surplus or Deficit from Trading Undertak,TRADING,Supplies & Services,DAA,04/08/2017,05-10001,615.78,Metroplan Ltd
Nottinghamshire County Council,1111/1001,Surplus or Deficit from Trading Undertak,TRADING,Premises Related,BJA,04/08/2017,05-10001,"6,799.84",Newell Rubbermaid Uk Ltd
Nottinghamshire County Council,1111/1001,Surplus or Deficit from Trading Undertak,TRADING,Supplies & Services,DDA,08/08/2017,05-10001,"4,007.13",Staedtler Uk Ltd
Nottinghamshire County Council,1111/1001,Surplus or Deficit from Trading Undertak,TRADING,Supplies & Services,DAA,08/08/2017,05-10001,645.06,Profile Education Ltd
Nottinghamshire County Council,1111/1001,Surplus or Deficit from Trading Undertak,TRADING,Supplies & Services,DAA,08/08/2017,05-10001,"1,216.04",Profile Education Ltd
Nottinghamshire County Council,1111/1001,Surplus or Deficit from Trading Undertak,TRADING,Premises Related,BJA,08/08/2017,05-10001,"1,734.04",Scot Young Research Ltd
Nottinghamshire County Council,1111/1001,Surplus or Deficit from Trading Undertak,TRADING,Supplies & Services,DAA,08/08/2017,05-10001,"1,880.40",Brian Clegg (Educational Products)
Nottinghamshire County Council,1111/1001,Surplus or Deficit from Trading Undertak,TRADING,Supplies & Services,DFA,08/08/2017,05-10001,"1,042.16",Royal Mail
Nottinghamshire County Council,1111/1001,Surplus or Deficit from Trading Undertak,TRADING,Supplies & Services,DAA,08/08/2017,05-10001,"49,561.50",Office Innovations
Nottinghamshire County Council,1111/1001,Surplus or Deficit from Trading Undertak,TRADING,Supplies & Services,DAA,08/08/2017,05-10001,"1,203.80",Metroplan Ltd
Nottinghamshire County Council,1111/1001,Surplus or Deficit from Trading Undertak,TRADING,Supplies & Services,DAA,08/08/2017,05-10001,594.72,Eastpoint
Nottinghamshire County Council,1111/1001,Surplus or Deficit from Trading Undertak,TRADING,Supplies & Services,DAA,08/08/2017,05-10001,728.6,Eastpoint
Nottinghamshire County Council,1111/1001,Surplus or Deficit from Trading Undertak,TRADING,Supplies & Services,DAA,08/08/2017,05-10001,"2,698.04",Eastpoint
Nottinghamshire County Council,1111/1001,Surplus or Deficit from Trading Undertak,TRADING,Supplies & Services,DAA,08/08/2017,05-10001,"1,116.59",Eastpoint
Nottinghamshire County Council,1111/1001,Surplus or Deficit from Trading Undertak,TRADING,Employee Related,AAA,08/08/2017,05-10001,981.84,A & T Active Recruitment Ltd
Nottinghamshire County Council,1111/1001,Surplus or Deficit from Trading Undertak,TRADING,Supplies & Services,DFA,08/08/2017,05-10001,"1,122.00",Macfarlane Packaging Group Ltd
Nottinghamshire County Council,1111/1001,Surplus or Deficit from Trading Undertak,TRADING,Premises Related,BJA,08/08/2017,05-10001,"1,568.56",Cromwell Polythene Ltd
Nottinghamshire County Council,1111/1001,Surplus or Deficit from Trading Undertak,TRADING,Transport Related,CAA,08/08/2017,05-10001,"1,308.12",Mge Partners
Nottinghamshire County Council,1111/1001,Surplus or Deficit from Trading Undertak,TRADING,Supplies & Services,DAA,08/08/2017,05-10001,528,Willowbrook Education Ltd
Nottinghamshire County Council,1111/1001,Surplus or Deficit from Trading Undertak,TRADING,Premises Related,BJA,08/08/2017,05-10001,847.61,Selden Research Ltd
Nottinghamshire County Council,1111/1001,Surplus or Deficit from Trading Undertak,TRADING,Premises Related,BJA,10/08/2017,05-10001,"1,860.16",Robert Scott & Sons Ltd
Nottinghamshire County Council,1111/1001,Surplus or Deficit from Trading Undertak,TRADING,Supplies & Services,DAA,10/08/2017,05-10001,523.15,Flipfile Ltd
Nottinghamshire County Council,1111/1001,Surplus or Deficit from Trading Undertak,TRADING,Supplies & Services,DDA,10/08/2017,05-10001,"1,137.60",Antalis Ltd
Nottinghamshire County Council,1111/1001,Surplus or Deficit from Trading Undertak,TRADING,Supplies & Services,DDA,10/08/2017,05-10001,"1,335.00",R H Ritchings Ltd
Nottinghamshire County Council,1111/1001,Surplus or Deficit from Trading Undertak,TRADING,Supplies & Services,DAA,10/08/2017,05-10001,665.04,Gratnells Ltd
Nottinghamshire County Council,1111/1001,Surplus or Deficit from Trading Undertak,TRADING,Supplies & Services,DDA,10/08/2017,05-10001,977.87,Staedtler Uk Ltd
Nottinghamshire County Council,1111/1001,Surplus or Deficit from Trading Undertak,TRADING,Supplies & Services,DDA,10/08/2017,05-10001,"2,070.50",Staedtler Uk Ltd
Nottinghamshire County Council,1111/1001,Surplus or Deficit from Trading Undertak,TRADING,Supplies & Services,DDA,10/08/2017,05-10001,"2,759.09",Bic Uk Ltd
Nottinghamshire County Council,1111/1001,Surplus or Deficit from Trading Undertak,TRADING,Supplies & Services,DDA,10/08/2017,05-10001,679.63,Bic Uk Ltd
Nottinghamshire County Council,1111/1001,Surplus or Deficit from Trading Undertak,TRADING,Supplies & Services,DAA,10/08/2017,05-10001,"1,413.92",Wv Howe Ltd
Nottinghamshire County Council,1111/1001,Surplus or Deficit from Trading Undertak,TRADING,Supplies & Services,DDA,10/08/2017,05-10001,"2,869.12",Edding Uk Ltd
Nottinghamshire County Council,1111/1001,Surplus or Deficit from Trading Undertak,TRADING,Supplies & Services,DDA,10/08/2017,05-10001,700.09,Evans Vanodine International Ltd
Nottinghamshire County Council,1111/1001,Surplus or Deficit from Trading Undertak,TRADING,Supplies & Services,DDA,10/08/2017,05-10001,"1,841.74",Banner Group Limited
Nottinghamshire County Council,1111/1001,Surplus or Deficit from Trading Undertak,TRADING,Premises Related,BJA,10/08/2017,05-10001,593.72,Freudenberg Household Products Lp
Nottinghamshire County Council,1111/1001,Surplus or Deficit from Trading Undertak,TRADING,Premises Related,BJA,10/08/2017,05-10001,"1,101.50",Newell Rubbermaid Uk Ltd
Nottinghamshire County Council,1111/1001,Surplus or Deficit from Trading Undertak,TRADING,Premises Related,BJA,10/08/2017,05-10001,715.44,Newell Rubbermaid Uk Ltd
Nottinghamshire County Council,1111/1001,Surplus or Deficit from Trading Undertak,TRADING,Supplies & Services,DDA,10/08/2017,05-10001,661.3,Slater Harrison & Company Ltd
Nottinghamshire County Council,1111/1001,Surplus or Deficit from Trading Undertak,TRADING,Supplies & Services,DAA,10/08/2017,05-10001,522.4,Eastpoint
Nottinghamshire County Council,1111/1001,Surplus or Deficit from Trading Undertak,TRADING,Premises Related,BJA,10/08/2017,05-10001,847.64,Bunzl Retail & Healthcare Supp Ltd
Nottinghamshire County Council,1111/1001,Surplus or Deficit from Trading Undertak,TRADING,Premises Related,BJA,10/08/2017,05-10001,"3,241.52",Bunzl Cleaning & Hygiene Supplies
Nottinghamshire County Council,1111/1001,Surplus or Deficit from Trading Undertak,TRADING,Supplies & Services,DAA,10/08/2017,05-10001,540,Hardy & Hanson Ltd
Nottinghamshire County Council,1111/1001,Surplus or Deficit from Trading Undertak,TRADING,Supplies & Services,DDA,10/08/2017,05-10001,513.9,Plastoreg Smidt Gmbh
Nottinghamshire County Council,1111/1001,Surplus or Deficit from Trading Undertak,TRADING,Supplies & Services,DAA,10/08/2017,05-10001,"1,340.00",Kent County Supplies
Nottinghamshire County Council,1111/1001,Surplus or Deficit from Trading Undertak,TRADING,Supplies & Services,DDA,11/08/2017,05-10001,518.64,Helix Trading Ltd
Nottinghamshire County Council,1111/1001,Surplus or Deficit from Trading Undertak,TRADING,Supplies & Services,DAA,11/08/2017,05-10001,"2,682.70",Profile Education Ltd
Nottinghamshire County Council,1111/1001,Surplus or Deficit from Trading Undertak,TRADING,Premises Related,BJA,11/08/2017,05-10001,808.96,Denis Rawlins Ltd
Nottinghamshire County Council,1111/1001,Surplus or Deficit from Trading Undertak,TRADING,Supplies & Services,DDA,11/08/2017,05-10001,"4,270.20",Hamelin Brands Ltd
Nottinghamshire County Council,1111/1001,Surplus or Deficit from Trading Undertak,TRADING,Supplies & Services,DAA,11/08/2017,05-10001,"1,340.48",Triumph Furniture Ltd
Nottinghamshire County Council,1111/1001,Surplus or Deficit from Trading Undertak,TRADING,Supplies & Services,DAA,11/08/2017,05-10001,657.5,Office Update Ltd
Nottinghamshire County Council,1111/1001,Surplus or Deficit from Trading Undertak,TRADING,Supplies & Services,DAA,11/08/2017,05-10001,"1,512.00",Metalliform Holdings Ltd
Nottinghamshire County Council,1111/1001,Surplus or Deficit from Trading Undertak,TRADING,Supplies & Services,DAA,11/08/2017,05-10001,721.44,Metalliform Holdings Ltd
Nottinghamshire County Council,1111/1001,Surplus or Deficit from Trading Undertak,TRADING,Premises Related,BJA,15/08/2017,05-10001,"1,095.15",Robert Scott & Sons Ltd
Nottinghamshire County Council,1111/1001,Surplus or Deficit from Trading Undertak,TRADING,Supplies & Services,DDA,15/08/2017,05-10001,873.6,Edding Uk Ltd
Nottinghamshire County Council,1111/1001,Surplus or Deficit from Trading Undertak,TRADING,Premises Related,BJA,15/08/2017,05-10001,"2,998.62",Henkel Ltd
Nottinghamshire County Council,1111/1001,Surplus or Deficit from Trading Undertak,TRADING,Employee Related,AAA,15/08/2017,05-10001,675,Monarch Education Furniture
Nottinghamshire County Council,1111/1001,Surplus or Deficit from Trading Undertak,TRADING,Supplies & Services,DKA,15/08/2017,05-10001,"1,419.70",Sca Hygiene Products Uk Ltd
Nottinghamshire County Council,1111/1001,Surplus or Deficit from Trading Undertak,TRADING,Supplies & Services,DKA,15/08/2017,05-10001,"3,945.75",Sca Hygiene Products Uk Ltd
Nottinghamshire County Council,1111/1001,Surplus or Deficit from Trading Undertak,TRADING,Supplies & Services,DKA,15/08/2017,05-10001,"6,946.57",Sca Hygiene Products Uk Ltd
Nottinghamshire County Council,1111/1001,Surplus or Deficit from Trading Undertak,TRADING,Supplies & Services,DAA,15/08/2017,05-10001,509.88,Bright Ideas Marketing Ltd
Nottinghamshire County Council,1111/1001,Surplus or Deficit from Trading Undertak,TRADING,Supplies & Services,DDA,15/08/2017,05-10001,"2,659.56",Hamelin Brands Ltd
Nottinghamshire County Council,1111/1001,Surplus or Deficit from Trading Undertak,TRADING,Premises Related,BJA,15/08/2017,05-10001,762.21,Creativity International Ltd
Nottinghamshire County Council,1111/1001,Surplus or Deficit from Trading Undertak,TRADING,Premises Related,BJA,15/08/2017,05-10001,"1,439.20",Creativity International Ltd
Nottinghamshire County Council,1111/1001,Surplus or Deficit from Trading Undertak,TRADING,Premises Related,BJA,15/08/2017,05-10001,620,Newell Rubbermaid Uk Ltd
Nottinghamshire County Council,1111/1001,Surplus or Deficit from Trading Undertak,TRADING,Supplies & Services,DDA,15/08/2017,05-10001,"4,824.00",Lucy Friend Paper Co
Nottinghamshire County Council,1111/1001,Surplus or Deficit from Trading Undertak,TRADING,Supplies & Services,DDA,15/08/2017,05-10001,610.6,Slater Harrison & Company Ltd
Nottinghamshire County Council,1111/1001,Surplus or Deficit from Trading Undertak,TRADING,Supplies & Services,DDA,15/08/2017,05-10001,"1,079.49",Slater Harrison & Company Ltd
Nottinghamshire County Council,1111/1001,Surplus or Deficit from Trading Undertak,TRADING,Supplies & Services,DDA,15/08/2017,05-10001,"1,477.50",Slater Harrison & Company Ltd
Nottinghamshire County Council,1111/1001,Surplus or Deficit from Trading Undertak,TRADING,Supplies & Services,DDA,15/08/2017,05-10001,"1,223.04",Polystar Plastics Ltd
Nottinghamshire County Council,1111/1001,Surplus or Deficit from Trading Undertak,TRADING,Supplies & Services,DAA,15/08/2017,05-10001,"5,030.16",Hille Educational Products Ltd
Nottinghamshire County Council,1111/1001,Surplus or Deficit from Trading Undertak,TRADING,Supplies & Services,DAA,15/08/2017,05-10001,874.08,Decree Thermo Ltd
Nottinghamshire County Council,1111/1001,Surplus or Deficit from Trading Undertak,TRADING,Supplies & Services,DFA,15/08/2017,05-10001,544.92,Heritage Envelopes
Nottinghamshire County Council,1111/1001,Surplus or Deficit from Trading Undertak,TRADING,Supplies & Services,DKA,15/08/2017,05-10001,"1,318.38",Kimberly Clark European Services Lt
Nottinghamshire County Council,1111/1001,Surplus or Deficit from Trading Undertak,TRADING,Supplies & Services,DDA,15/08/2017,05-10001,781.27,Plastoreg Smidt Gmbh
Nottinghamshire County Council,1111/1001,Surplus or Deficit from Trading Undertak,TRADING,Supplies & Services,DAA,15/08/2017,05-10001,556.08,Metalliform Holdings Ltd
Nottinghamshire County Council,1111/1001,Surplus or Deficit from Trading Undertak,TRADING,Supplies & Services,DAA,16/08/2017,05-10001,"2,326.85",Brian Clegg (Educational Products)
Nottinghamshire County Council,1111/1001,Surplus or Deficit from Trading Undertak,TRADING,Supplies & Services,DDA,18/08/2017,05-10001,"1,301.10",Allen Glenold Ltd
Nottinghamshire County Council,1111/1001,Surplus or Deficit from Trading Undertak,TRADING,Supplies & Services,DDA,18/08/2017,05-10001,"1,285.21",Allen Glenold Ltd
Nottinghamshire County Council,1111/1001,Surplus or Deficit from Trading Undertak,TRADING,Supplies & Services,DDA,18/08/2017,05-10001,"1,015.89",Hamelin Brands Ltd
Nottinghamshire County Council,1111/1001,Surplus or Deficit from Trading Undertak,TRADING,Supplies & Services,DAA,18/08/2017,05-10001,946.2,Principal Furniture
Nottinghamshire County Council,1111/1001,Surplus or Deficit from Trading Undertak,TRADING,Supplies & Services,DAA,18/08/2017,05-10001,801.52,Creative Art Products Ltd
Nottinghamshire County Council,1111/1001,Surplus or Deficit from Trading Undertak,TRADING,Premises Related,BJA,18/08/2017,05-10001,561.32,Creativity International Ltd
Nottinghamshire County Council,1111/1001,Surplus or Deficit from Trading Undertak,TRADING,Premises Related,BJA,18/08/2017,05-10001,675.71,Creativity International Ltd
Nottinghamshire County Council,1111/1001,Surplus or Deficit from Trading Undertak,TRADING,Supplies & Services,DDA,18/08/2017,05-10001,"1,660.98",Slater Harrison & Company Ltd
Nottinghamshire County Council,1111/1001,Surplus or Deficit from Trading Undertak,TRADING,Supplies & Services,DAA,18/08/2017,05-10001,817.78,Eastpoint
Nottinghamshire County Council,1111/1001,Surplus or Deficit from Trading Undertak,TRADING,Premises Related,BJA,18/08/2017,05-10001,"2,609.72",Bunzl Cleaning & Hygiene Supplies
Nottinghamshire County Council,1111/1001,Surplus or Deficit from Trading Undertak,TRADING,Supplies & Services,DAA,18/08/2017,05-10001,592.5,Hardy & Hanson Ltd
Nottinghamshire County Council,1111/1001,Surplus or Deficit from Trading Undertak,TRADING,Supplies & Services,DKA,18/08/2017,05-10001,894.48,Kimberly Clark European Services Lt
Nottinghamshire County Council,1111/1001,Surplus or Deficit from Trading Undertak,TRADING,Supplies & Services,DDA,18/08/2017,05-10001,546.08,Plastoreg Smidt Gmbh
Nottinghamshire County Council,1111/1001,Surplus or Deficit from Trading Undertak,TRADING,Supplies & Services,DAA,22/08/2017,05-10001,585,Daler Rowney Ltd
Nottinghamshire County Council,1111/1001,Surplus or Deficit from Trading Undertak,TRADING,Supplies & Services,DDA,22/08/2017,05-10001,"1,074.48",Staedtler Uk Ltd
Nottinghamshire County Council,1111/1001,Surplus or Deficit from Trading Undertak,TRADING,Supplies & Services,DDA,22/08/2017,05-10001,762.14,Grosvenor House Papers Ltd
Nottinghamshire County Council,1111/1001,Surplus or Deficit from Trading Undertak,TRADING,Premises Related,BJA,22/08/2017,05-10001,651.2,Freudenberg Household Products Lp
Nottinghamshire County Council,1111/1001,Surplus or Deficit from Trading Undertak,TRADING,Supplies & Services,DDA,22/08/2017,05-10001,"1,085.12",Hamelin Brands Ltd
Nottinghamshire County Council,1111/1001,Surplus or Deficit from Trading Undertak,TRADING,Supplies & Services,DAA,22/08/2017,05-10001,599.59,Office Innovations
Nottinghamshire County Council,1111/1001,Surplus or Deficit from Trading Undertak,TRADING,Supplies & Services,DAA,22/08/2017,05-10001,561,Combined Office Interiors Ltd
Nottinghamshire County Council,1111/1001,Surplus or Deficit from Trading Undertak,TRADING,Supplies & Services,DAA,22/08/2017,05-10001,675,Office Update Ltd
Nottinghamshire County Council,1111/1001,Surplus or Deficit from Trading Undertak,TRADING,Supplies & Services,DKA,22/08/2017,05-10001,"1,154.16",Kimberly Clark European Services Lt
Nottinghamshire County Council,1111/1001,Surplus or Deficit from Trading Undertak,TRADING,Supplies & Services,DAA,22/08/2017,05-10001,652.4,Kent County Supplies
Nottinghamshire County Council,1111/1001,Surplus or Deficit from Trading Undertak,TRADING,Premises Related,BJA,22/08/2017,05-10001,650.9,Selden Research Ltd
Nottinghamshire County Council,1111/1001,Surplus or Deficit from Trading Undertak,TRADING,Supplies & Services,DAA,22/08/2017,05-10001,"1,124.25",Willowbrook Education Ltd
Nottinghamshire County Council,1111/1001,Surplus or Deficit from Trading Undertak,TRADING,Supplies & Services,DAA,22/08/2017,05-10001,657.75,Willowbrook Education Ltd
Nottinghamshire County Council,1111/1001,Surplus or Deficit from Trading Undertak,TRADING,Supplies & Services,DAA,23/08/2017,05-10001,"1,480.08",Brian Clegg (Educational Products)
Nottinghamshire County Council,1111/1001,Surplus or Deficit from Trading Undertak,TRADING,Supplies & Services,DAA,24/08/2017,05-10001,620,Daler Rowney Ltd
Nottinghamshire County Council,1111/1001,Surplus or Deficit from Trading Undertak,TRADING,Premises Related,BJA,24/08/2017,05-10001,"1,002.20",Henkel Ltd
Nottinghamshire County Council,1111/1001,Surplus or Deficit from Trading Undertak,TRADING,Supplies & Services,DAA,24/08/2017,05-10001,658.8,Catering Supplies Wakefield Ltd
Nottinghamshire County Council,1111/1001,Surplus or Deficit from Trading Undertak,TRADING,Supplies & Services,DAA,24/08/2017,05-10001,"1,159.00",Catering Supplies Wakefield Ltd
Nottinghamshire County Council,1111/1001,Surplus or Deficit from Trading Undertak,TRADING,Supplies & Services,DAA,24/08/2017,05-10001,602.98,Catering Supplies Wakefield Ltd
Nottinghamshire County Council,1111/1001,Surplus or Deficit from Trading Undertak,TRADING,Supplies & Services,DKA,24/08/2017,05-10001,"1,643.44",Sca Hygiene Products Uk Ltd
Nottinghamshire County Council,1111/1001,Surplus or Deficit from Trading Undertak,TRADING,Supplies & Services,DKA,24/08/2017,05-10001,849.6,Sca Hygiene Products Uk Ltd
Nottinghamshire County Council,1111/1001,Surplus or Deficit from Trading Undertak,TRADING,Premises Related,BJA,24/08/2017,05-10001,594.32,Zenith Hygiene Systems Ltd
Nottinghamshire County Council,1111/1001,Surplus or Deficit from Trading Undertak,TRADING,Premises Related,BJA,24/08/2017,05-10001,505.72,Creativity International Ltd
Nottinghamshire County Council,1111/1001,Surplus or Deficit from Trading Undertak,TRADING,Premises Related,BJA,24/08/2017,05-10001,860.1,Newell Rubbermaid Uk Ltd
Nottinghamshire County Council,1111/1001,Surplus or Deficit from Trading Undertak,TRADING,Supplies & Services,DAA,24/08/2017,05-10001,732.06,Eastpoint
Nottinghamshire County Council,1111/1001,Surplus or Deficit from Trading Undertak,TRADING,Premises Related,BJA,24/08/2017,05-10001,732,Soho Consulting Ltd
Nottinghamshire County Council,1111/1001,Surplus or Deficit from Trading Undertak,TRADING,Supplies & Services,DAA,24/08/2017,05-10001,787.84,Ww (Uk) Ltd T/A Tc Group
Nottinghamshire County Council,1111/1001,Surplus or Deficit from Trading Undertak,TRADING,Supplies & Services,DAA,30/08/2017,05-10001,584.35,Commotion Ltd
Nottinghamshire County Council,1111/1001,Surplus or Deficit from Trading Undertak,TRADING,Employee Related,AAA,30/08/2017,05-10001,"1,131.00",Monarch Education Furniture
Nottinghamshire County Council,1111/1001,Surplus or Deficit from Trading Undertak,TRADING,Supplies & Services,DDA,30/08/2017,05-10001,"1,632.54",Polystar Plastics Ltd
Nottinghamshire County Council,1111/1001,Surplus or Deficit from Trading Undertak,TRADING,Supplies & Services,DAA,30/08/2017,05-10001,518.3,Eastpoint
Nottinghamshire County Council,1111/1001,Surplus or Deficit from Trading Undertak,TRADING,Premises Related,BJA,31/08/2017,05-10001,834.06,Creativity International Ltd
Nottinghamshire County Council,1111/1001,Children and Young People,CYP,Premises Related,BAA,04/08/2017,05-10250,396.89,ARC Property Services Partnership L
Nottinghamshire County Council,1111/1001,Children and Young People,CYP,Premises Related,BAA,04/08/2017,05-10254,"3,267.28",ARC Property Services Partnership L
Nottinghamshire County Council,1111/1001,Children and Young People,CYP,Premises Related,BAA,04/08/2017,05-10255,10031.96,ARC Property Services Partnership L
Nottinghamshire County Council,1111/1001,Children and Young People,CYP,Premises Related,BAA,21/08/2017,05-14743,7.42,ARC Property Services Partnership L
Nottinghamshire County Council,1111/1001,Children and Young People,CYP,Premises Related,BAA,21/08/2017,05-14746,12610.31,ARC Property Services Partnership L
Nottinghamshire County Council,1111/1001,Children and Young People,CYP,Premises Related,BAA,21/08/2017,05-14754,"4,084.35",ARC Property Services Partnership L
Nottinghamshire County Council,1111/1001,Children and Young People,CYP,Premises Related,BAA,21/08/2017,05-14762,20.51,ARC Property Services Partnership L
Nottinghamshire County Council,1111/1001,Children and Young People,CYP,Premises Related,BAA,21/08/2017,05-14765,"8,719.12",ARC Property Services Partnership L
Nottinghamshire County Council,1111/1001,Children and Young People,CYP,Premises Related,BAA,21/08/2017,05-14772,26.07,ARC Property Services Partnership L
Nottinghamshire County Council,1111/1001,Children and Young People,CYP,Premises Related,BCA,03/08/2017,05-10240,791.28,E.On
Nottinghamshire County Council,1111/1001,Children and Young People,CYP,Premises Related,BCA,03/08/2017,05-10241,723.12,E.On
Nottinghamshire County Council,1111/1001,Children and Young People,CYP,Premises Related,BDA,01/08/2017,05-10003,575,Jillings Estates Ltd
Nottinghamshire County Council,1111/1001,Children and Young People,CYP,Premises Related,BDA,01/08/2017,05-10004,582.96,The Nottingham Arimathea Trust
Nottinghamshire County Council,1111/1001,Children and Young People,CYP,Premises Related,BDA,02/08/2017,05-16344,5052.91,Harworth & Bircotes Town Council
Nottinghamshire County Council,1111/1001,Children and Young People,CYP,Premises Related,BFA,07/08/2017,05-12760,2653.35,Water Plus Ltd
Nottinghamshire County Council,1111/1001,Children and Young People,CYP,Premises Related,BFA,07/08/2017,05-12761,849.05,Water Plus Ltd
Nottinghamshire County Council,1111/1001,Children and Young People,CYP,Transport Related,CAA,08/08/2017,05-12765,861.57,Via East Midlands Ltd
Nottinghamshire County Council,1111/1001,Children and Young People,CYP,Transport Related,CAA,14/08/2017,05-14351,"1,421.00",Via East Midlands Ltd
Nottinghamshire County Council,1111/1001,Children and Young People,CYP,Transport Related,CAA,25/08/2017,05-15923,552.12,Via East Midlands Ltd
Nottinghamshire County Council,1111/1001,Children and Young People,CYP,Transport Related,CCA,04/08/2017,05-12499,"2,350.24",Taxicover Uk Ltd
Nottinghamshire County Council,1111/1001,Children and Young People,CYP,Transport Related,CCA,04/08/2017,05-12500,2528,Taxicover Uk Ltd
Nottinghamshire County Council,1111/1001,Children and Young People,CYP,Transport Related,CCA,04/08/2017,05-12501,"3,068.48",Taxicover Uk Ltd
Nottinghamshire County Council,1111/1001,Children and Young People,CYP,Transport Related,CCA,04/08/2017,05-12502,"1,642.66",Taxicover Uk Ltd
Nottinghamshire County Council,1111/1001,Children and Young People,CYP,Transport Related,CCA,04/08/2017,05-12503,1588,Taxicover Uk Ltd
Nottinghamshire County Council,1111/1001,Children and Young People,CYP,Transport Related,CCA,04/08/2017,05-12504,1787.5,Taxicover Uk Ltd
Nottinghamshire County Council,1111/1001,Children and Young People,CYP,Transport Related,CCA,04/08/2017,05-12505,"3,348.15",Taxicover Uk Ltd
Nottinghamshire County Council,1111/1001,Children and Young People,CYP,Transport Related,CCA,04/08/2017,05-12506,"2,565.13",Taxicover Uk Ltd
Nottinghamshire County Council,1111/1001,Children and Young People,CYP,Transport Related,CCA,04/08/2017,05-12507,2728.33,Taxicover Uk Ltd
Nottinghamshire County Council,1111/1001,Children and Young People,CYP,Transport Related,CCA,04/08/2017,05-12508,"2,901.73",Taxicover Uk Ltd
Nottinghamshire County Council,1111/1001,Children and Young People,CYP,Transport Related,CCA,04/08/2017,05-12509,"3,159.28",Taxicover Uk Ltd
Nottinghamshire County Council,1111/1001,Children and Young People,CYP,Transport Related,CCA,04/08/2017,05-12510,"2,688.04",Taxicover Uk Ltd
Nottinghamshire County Council,1111/1001,Children and Young People,CYP,Transport Related,CCA,04/08/2017,05-12511,3414.96,Taxicover Uk Ltd
Nottinghamshire County Council,1111/1001,Children and Young People,CYP,Transport Related,CCA,04/08/2017,05-12512,2566.49,Taxicover Uk Ltd
Nottinghamshire County Council,1111/1001,Children and Young People,CYP,Transport Related,CCA,04/08/2017,05-12513,3505.74,Taxicover Uk Ltd
Nottinghamshire County Council,1111/1001,Children and Young People,CYP,Transport Related,CCA,04/08/2017,05-12514,2705.38,Taxicover Uk Ltd
Nottinghamshire County Council,1111/1001,Children and Young People,CYP,Transport Related,CCA,04/08/2017,05-12515,"2,712.86",Taxicover Uk Ltd
Nottinghamshire County Council,1111/1001,Children and Young People,CYP,Transport Related,CCA,04/08/2017,05-12518,1030.2,6 Five 2s
Nottinghamshire County Council,1111/1001,Children and Young People,CYP,Transport Related,CCA,04/08/2017,05-12519,1510.96,6 Five 2s
Nottinghamshire County Council,1111/1001,Children and Young People,CYP,Transport Related,CCA,04/08/2017,05-12520,"1,456.73",6 Five 2s
Nottinghamshire County Council,1111/1001,Children and Young People,CYP,Transport Related,CCA,04/08/2017,05-12521,"1,630.13",6 Five 2s
Nottinghamshire County Council,1111/1001,Children and Young People,CYP,Transport Related,CCA,04/08/2017,05-12522,1796.73,6 Five 2s
Nottinghamshire County Council,1111/1001,Children and Young People,CYP,Transport Related,CCA,04/08/2017,05-12523,674.22,6 Five 2s
Nottinghamshire County Council,1111/1001,Children and Young People,CYP,Transport Related,CCA,04/08/2017,05-12524,1105,All Wayz Travel
Nottinghamshire County Council,1111/1001,Children and Young People,CYP,Transport Related,CCA,04/08/2017,05-12528,"2,227.51",F4Control Ltd (t/a First4care)
Nottinghamshire County Council,1111/1001,Children and Young People,CYP,Transport Related,CCA,04/08/2017,05-12529,1716.15,F4Control Ltd (t/a First4care)
Nottinghamshire County Council,1111/1001,Children and Young People,CYP,Transport Related,CCA,04/08/2017,05-12530,1835.83,F4Control Ltd (t/a First4care)
Nottinghamshire County Council,1111/1001,Children and Young People,CYP,Transport Related,CCA,04/08/2017,05-12531,1967.41,F4Control Ltd (t/a First4care)
Nottinghamshire County Council,1111/1001,Children and Young People,CYP,Transport Related,CCA,04/08/2017,05-12532,"1,988.83",F4Control Ltd (t/a First4care)
Nottinghamshire County Council,1111/1001,Children and Young People,CYP,Transport Related,CCA,04/08/2017,05-12533,"2,158.83",F4Control Ltd (t/a First4care)
Nottinghamshire County Council,1111/1001,Children and Young People,CYP,Transport Related,CCA,04/08/2017,05-12534,"2,017.05",F4Control Ltd (t/a First4care)
Nottinghamshire County Council,1111/1001,Children and Young People,CYP,Transport Related,CCA,04/08/2017,05-12535,"2,022.15",F4Control Ltd (t/a First4care)
Nottinghamshire County Council,1111/1001,Children and Young People,CYP,Transport Related,CCA,04/08/2017,05-12536,1819.68,F4Control Ltd (t/a First4care)
Nottinghamshire County Council,1111/1001,Children and Young People,CYP,Transport Related,CCA,04/08/2017,05-12537,1811.7,F4Control Ltd (t/a First4care)
Nottinghamshire County Council,1111/1001,Children and Young People,CYP,Transport Related,CCA,04/08/2017,05-12538,"1,862.85",Johnson Bros Tours Ltd
Nottinghamshire County Council,1111/1001,Children and Young People,CYP,Transport Related,CCA,04/08/2017,05-12546,"1,384.16",Arrow Specialised Transport Ltd
Nottinghamshire County Council,1111/1001,Children and Young People,CYP,Transport Related,CCA,04/08/2017,05-12547,"1,974.55",Arrow Specialised Transport Ltd
Nottinghamshire County Council,1111/1001,Children and Young People,CYP,Transport Related,CCA,04/08/2017,05-12548,"1,502.50",Arrow Specialised Transport Ltd
Nottinghamshire County Council,1111/1001,Children and Young People,CYP,Transport Related,CCA,04/08/2017,05-12550,"2,850.22",Arrow Specialised Transport Ltd
Nottinghamshire County Council,1111/1001,Children and Young People,CYP,Transport Related,CCA,04/08/2017,05-12551,"2,269.84",Arrow Specialised Transport Ltd
Nottinghamshire County Council,1111/1001,Children and Young People,CYP,Transport Related,CCA,04/08/2017,05-12552,2489.65,Arrow Specialised Transport Ltd
Nottinghamshire County Council,1111/1001,Children and Young People,CYP,Transport Related,CCA,04/08/2017,05-12553,"2,833.05",Arrow Specialised Transport Ltd
Nottinghamshire County Council,1111/1001,Children and Young People,CYP,Transport Related,CCA,04/08/2017,05-12554,"2,323.90",Arrow Specialised Transport Ltd
Nottinghamshire County Council,1111/1001,Children and Young People,CYP,Transport Related,CCA,04/08/2017,05-12555,"1,923.04",Arrow Specialised Transport Ltd
Nottinghamshire County Council,1111/1001,Children and Young People,CYP,Transport Related,CCA,04/08/2017,05-12556,1621.05,Arrow Specialised Transport Ltd
Nottinghamshire County Council,1111/1001,Children and Young People,CYP,Transport Related,CCA,04/08/2017,05-12557,"1,651.35",Arrow Specialised Transport Ltd
Nottinghamshire County Council,1111/1001,Children and Young People,CYP,Transport Related,CCA,04/08/2017,05-12558,"2,045.25",Arrow Specialised Transport Ltd
Nottinghamshire County Council,1111/1001,Children and Young People,CYP,Transport Related,CCA,04/08/2017,05-12559,"1,439.25",Arrow Specialised Transport Ltd
Nottinghamshire County Council,1111/1001,Children and Young People,CYP,Transport Related,CCA,04/08/2017,05-12560,1858.2,Arrow Specialised Transport Ltd
Nottinghamshire County Council,1111/1001,Children and Young People,CYP,Transport Related,CCA,04/08/2017,05-12561,"1,276.64",Arrow Specialised Transport Ltd
Nottinghamshire County Council,1111/1001,Children and Young People,CYP,Transport Related,CCA,04/08/2017,05-12562,2470.1,Arrow Specialised Transport Ltd
Nottinghamshire County Council,1111/1001,Children and Young People,CYP,Transport Related,CCA,04/08/2017,05-12563,2972.96,Arrow Specialised Transport Ltd
Nottinghamshire County Council,1111/1001,Children and Young People,CYP,Transport Related,CCA,04/08/2017,05-12564,"1,782.96",Arrow Specialised Transport Ltd
Nottinghamshire County Council,1111/1001,Children and Young People,CYP,Transport Related,CCA,04/08/2017,05-12565,3057.96,Arrow Specialised Transport Ltd
Nottinghamshire County Council,1111/1001,Children and Young People,CYP,Transport Related,CCA,04/08/2017,05-12566,"2,802.96",Arrow Specialised Transport Ltd
Nottinghamshire County Council,1111/1001,Children and Young People,CYP,Transport Related,CCA,04/08/2017,05-12567,"1,782.96",Arrow Specialised Transport Ltd
Nottinghamshire County Council,1111/1001,Children and Young People,CYP,Transport Related,CCA,04/08/2017,05-12568,"2,026.23",Arrow Specialised Transport Ltd
Nottinghamshire County Council,1111/1001,Children and Young People,CYP,Transport Related,CCA,04/08/2017,05-12569,"1,637.95",Arrow Specialised Transport Ltd
Nottinghamshire County Council,1111/1001,Children and Young People,CYP,Transport Related,CCA,04/08/2017,05-12570,2105.96,Arrow Specialised Transport Ltd
Nottinghamshire County Council,1111/1001,Children and Young People,CYP,Transport Related,CCA,04/08/2017,05-12571,"1,772.25",Arrow Specialised Transport Ltd
Nottinghamshire County Council,1111/1001,Children and Young People,CYP,Transport Related,CCA,04/08/2017,05-12572,"1,671.45",Arrow Specialised Transport Ltd
Nottinghamshire County Council,1111/1001,Children and Young People,CYP,Transport Related,CCA,04/08/2017,05-12573,"1,596.81",Arrow Specialised Transport Ltd
Nottinghamshire County Council,1111/1001,Children and Young People,CYP,Transport Related,CCA,04/08/2017,05-12574,1794.35,Arrow Specialised Transport Ltd
Nottinghamshire County Council,1111/1001,Children and Young People,CYP,Transport Related,CCA,04/08/2017,05-12575,"1,768.51",Arrow Specialised Transport Ltd
Nottinghamshire County Council,1111/1001,Children and Young People,CYP,Transport Related,CCA,04/08/2017,05-12576,"1,802.85",Arrow Specialised Transport Ltd
Nottinghamshire County Council,1111/1001,Children and Young People,CYP,Transport Related,CCA,04/08/2017,05-12577,"2,197.76",Arrow Specialised Transport Ltd
Nottinghamshire County Council,1111/1001,Children and Young People,CYP,Transport Related,CCA,04/08/2017,05-12578,"2,160.87",Arrow Specialised Transport Ltd
Nottinghamshire County Council,1111/1001,Children and Young People,CYP,Transport Related,CCA,04/08/2017,05-12579,"1,991.72",Arrow Specialised Transport Ltd
Nottinghamshire County Council,1111/1001,Children and Young People,CYP,Transport Related,CCA,04/08/2017,05-12580,1648.32,Arrow Specialised Transport Ltd
Nottinghamshire County Council,1111/1001,Children and Young People,CYP,Transport Related,CCA,04/08/2017,05-12581,2060.4,Arrow Specialised Transport Ltd
Nottinghamshire County Council,1111/1001,Children and Young People,CYP,Transport Related,CCA,04/08/2017,05-12582,"1,991.72",Arrow Specialised Transport Ltd
Nottinghamshire County Council,1111/1001,Children and Young People,CYP,Transport Related,CCA,04/08/2017,05-12583,2060.4,Arrow Specialised Transport Ltd
Nottinghamshire County Council,1111/1001,Children and Young People,CYP,Transport Related,CCA,04/08/2017,05-12584,2197.76,Arrow Specialised Transport Ltd
Nottinghamshire County Council,1111/1001,Children and Young People,CYP,Transport Related,CCA,04/08/2017,05-12585,2029.8,Arrow Specialised Transport Ltd
Nottinghamshire County Council,1111/1001,Children and Young People,CYP,Transport Related,CCA,04/08/2017,05-12588,1344.9,Arrow Specialised Transport Ltd
Nottinghamshire County Council,1111/1001,Children and Young People,CYP,Transport Related,CCA,04/08/2017,05-12589,1560.45,Arrow Specialised Transport Ltd
Nottinghamshire County Council,1111/1001,Children and Young People,CYP,Transport Related,CCA,04/08/2017,05-12590,1050.4,Arrow Specialised Transport Ltd
Nottinghamshire County Council,1111/1001,Children and Young People,CYP,Transport Related,CCA,04/08/2017,05-12591,"2,329.00",Arrow Specialised Transport Ltd
Nottinghamshire County Council,1111/1001,Children and Young People,CYP,Transport Related,CCA,04/08/2017,05-12592,969.6,Arrow Specialised Transport Ltd
Nottinghamshire County Council,1111/1001,Children and Young People,CYP,Transport Related,CCA,04/08/2017,05-12593,1378.65,Arrow Specialised Transport Ltd
Nottinghamshire County Council,1111/1001,Children and Young People,CYP,Transport Related,CCA,04/08/2017,05-12594,"2,571.84",Arrow Specialised Transport Ltd
Nottinghamshire County Council,1111/1001,Children and Young People,CYP,Transport Related,CCA,04/08/2017,05-12595,"5,356.62",Arrow Specialised Transport Ltd
Nottinghamshire County Council,1111/1001,Children and Young People,CYP,Transport Related,CCA,04/08/2017,05-12596,695.28,Arrow Specialised Transport Ltd
Nottinghamshire County Council,1111/1001,Children and Young People,CYP,Transport Related,CCA,04/08/2017,05-12598,1560.32,Arrow Specialised Transport Ltd
Nottinghamshire County Council,1111/1001,Children and Young People,CYP,Transport Related,CCA,04/08/2017,05-12600,1122.24,Arrow Specialised Transport Ltd
Nottinghamshire County Council,1111/1001,Children and Young People,CYP,Transport Related,CCA,04/08/2017,05-12602,1068.8,Arrow Specialised Transport Ltd
Nottinghamshire County Council,1111/1001,Children and Young People,CYP,Transport Related,CCA,04/08/2017,05-12603,2513.96,Arrow Specialised Transport Ltd
Nottinghamshire County Council,1111/1001,Children and Young People,CYP,Transport Related,CCA,04/08/2017,05-12604,2282.25,Arrow Specialised Transport Ltd
Nottinghamshire County Council,1111/1001,Children and Young People,CYP,Transport Related,CCA,04/08/2017,05-12605,1716.83,Arrow Specialised Transport Ltd
Nottinghamshire County Council,1111/1001,Children and Young People,CYP,Transport Related,CCA,04/08/2017,05-12606,"1,827.00",Arrow Specialised Transport Ltd
Nottinghamshire County Council,1111/1001,Children and Young People,CYP,Transport Related,CCA,04/08/2017,05-12607,2147.94,Arrow Specialised Transport Ltd
Nottinghamshire County Council,1111/1001,Children and Young People,CYP,Transport Related,CCA,04/08/2017,05-12609,"1,984.65",Arrow Specialised Transport Ltd
Nottinghamshire County Council,1111/1001,Children and Young People,CYP,Transport Related,CCA,04/08/2017,05-12610,3397.62,Arrow Specialised Transport Ltd
Nottinghamshire County Council,1111/1001,Children and Young People,CYP,Transport Related,CCA,04/08/2017,05-12611,1693.37,Arrow Specialised Transport Ltd
Nottinghamshire County Council,1111/1001,Children and Young People,CYP,Transport Related,CCA,04/08/2017,05-12612,"1,968.09",Arrow Specialised Transport Ltd
Nottinghamshire County Council,1111/1001,Children and Young People,CYP,Transport Related,CCA,04/08/2017,05-12613,2047.82,Arrow Specialised Transport Ltd
Nottinghamshire County Council,1111/1001,Children and Young People,CYP,Transport Related,CCA,04/08/2017,05-12614,2566.49,Arrow Specialised Transport Ltd
Nottinghamshire County Council,1111/1001,Children and Young People,CYP,Transport Related,CCA,04/08/2017,05-12615,"1,785.68",Arrow Specialised Transport Ltd
Nottinghamshire County Council,1111/1001,Children and Young People,CYP,Transport Related,CCA,04/08/2017,05-12616,1716.83,Arrow Specialised Transport Ltd
Nottinghamshire County Council,1111/1001,Children and Young People,CYP,Transport Related,CCA,04/08/2017,05-12617,1907.57,Arrow Specialised Transport Ltd
Nottinghamshire County Council,1111/1001,Children and Young People,CYP,Transport Related,CCA,04/08/2017,05-12618,1942.25,Arrow Specialised Transport Ltd
Nottinghamshire County Council,1111/1001,Children and Young People,CYP,Transport Related,CCA,04/08/2017,05-12619,2839,Arrow Specialised Transport Ltd
Nottinghamshire County Council,1111/1001,Children and Young People,CYP,Transport Related,CCA,04/08/2017,05-12620,4033.25,Arrow Specialised Transport Ltd
Nottinghamshire County Council,1111/1001,Children and Young People,CYP,Transport Related,CCA,04/08/2017,05-12621,3098.25,Arrow Specialised Transport Ltd
Nottinghamshire County Council,1111/1001,Children and Young People,CYP,Transport Related,CCA,04/08/2017,05-12622,1672.8,Arrow Specialised Transport Ltd
Nottinghamshire County Council,1111/1001,Children and Young People,CYP,Transport Related,CCA,04/08/2017,05-12623,919.1,Arrow Specialised Transport Ltd
Nottinghamshire County Council,1111/1001,Children and Young People,CYP,Transport Related,CCA,04/08/2017,05-12624,"1,018.75",Arrow Specialised Transport Ltd
Nottinghamshire County Council,1111/1001,Children and Young People,CYP,Transport Related,CCA,04/08/2017,05-12625,1803.53,Arrow Specialised Transport Ltd
Nottinghamshire County Council,1111/1001,Children and Young People,CYP,Transport Related,CCA,04/08/2017,05-12626,2183.14,D G Private Hire Ltd
Nottinghamshire County Council,1111/1001,Children and Young People,CYP,Transport Related,CCA,04/08/2017,05-12627,14974.6,Erewash Community Transport
Nottinghamshire County Council,1111/1001,Children and Young People,CYP,Transport Related,CCA,04/08/2017,05-12628,"12,728.41",Erewash Community Transport
Nottinghamshire County Council,1111/1001,Children and Young People,CYP,Transport Related,CCA,04/08/2017,05-12630,1795.36,Horizon Travel
Nottinghamshire County Council,1111/1001,Children and Young People,CYP,Transport Related,CCA,04/08/2017,05-12631,1932.88,Horizon Travel
Nottinghamshire County Council,1111/1001,Children and Young People,CYP,Transport Related,CCA,04/08/2017,05-12633,2805,Ja Travel Ltd
Nottinghamshire County Council,1111/1001,Children and Young People,CYP,Transport Related,CCA,04/08/2017,05-12634,1533.91,Ja Travel Ltd
Nottinghamshire County Council,1111/1001,Children and Young People,CYP,Transport Related,CCA,04/08/2017,05-12635,"1,870.00",Sprays Transport Ltd
Nottinghamshire County Council,1111/1001,Children and Young People,CYP,Transport Related,CCA,04/08/2017,05-12636,"1,682.66",Sprays Transport Ltd
Nottinghamshire County Council,1111/1001,Children and Young People,CYP,Transport Related,CCA,04/08/2017,05-12637,2006,Sprays Transport Ltd
Nottinghamshire County Council,1111/1001,Children and Young People,CYP,Transport Related,CCA,04/08/2017,05-12638,2060.4,Sprays Transport Ltd
Nottinghamshire County Council,1111/1001,Children and Young People,CYP,Transport Related,CCA,04/08/2017,05-12639,"1,907.57",Sprays Transport Ltd
Nottinghamshire County Council,1111/1001,Children and Young People,CYP,Transport Related,CCA,04/08/2017,05-12640,"1,680.00",Sprays Transport Ltd
Nottinghamshire County Council,1111/1001,Children and Young People,CYP,Transport Related,CCA,04/08/2017,05-12641,"2,387.99",Sprays Transport Ltd
Nottinghamshire County Council,1111/1001,Children and Young People,CYP,Transport Related,CCA,04/08/2017,05-12642,"2,074.00",Sprays Transport Ltd
Nottinghamshire County Council,1111/1001,Children and Young People,CYP,Transport Related,CCA,04/08/2017,05-12643,1807.78,Sprays Transport Ltd
Nottinghamshire County Council,1111/1001,Children and Young People,CYP,Transport Related,CCA,04/08/2017,05-12644,1921,Sprays Transport Ltd
Nottinghamshire County Council,1111/1001,Children and Young People,CYP,Transport Related,CCA,04/08/2017,05-12645,"1,984.92",Sprays Transport Ltd
Nottinghamshire County Council,1111/1001,Children and Young People,CYP,Transport Related,CCA,04/08/2017,05-12646,2464.15,Sprays Transport Ltd
Nottinghamshire County Council,1111/1001,Children and Young People,CYP,Transport Related,CCA,04/08/2017,05-12648,2006,Sprays Transport Ltd
Nottinghamshire County Council,1111/1001,Children and Young People,CYP,Transport Related,CCA,04/08/2017,05-12650,685.4,F4Control Ltd (t/a First4care)
Nottinghamshire County Council,1111/1001,Children and Young People,CYP,Transport Related,CCA,04/08/2017,05-12651,"2,268.45",F4Control Ltd (t/a First4care)
Nottinghamshire County Council,1111/1001,Children and Young People,CYP,Transport Related,CCA,04/08/2017,05-12652,1675.5,F4Control Ltd (t/a First4care)
Nottinghamshire County Council,1111/1001,Children and Young People,CYP,Transport Related,CCA,04/08/2017,05-12653,2253.69,F4Control Ltd (t/a First4care)
Nottinghamshire County Council,1111/1001,Children and Young People,CYP,Transport Related,CCA,04/08/2017,05-12654,"1,954.08",F4Control Ltd (t/a First4care)
Nottinghamshire County Council,1111/1001,Children and Young People,CYP,Transport Related,CCA,04/08/2017,05-12655,1951.23,F4Control Ltd (t/a First4care)
Nottinghamshire County Council,1111/1001,Children and Young People,CYP,Transport Related,CCA,04/08/2017,05-12657,"1,632.69",F4Control Ltd (t/a First4care)
Nottinghamshire County Council,1111/1001,Children and Young People,CYP,Transport Related,CCA,04/08/2017,05-12659,"1,386.66",F4Control Ltd (t/a First4care)
Nottinghamshire County Council,1111/1001,Children and Young People,CYP,Transport Related,CCA,04/08/2017,05-12661,851.4,F4Control Ltd (t/a First4care)
Nottinghamshire County Council,1111/1001,Children and Young People,CYP,Transport Related,CCA,04/08/2017,05-12663,1272.69,F4Control Ltd (t/a First4care)
Nottinghamshire County Council,1111/1001,Children and Young People,CYP,Transport Related,CCA,04/08/2017,05-12665,940.16,F4Control Ltd (t/a First4care)
Nottinghamshire County Council,1111/1001,Children and Young People,CYP,Transport Related,CCA,04/08/2017,05-12666,1062,F4Control Ltd (t/a First4care)
Nottinghamshire County Council,1111/1001,Children and Young People,CYP,Transport Related,CCA,04/08/2017,05-12667,"1,101.90",F4Control Ltd (t/a First4care)
Nottinghamshire County Council,1111/1001,Children and Young People,CYP,Transport Related,CCA,04/08/2017,05-12671,"2,256.75",F4Control Ltd (t/a First4care)
Nottinghamshire County Council,1111/1001,Children and Young People,CYP,Transport Related,CCA,04/08/2017,05-12672,"2,166.48",F4Control Ltd (t/a First4care)
Nottinghamshire County Council,1111/1001,Children and Young People,CYP,Transport Related,CCA,04/08/2017,05-12673,2198.27,F4Control Ltd (t/a First4care)
Nottinghamshire County Council,1111/1001,Children and Young People,CYP,Transport Related,CCA,04/08/2017,05-12674,"2,113.76",K & S Coaches
Nottinghamshire County Council,1111/1001,Children and Young People,CYP,Transport Related,CCA,04/08/2017,05-12675,2183.65,Midfield Travel
Nottinghamshire County Council,1111/1001,Children and Young People,CYP,Transport Related,CCA,04/08/2017,05-12676,1139.3,Midfield Travel
Nottinghamshire County Council,1111/1001,Children and Young People,CYP,Transport Related,CCA,04/08/2017,05-12677,560,D G Private Hire Ltd
Nottinghamshire County Council,1111/1001,Children and Young People,CYP,Transport Related,CCA,04/08/2017,05-12678,1440,D G Private Hire Ltd
Nottinghamshire County Council,1111/1001,Children and Young People,CYP,Transport Related,CCA,04/08/2017,05-12679,"1,615.00",D G Private Hire Ltd
Nottinghamshire County Council,1111/1001,Children and Young People,CYP,Transport Related,CCA,04/08/2017,05-12680,1050.4,D G Private Hire Ltd
Nottinghamshire County Council,1111/1001,Children and Young People,CYP,Transport Related,CCA,04/08/2017,05-12681,606,D G Private Hire Ltd
Nottinghamshire County Council,1111/1001,Children and Young People,CYP,Transport Related,CCA,04/08/2017,05-12682,909,D G Private Hire Ltd
Nottinghamshire County Council,1111/1001,Children and Young People,CYP,Transport Related,CCA,04/08/2017,05-12683,1190,D G Private Hire Ltd
Nottinghamshire County Council,1111/1001,Children and Young People,CYP,Transport Related,CCA,04/08/2017,05-12684,"1,600.00",D G Private Hire Ltd
Nottinghamshire County Council,1111/1001,Children and Young People,CYP,Transport Related,CCA,04/08/2017,05-12685,"2,329.00",D G Private Hire Ltd
Nottinghamshire County Council,1111/1001,Children and Young People,CYP,Transport Related,CCA,04/08/2017,05-12686,"1,260.00",D G Private Hire Ltd
Nottinghamshire County Council,1111/1001,Children and Young People,CYP,Transport Related,CCA,04/08/2017,05-12687,595,D G Private Hire Ltd
Nottinghamshire County Council,1111/1001,Children and Young People,CYP,Transport Related,CCA,04/08/2017,05-12708,"2,408.85",Freeway Coaches Ltd
Nottinghamshire County Council,1111/1001,Children and Young People,CYP,Transport Related,CCA,04/08/2017,05-12709,"2,476.75",Freeway Coaches Ltd
Nottinghamshire County Council,1111/1001,Children and Young People,CYP,Transport Related,CCA,04/08/2017,05-12726,1431.75,Ace Cars
Nottinghamshire County Council,1111/1001,Children and Young People,CYP,Transport Related,CCA,04/08/2017,05-12727,"1,772.25",Ace Cars
Nottinghamshire County Council,1111/1001,Children and Young People,CYP,Transport Related,CCA,04/08/2017,05-12728,"1,536.80",Ace Cars
Nottinghamshire County Council,1111/1001,Children and Young People,CYP,Transport Related,CCA,04/08/2017,05-12729,"2,555.50",Ace Cars
Nottinghamshire County Council,1111/1001,Children and Young People,CYP,Transport Related,CCA,04/08/2017,05-12730,2421,Ace Cars
Nottinghamshire County Council,1111/1001,Children and Young People,CYP,Transport Related,CCA,04/08/2017,05-12731,1689.8,Ace Cars
Nottinghamshire County Council,1111/1001,Children and Young People,CYP,Transport Related,CCA,04/08/2017,05-12732,2093,Ace Cars
Nottinghamshire County Council,1111/1001,Children and Young People,CYP,Transport Related,CCA,04/08/2017,05-12733,2031.5,Ace Cars
Nottinghamshire County Council,1111/1001,Children and Young People,CYP,Transport Related,CCA,04/08/2017,05-12734,"3,626.00",Ace Cars
Nottinghamshire County Council,1111/1001,Children and Young People,CYP,Transport Related,CCA,04/08/2017,05-12735,805.5,Ace Cars
Nottinghamshire County Council,1111/1001,Children and Young People,CYP,Transport Related,CCA,04/08/2017,05-12736,1454.4,Ace Cars
Nottinghamshire County Council,1111/1001,Children and Young People,CYP,Transport Related,CCA,04/08/2017,05-12737,"2,312.85",L A Travel
Nottinghamshire County Council,1111/1001,Children and Young People,CYP,Transport Related,CCA,04/08/2017,05-12745,681.75,Nottingham Coaches
Nottinghamshire County Council,1111/1001,Children and Young People,CYP,Transport Related,CCA,04/08/2017,05-12746,"1,800.00",Target Taxis
Nottinghamshire County Council,1111/1001,Children and Young People,CYP,Transport Related,CCA,04/08/2017,05-12748,"1,631.15",Sean's Taxi Services
Nottinghamshire County Council,1111/1001,Children and Young People,CYP,Transport Related,CCA,04/08/2017,05-12754,2125,A Travel
Nottinghamshire County Council,1111/1001,Children and Young People,CYP,Transport Related,CCA,09/08/2017,05-12791,"9,140.90",Sharpes Of Nottingham
Nottinghamshire County Council,1111/1001,Children and Young People,CYP,Transport Related,CCA,09/08/2017,05-12792,"1,893.75",Central Cars Nottm Ltd
Nottinghamshire County Council,1111/1001,Children and Young People,CYP,Transport Related,CCA,09/08/2017,05-12793,"1,398.44",Central Cars Nottm Ltd
Nottinghamshire County Council,1111/1001,Children and Young People,CYP,Transport Related,CCA,09/08/2017,05-12795,"1,568.00",Central Cars Nottm Ltd
Nottinghamshire County Council,1111/1001,Children and Young People,CYP,Transport Related,CCA,09/08/2017,05-12798,"2,576.21",Martins Travel
Nottinghamshire County Council,1111/1001,Children and Young People,CYP,Transport Related,CCA,09/08/2017,05-12800,707,Ace Of Mansfield Ltd
Nottinghamshire County Council,1111/1001,Children and Young People,CYP,Transport Related,CCA,09/08/2017,05-12803,757.5,Ace Of Mansfield Ltd
Nottinghamshire County Council,1111/1001,Children and Young People,CYP,Transport Related,CCA,09/08/2017,05-12804,"1,486.72",Ace Of Mansfield Ltd
Nottinghamshire County Council,1111/1001,Children and Young People,CYP,Transport Related,CCA,09/08/2017,05-12805,"1,393.80",Ace Of Mansfield Ltd
Nottinghamshire County Council,1111/1001,Children and Young People,CYP,Transport Related,CCA,09/08/2017,05-12806,630,Alpha Cars
Nottinghamshire County Council,1111/1001,Children and Young People,CYP,Transport Related,CCA,09/08/2017,05-12809,1348.5,Amvale Ltd
Nottinghamshire County Council,1111/1001,Children and Young People,CYP,Transport Related,CCA,09/08/2017,05-12815,"1,643.40",Bridges Transport Services
Nottinghamshire County Council,1111/1001,Children and Young People,CYP,Transport Related,CCA,09/08/2017,05-12818,"1,700.00",Bridges Transport Services
Nottinghamshire County Council,1111/1001,Children and Young People,CYP,Transport Related,CCA,09/08/2017,05-12819,"1,287.75",Bridges Transport Services
Nottinghamshire County Council,1111/1001,Children and Young People,CYP,Transport Related,CCA,09/08/2017,05-12820,"1,018.80",Bridges Transport Services
Nottinghamshire County Council,1111/1001,Children and Young People,CYP,Transport Related,CCA,09/08/2017,05-12821,"1,628.70",Bridges Transport Services
Nottinghamshire County Council,1111/1001,Children and Young People,CYP,Transport Related,CCA,09/08/2017,05-12822,1718.87,Bridges Transport Services
Nottinghamshire County Council,1111/1001,Children and Young People,CYP,Transport Related,CCA,09/08/2017,05-12823,"2,403.80",Bridges Transport Services
Nottinghamshire County Council,1111/1001,Children and Young People,CYP,Transport Related,CCA,09/08/2017,05-12824,"1,111.95",Bridges Transport Services
Nottinghamshire County Council,1111/1001,Children and Young People,CYP,Transport Related,CCA,09/08/2017,05-12825,1164.45,Bridges Transport Services
Nottinghamshire County Council,1111/1001,Children and Young People,CYP,Transport Related,CCA,09/08/2017,05-12826,"1,699.83",Bridges Transport Services
Nottinghamshire County Council,1111/1001,Children and Young People,CYP,Transport Related,CCA,09/08/2017,05-12827,"1,953.81",Bridges Transport Services
Nottinghamshire County Council,1111/1001,Children and Young People,CYP,Transport Related,CCA,09/08/2017,05-12828,"1,569.10",Bridges Transport Services
Nottinghamshire County Council,1111/1001,Children and Young People,CYP,Transport Related,CCA,09/08/2017,05-12829,2354.67,Bridges Transport Services
Nottinghamshire County Council,1111/1001,Children and Young People,CYP,Transport Related,CCA,09/08/2017,05-12830,"2,266.44",Bridges Transport Services
Nottinghamshire County Council,1111/1001,Children and Young People,CYP,Transport Related,CCA,09/08/2017,05-12831,918,Bridges Transport Services
Nottinghamshire County Council,1111/1001,Children and Young People,CYP,Transport Related,CCA,09/08/2017,05-12832,810,Bridges Transport Services
Nottinghamshire County Council,1111/1001,Children and Young People,CYP,Transport Related,CCA,09/08/2017,05-12833,"1,230.00",Bridges Transport Services
Nottinghamshire County Council,1111/1001,Children and Young People,CYP,Transport Related,CCA,09/08/2017,05-12834,568.92,Bridges Transport Services
Nottinghamshire County Council,1111/1001,Children and Young People,CYP,Transport Related,CCA,09/08/2017,05-12836,2805,Bridges Transport Services
Nottinghamshire County Council,1111/1001,Children and Young People,CYP,Transport Related,CCA,09/08/2017,05-12841,696.9,Fozcabs Newark Taxis
Nottinghamshire County Council,1111/1001,Children and Young People,CYP,Transport Related,CCA,09/08/2017,05-12843,850,Fozcabs Newark Taxis
Nottinghamshire County Council,1111/1001,Children and Young People,CYP,Transport Related,CCA,09/08/2017,05-12846,585,Galaxy Cabs Ltd
Nottinghamshire County Council,1111/1001,Children and Young People,CYP,Transport Related,CCA,09/08/2017,05-12847,660,Galaxy Cabs Ltd
Nottinghamshire County Council,1111/1001,Children and Young People,CYP,Transport Related,CCA,09/08/2017,05-12848,1020,Galaxy Cabs Ltd
Nottinghamshire County Council,1111/1001,Children and Young People,CYP,Transport Related,CCA,09/08/2017,05-12849,"1,430.00",Galaxy Cabs Ltd
Nottinghamshire County Council,1111/1001,Children and Young People,CYP,Transport Related,CCA,09/08/2017,05-12850,1866.48,Headland Taxi Services
Nottinghamshire County Council,1111/1001,Children and Young People,CYP,Transport Related,CCA,09/08/2017,05-12856,753.7,Ng11 Cars
Nottinghamshire County Council,1111/1001,Children and Young People,CYP,Transport Related,CCA,09/08/2017,05-12857,945,Ng11 Cars
Nottinghamshire County Council,1111/1001,Children and Young People,CYP,Transport Related,CCA,09/08/2017,05-12861,848.4,Shelleys Taxis Ltd
Nottinghamshire County Council,1111/1001,Children and Young People,CYP,Transport Related,CCA,09/08/2017,05-12862,900,Shelleys Taxis Ltd
Nottinghamshire County Council,1111/1001,Children and Young People,CYP,Transport Related,CCA,09/08/2017,05-12863,750,Shelleys Taxis Ltd
Nottinghamshire County Council,1111/1001,Children and Young People,CYP,Transport Related,CCA,09/08/2017,05-12864,765,Shelleys Taxis Ltd
Nottinghamshire County Council,1111/1001,Children and Young People,CYP,Transport Related,CCA,09/08/2017,05-12866,"1,122.00",Shelleys Taxis Ltd
Nottinghamshire County Council,1111/1001,Children and Young People,CYP,Transport Related,CCA,09/08/2017,05-12867,3060,Shelleys Taxis Ltd
Nottinghamshire County Council,1111/1001,Children and Young People,CYP,Transport Related,CCA,09/08/2017,05-12868,1050,Shelleys Taxis Ltd
Nottinghamshire County Council,1111/1001,Children and Young People,CYP,Transport Related,CCA,09/08/2017,05-12869,1666,Shelleys Taxis Ltd
Nottinghamshire County Council,1111/1001,Children and Young People,CYP,Transport Related,CCA,09/08/2017,05-12870,1380,Shelleys Taxis Ltd
Nottinghamshire County Council,1111/1001,Children and Young People,CYP,Transport Related,CCA,09/08/2017,05-12871,1088,Shelleys Taxis Ltd
Nottinghamshire County Council,1111/1001,Children and Young People,CYP,Transport Related,CCA,09/08/2017,05-12873,2774.72,Vallances Coaches
Nottinghamshire County Council,1111/1001,Children and Young People,CYP,Transport Related,CCA,09/08/2017,05-12875,"2,415.52",Vallances Coaches
Nottinghamshire County Council,1111/1001,Children and Young People,CYP,Transport Related,CCA,09/08/2017,05-12876,678.72,Elkingtons Park Garage
Nottinghamshire County Council,1111/1001,Children and Young People,CYP,Transport Related,CCA,09/08/2017,05-12887,"1,717.00",Abacus Cars
Nottinghamshire County Council,1111/1001,Children and Young People,CYP,Transport Related,CCA,09/08/2017,05-12892,727.2,Abacus Cars
Nottinghamshire County Council,1111/1001,Children and Young People,CYP,Transport Related,CCA,09/08/2017,05-12893,1287.6,Abacus Cars
Nottinghamshire County Council,1111/1001,Children and Young People,CYP,Transport Related,CCA,09/08/2017,05-12895,680,Abacus Cars
Nottinghamshire County Council,1111/1001,Children and Young People,CYP,Transport Related,CCA,09/08/2017,05-12896,"1,212.00",Abacus Cars
Nottinghamshire County Council,1111/1001,Children and Young People,CYP,Transport Related,CCA,09/08/2017,05-12897,1700,Abacus Cars
Nottinghamshire County Council,1111/1001,Children and Young People,CYP,Transport Related,CCA,09/08/2017,05-12900,1213.97,Abacus Cars
Nottinghamshire County Council,1111/1001,Children and Young People,CYP,Transport Related,CCA,09/08/2017,05-12901,1400,Abacus Cars
Nottinghamshire County Council,1111/1001,Children and Young People,CYP,Transport Related,CCA,09/08/2017,05-12903,2460,Abacus Cars
Nottinghamshire County Council,1111/1001,Children and Young People,CYP,Transport Related,CCA,09/08/2017,05-12905,"4,817.62",Gem Mini Travel Ltd
Nottinghamshire County Council,1111/1001,Children and Young People,CYP,Transport Related,CCA,09/08/2017,05-12927,"3,008.70",Marshalls Of Sutton On Trent Ltd
Nottinghamshire County Council,1111/1001,Children and Young People,CYP,Transport Related,CCA,09/08/2017,05-12930,"1,605.90",Silverdale Tours Nottm Ltd
Nottinghamshire County Council,1111/1001,Children and Young People,CYP,Transport Related,CCA,09/08/2017,05-12947,"1,261.17",Travel Wright Ltd
Nottinghamshire County Council,1111/1001,Children and Young People,CYP,Transport Related,CCA,09/08/2017,05-12950,780.84,Travel Wright Ltd
Nottinghamshire County Council,1111/1001,Children and Young People,CYP,Transport Related,CCA,09/08/2017,05-12961,"3,419.65",Travel Wright Ltd
Nottinghamshire County Council,1111/1001,Children and Young People,CYP,Transport Related,CCA,09/08/2017,05-12963,199.97,Travel Wright Ltd
Nottinghamshire County Council,1111/1001,Children and Young People,CYP,Transport Related,CCA,09/08/2017,05-12970,1462,Rio Cabs
Nottinghamshire County Council,1111/1001,Children and Young People,CYP,Transport Related,CCA,09/08/2017,05-12971,1020,Rio Cabs
Nottinghamshire County Council,1111/1001,Children and Young People,CYP,Transport Related,CCA,09/08/2017,05-12973,"1,578.27",Rio Cabs
Nottinghamshire County Council,1111/1001,Children and Young People,CYP,Transport Related,CCA,09/08/2017,05-12975,515.04,Rio Cabs
Nottinghamshire County Council,1111/1001,Children and Young People,CYP,Transport Related,CCA,09/08/2017,05-12976,878.7,Town Cars (UK) Ltd
Nottinghamshire County Council,1111/1001,Children and Young People,CYP,Transport Related,CCA,09/08/2017,05-12979,"1,515.00",Trevor Bailey t/a Trevor Bailey Tra
Nottinghamshire County Council,1111/1001,Children and Young People,CYP,Transport Related,CCA,09/08/2017,05-12981,"1,385.72",Forest Cars
Nottinghamshire County Council,1111/1001,Children and Young People,CYP,Transport Related,CCA,09/08/2017,05-12982,"1,280.00",Forest Cars
Nottinghamshire County Council,1111/1001,Children and Young People,CYP,Transport Related,CCA,09/08/2017,05-12983,792,Forest Cars
Nottinghamshire County Council,1111/1001,Children and Young People,CYP,Transport Related,CCA,09/08/2017,05-12985,1410,Forest Cars
Nottinghamshire County Council,1111/1001,Children and Young People,CYP,Transport Related,CCA,09/08/2017,05-12988,"1,666.00",Forest Cars
Nottinghamshire County Council,1111/1001,Children and Young People,CYP,Transport Related,CCA,09/08/2017,05-12989,1350,Forest Cars
Nottinghamshire County Council,1111/1001,Children and Young People,CYP,Transport Related,CCA,09/08/2017,05-12990,593.88,Forest Cars
Nottinghamshire County Council,1111/1001,Children and Young People,CYP,Transport Related,CCA,09/08/2017,05-12991,1666,Forest Cars
Nottinghamshire County Council,1111/1001,Children and Young People,CYP,Transport Related,CCA,09/08/2017,05-12992,1666,Forest Cars
Nottinghamshire County Council,1111/1001,Children and Young People,CYP,Transport Related,CCA,09/08/2017,05-12993,"2,278.00",Forest Cars
Nottinghamshire County Council,1111/1001,Children and Young People,CYP,Transport Related,CCA,09/08/2017,05-12994,1195.84,Forest Cars
Nottinghamshire County Council,1111/1001,Children and Young People,CYP,Transport Related,CCA,09/08/2017,05-12997,345.6,Shiny Sky Ltd T/A A2b Cars
Nottinghamshire County Council,1111/1001,Children and Young People,CYP,Transport Related,CCA,09/08/2017,05-12999,952,Shiny Sky Ltd T/A A2b Cars
Nottinghamshire County Council,1111/1001,Children and Young People,CYP,Transport Related,CCA,09/08/2017,05-13000,1914,Shiny Sky Ltd T/A A2b Cars
Nottinghamshire County Council,1111/1001,Children and Young People,CYP,Transport Related,CCA,09/08/2017,05-13001,"1,140.00",Shiny Sky Ltd T/A A2b Cars
Nottinghamshire County Council,1111/1001,Children and Young People,CYP,Transport Related,CCA,09/08/2017,05-13002,"1,150.00",Shiny Sky Ltd T/A A2b Cars
Nottinghamshire County Council,1111/1001,Children and Young People,CYP,Transport Related,CCA,09/08/2017,05-13003,985.5,Shiny Sky Ltd T/A A2b Cars
Nottinghamshire County Council,1111/1001,Children and Young People,CYP,Transport Related,CCA,09/08/2017,05-13004,935,Shiny Sky Ltd T/A A2b Cars
Nottinghamshire County Council,1111/1001,Children and Young People,CYP,Transport Related,CCA,09/08/2017,05-13005,1870,Shiny Sky Ltd T/A A2b Cars
Nottinghamshire County Council,1111/1001,Children and Young People,CYP,Transport Related,CCA,09/08/2017,05-13006,1530,Shiny Sky Ltd T/A A2b Cars
Nottinghamshire County Council,1111/1001,Children and Young People,CYP,Transport Related,CCA,10/08/2017,05-13436,578.76,Southside Cars
Nottinghamshire County Council,1111/1001,Children and Young People,CYP,Transport Related,CCA,10/08/2017,05-13437,"1,895.50",Southside Cars
Nottinghamshire County Council,1111/1001,Children and Young People,CYP,Transport Related,CCA,10/08/2017,05-13438,435.16,Southside Cars
Nottinghamshire County Council,1111/1001,Children and Young People,CYP,Transport Related,CCA,10/08/2017,05-13440,505,Southside Cars
Nottinghamshire County Council,1111/1001,Children and Young People,CYP,Transport Related,CCA,10/08/2017,05-13442,705.6,200 Cars Ltd
Nottinghamshire County Council,1111/1001,Children and Young People,CYP,Transport Related,CCA,10/08/2017,05-13451,1800,Acorn Contracts
Nottinghamshire County Council,1111/1001,Children and Young People,CYP,Transport Related,CCA,10/08/2017,05-13452,3373.65,BN Gibson Ltd
Nottinghamshire County Council,1111/1001,Children and Young People,CYP,Transport Related,CCA,10/08/2017,05-13453,"3,937.20",BN Gibson Ltd
Nottinghamshire County Council,1111/1001,Children and Young People,CYP,Transport Related,CCA,10/08/2017,05-13454,4018.97,BN Gibson Ltd
Nottinghamshire County Council,1111/1001,Children and Young People,CYP,Transport Related,CCA,10/08/2017,05-13455,"1,704.32",BN Gibson Ltd
Nottinghamshire County Council,1111/1001,Children and Young People,CYP,Transport Related,CCA,10/08/2017,05-13456,4130.15,BN Gibson Ltd
Nottinghamshire County Council,1111/1001,Children and Young People,CYP,Transport Related,CCA,10/08/2017,05-13457,"2,904.75",BN Gibson Ltd
Nottinghamshire County Council,1111/1001,Children and Young People,CYP,Transport Related,CCA,10/08/2017,05-13458,"2,668.35",BN Gibson Ltd
Nottinghamshire County Council,1111/1001,Children and Young People,CYP,Transport Related,CCA,10/08/2017,05-13459,2402.55,BN Gibson Ltd
Nottinghamshire County Council,1111/1001,Children and Young People,CYP,Transport Related,CCA,10/08/2017,05-13461,2979.76,BN Gibson Ltd
Nottinghamshire County Council,1111/1001,Children and Young People,CYP,Transport Related,CCA,10/08/2017,05-13462,4484.09,BN Gibson Ltd
Nottinghamshire County Council,1111/1001,Children and Young People,CYP,Transport Related,CCA,10/08/2017,05-13463,"2,748.22",BN Gibson Ltd
Nottinghamshire County Council,1111/1001,Children and Young People,CYP,Transport Related,CCA,10/08/2017,05-13464,"3,462.05",BN Gibson Ltd
Nottinghamshire County Council,1111/1001,Children and Young People,CYP,Transport Related,CCA,10/08/2017,05-13465,"3,179.85",BN Gibson Ltd
Nottinghamshire County Council,1111/1001,Children and Young People,CYP,Transport Related,CCA,10/08/2017,05-13466,2747.2,BN Gibson Ltd
Nottinghamshire County Council,1111/1001,Children and Young People,CYP,Transport Related,CCA,10/08/2017,05-13467,2168.35,BN Gibson Ltd
Nottinghamshire County Council,1111/1001,Children and Young People,CYP,Transport Related,CCA,10/08/2017,05-13468,2020.28,BN Gibson Ltd
Nottinghamshire County Council,1111/1001,Children and Young People,CYP,Transport Related,CCA,10/08/2017,05-13469,"1,940.21",BN Gibson Ltd
Nottinghamshire County Council,1111/1001,Children and Young People,CYP,Transport Related,CCA,10/08/2017,05-13470,2026.57,BN Gibson Ltd
Nottinghamshire County Council,1111/1001,Children and Young People,CYP,Transport Related,CCA,10/08/2017,05-13471,"1,421.28",BN Gibson Ltd
Nottinghamshire County Council,1111/1001,Children and Young People,CYP,Transport Related,CCA,10/08/2017,05-13472,"1,463.40",BN Gibson Ltd
Nottinghamshire County Council,1111/1001,Children and Young People,CYP,Transport Related,CCA,10/08/2017,05-13473,"4,752.59",BN Gibson Ltd
Nottinghamshire County Council,1111/1001,Children and Young People,CYP,Transport Related,CCA,10/08/2017,05-13474,2282.93,BN Gibson Ltd
Nottinghamshire County Council,1111/1001,Children and Young People,CYP,Transport Related,CCA,10/08/2017,05-13475,2143.19,BN Gibson Ltd
Nottinghamshire County Council,1111/1001,Children and Young People,CYP,Transport Related,CCA,10/08/2017,05-13476,1568.76,BN Gibson Ltd
Nottinghamshire County Council,1111/1001,Children and Young People,CYP,Transport Related,CCA,10/08/2017,05-13477,1415.96,BN Gibson Ltd
Nottinghamshire County Council,1111/1001,Children and Young People,CYP,Transport Related,CCA,10/08/2017,05-13479,2305.2,BN Gibson Ltd
Nottinghamshire County Council,1111/1001,Children and Young People,CYP,Transport Related,CCA,10/08/2017,05-13480,"1,736.89",BN Gibson Ltd
Nottinghamshire County Council,1111/1001,Children and Young People,CYP,Transport Related,CCA,10/08/2017,05-13481,1792.99,BN Gibson Ltd
Nottinghamshire County Council,1111/1001,Children and Young People,CYP,Transport Related,CCA,10/08/2017,05-13482,"1,925.59",BN Gibson Ltd
Nottinghamshire County Council,1111/1001,Children and Young People,CYP,Transport Related,CCA,10/08/2017,05-13483,"1,754.24",BN Gibson Ltd
Nottinghamshire County Council,1111/1001,Children and Young People,CYP,Transport Related,CCA,10/08/2017,05-13484,1351.3,BN Gibson Ltd
Nottinghamshire County Council,1111/1001,Children and Young People,CYP,Transport Related,CCA,10/08/2017,05-13485,"1,010.40",BN Gibson Ltd
Nottinghamshire County Council,1111/1001,Children and Young People,CYP,Transport Related,CCA,10/08/2017,05-13486,976.22,BN Gibson Ltd
Nottinghamshire County Council,1111/1001,Children and Young People,CYP,Transport Related,CCA,10/08/2017,05-13490,"2,289.39",BN Gibson Ltd
Nottinghamshire County Council,1111/1001,Children and Young People,CYP,Transport Related,CCA,10/08/2017,05-13491,2198.95,BN Gibson Ltd
Nottinghamshire County Council,1111/1001,Children and Young People,CYP,Transport Related,CCA,10/08/2017,05-13492,2154.58,BN Gibson Ltd
Nottinghamshire County Council,1111/1001,Children and Young People,CYP,Transport Related,CCA,10/08/2017,05-13493,1032.5,Skills Motor Coaches Ltd
Nottinghamshire County Council,1111/1001,Children and Young People,CYP,Transport Related,CCA,10/08/2017,05-13494,"2,720.00",Skills Motor Coaches Ltd
Nottinghamshire County Council,1111/1001,Children and Young People,CYP,Transport Related,CCA,10/08/2017,05-13495,1280,Skills Motor Coaches Ltd
Nottinghamshire County Council,1111/1001,Children and Young People,CYP,Transport Related,CCA,10/08/2017,05-13496,928,Skills Motor Coaches Ltd
Nottinghamshire County Council,1111/1001,Children and Young People,CYP,Transport Related,CCA,10/08/2017,05-13497,"1,940.00",Skills Motor Coaches Ltd
Nottinghamshire County Council,1111/1001,Children and Young People,CYP,Transport Related,CCA,10/08/2017,05-13548,"1,575.00",P & P Taxis
Nottinghamshire County Council,1111/1001,Children and Young People,CYP,Transport Related,CCA,10/08/2017,05-13551,2084.6,P & P Taxis
Nottinghamshire County Council,1111/1001,Children and Young People,CYP,Transport Related,CCA,10/08/2017,05-13556,900,Town Cars (UK) Ltd
Nottinghamshire County Council,1111/1001,Children and Young People,CYP,Transport Related,CCA,10/08/2017,05-13561,380,Eurocab 2000 Ltd
Nottinghamshire County Council,1111/1001,Children and Young People,CYP,Transport Related,CCA,10/08/2017,05-13567,960,Eastwood Cars (UK) Ltd
Nottinghamshire County Council,1111/1001,Children and Young People,CYP,Transport Related,CCA,11/08/2017,05-13580,840,D G Private Hire Ltd
Nottinghamshire County Council,1111/1001,Children and Young People,CYP,Transport Related,CCA,11/08/2017,05-13582,651.6,D G Private Hire Ltd
Nottinghamshire County Council,1111/1001,Children and Young People,CYP,Transport Related,CCA,11/08/2017,05-13589,"1,360.00",Abacus Cars
Nottinghamshire County Council,1111/1001,Children and Young People,CYP,Transport Related,CCA,11/08/2017,05-13590,736,Abacus Cars
Nottinghamshire County Council,1111/1001,Children and Young People,CYP,Transport Related,CCA,16/08/2017,05-14539,560,6 Five 2s
Nottinghamshire County Council,1111/1001,Children and Young People,CYP,Transport Related,CCA,16/08/2017,05-14541,2013.6,6 Five 2s
Nottinghamshire County Council,1111/1001,Children and Young People,CYP,Transport Related,CCA,16/08/2017,05-14544,725,Gem Mini Travel Ltd
Nottinghamshire County Council,1111/1001,Children and Young People,CYP,Transport Related,CCA,16/08/2017,05-14546,1343.3,Eurocab 2000 Ltd
Nottinghamshire County Council,1111/1001,Children and Young People,CYP,Transport Related,CCA,18/08/2017,05-14676,2720,Central Cars Nottm Ltd
Nottinghamshire County Council,1111/1001,Children and Young People,CYP,Transport Related,CCA,18/08/2017,05-14677,1939.86,F4Control Ltd (t/a First4care)
Nottinghamshire County Council,1111/1001,Children and Young People,CYP,Transport Related,CCA,18/08/2017,05-14679,850,Martins Travel
Nottinghamshire County Council,1111/1001,Children and Young People,CYP,Transport Related,CCA,18/08/2017,05-14687,590,D G Private Hire Ltd
Nottinghamshire County Council,1111/1001,Children and Young People,CYP,Transport Related,CCA,18/08/2017,05-14688,1490,D G Private Hire Ltd
Nottinghamshire County Council,1111/1001,Children and Young People,CYP,Transport Related,CCA,18/08/2017,05-14698,2016,Ng11 Cars
Nottinghamshire County Council,1111/1001,Children and Young People,CYP,Transport Related,CCA,18/08/2017,05-14701,725,Sprays Transport Ltd
Nottinghamshire County Council,1111/1001,Children and Young People,CYP,Transport Related,CCA,18/08/2017,05-14702,588,BN Gibson Ltd
Nottinghamshire County Council,1111/1001,Children and Young People,CYP,Transport Related,CCA,18/08/2017,05-14703,896.49,BN Gibson Ltd
Nottinghamshire County Council,1111/1001,Children and Young People,CYP,Transport Related,CCA,18/08/2017,05-14708,2747.2,K Matthews Travel
Nottinghamshire County Council,1111/1001,Children and Young People,CYP,Transport Related,CCA,18/08/2017,05-14709,"2,918.90",K Matthews Travel
Nottinghamshire County Council,1111/1001,Children and Young People,CYP,Transport Related,CCA,18/08/2017,05-14710,1104,K Matthews Travel
Nottinghamshire County Council,1111/1001,Children and Young People,CYP,Transport Related,CCA,18/08/2017,05-14711,500.22,Bassetlaw Action Centre
Nottinghamshire County Council,1111/1001,Children and Young People,CYP,Transport Related,CCA,18/08/2017,05-14712,675.24,Bassetlaw Action Centre
Nottinghamshire County Council,1111/1001,Children and Young People,CYP,Transport Related,CCA,18/08/2017,05-14713,"1,466.40",Bassetlaw Action Centre
Nottinghamshire County Council,1111/1001,Children and Young People,CYP,Transport Related,CCA,18/08/2017,05-14714,590.4,Bassetlaw Action Centre
Nottinghamshire County Council,1111/1001,Children and Young People,CYP,Transport Related,CCA,18/08/2017,05-14722,1823.05,Eurocab 2000 Ltd
Nottinghamshire County Council,1111/1001,Children and Young People,CYP,Transport Related,CCA,18/08/2017,05-14724,721.5,Forest Cars
Nottinghamshire County Council,1111/1001,Children and Young People,CYP,Transport Related,CCA,18/08/2017,05-14726,612,Nottingham Cars Ltd
Nottinghamshire County Council,1111/1001,Children and Young People,CYP,Transport Related,CCA,18/08/2017,05-14728,"1,520.00",Shiny Sky Ltd T/A A2b Cars
Nottinghamshire County Council,1111/1001,Children and Young People,CYP,Transport Related,CCA,22/08/2017,05-15766,750,Shelleys Taxis Ltd
Nottinghamshire County Council,1111/1001,Children and Young People,CYP,Transport Related,CCA,22/08/2017,05-15767,"1,120.00",Shelleys Taxis Ltd
Nottinghamshire County Council,1111/1001,Children and Young People,CYP,Transport Related,CCA,25/08/2017,05-15911,800,D G Private Hire Ltd
Nottinghamshire County Council,1111/1001,Children and Young People,CYP,Transport Related,CCA,25/08/2017,05-15912,1020,D G Private Hire Ltd
Nottinghamshire County Council,1111/1001,Children and Young People,CYP,Transport Related,CCA,25/08/2017,05-15913,"1,946.50",Ace Cars
Nottinghamshire County Council,1111/1001,Children and Young People,CYP,Transport Related,CCA,25/08/2017,05-15914,956,Ace Cars
Nottinghamshire County Council,1111/1001,Children and Young People,CYP,Transport Related,CCA,25/08/2017,05-15915,1647,Ace Cars
Nottinghamshire County Council,1111/1001,Children and Young People,CYP,Transport Related,CCA,25/08/2017,05-15916,"1,931.20",Ace Cars
Nottinghamshire County Council,1111/1001,Children and Young People,CYP,Transport Related,CCA,25/08/2017,05-15919,490.5,Forest Cars
Nottinghamshire County Council,1111/1001,Children and Young People,CYP,Transport Related,CDA,04/08/2017,05-12516,595,6 Five 2s
Nottinghamshire County Council,1111/1001,Children and Young People,CYP,Transport Related,CDA,04/08/2017,05-12543,"3,360.00",Johnson Bros Tours Ltd
Nottinghamshire County Council,1111/1001,Children and Young People,CYP,Transport Related,CDA,04/08/2017,05-12544,"1,722.00",Johnson Bros Tours Ltd
Nottinghamshire County Council,1111/1001,Children and Young People,CYP,Transport Related,CDA,04/08/2017,05-12548,300.35,Arrow Specialised Transport Ltd
Nottinghamshire County Council,1111/1001,Children and Young People,CYP,Transport Related,CDA,04/08/2017,05-12631,384.72,Horizon Travel
Nottinghamshire County Council,1111/1001,Children and Young People,CYP,Transport Related,CDA,04/08/2017,05-12647,"2,594.87",Sprays Transport Ltd
Nottinghamshire County Council,1111/1001,Children and Young People,CYP,Transport Related,CDA,04/08/2017,05-12690,2706,AOT Coaches
Nottinghamshire County Council,1111/1001,Children and Young People,CYP,Transport Related,CDA,04/08/2017,05-12691,"1,650.00",AOT Coaches
Nottinghamshire County Council,1111/1001,Children and Young People,CYP,Transport Related,CDA,04/08/2017,05-12695,2791.6,Mass Special Engineering Ltd
Nottinghamshire County Council,1111/1001,Children and Young People,CYP,Transport Related,CDA,04/08/2017,05-12698,2240,Nottingham Minibuses & Coaches
Nottinghamshire County Council,1111/1001,Children and Young People,CYP,Transport Related,CDA,04/08/2017,05-12699,2210,Nottingham Minibuses & Coaches
Nottinghamshire County Council,1111/1001,Children and Young People,CYP,Transport Related,CDA,04/08/2017,05-12700,3049.8,Nottingham Minibuses & Coaches
Nottinghamshire County Council,1111/1001,Children and Young People,CYP,Transport Related,CDA,04/08/2017,05-12701,1615,Nottingham Minibuses & Coaches
Nottinghamshire County Council,1111/1001,Children and Young People,CYP,Transport Related,CDA,04/08/2017,05-12702,2125,Nottingham Minibuses & Coaches
Nottinghamshire County Council,1111/1001,Children and Young People,CYP,Transport Related,CDA,04/08/2017,05-12704,2403.8,Nottingham Minibuses & Coaches
Nottinghamshire County Council,1111/1001,Children and Young People,CYP,Transport Related,CDA,04/08/2017,05-12705,2210,Nottingham Minibuses & Coaches
Nottinghamshire County Council,1111/1001,Children and Young People,CYP,Transport Related,CDA,04/08/2017,05-12707,7808.1,Nottingham Minibuses & Coaches
Nottinghamshire County Council,1111/1001,Children and Young People,CYP,Transport Related,CDA,04/08/2017,05-12723,7518,C W Moxon Ltd
Nottinghamshire County Council,1111/1001,Children and Young People,CYP,Transport Related,CDA,04/08/2017,05-12724,2520,C W Moxon Ltd
Nottinghamshire County Council,1111/1001,Children and Young People,CYP,Transport Related,CDA,09/08/2017,05-12799,948.2,Ace Of Mansfield Ltd
Nottinghamshire County Council,1111/1001,Children and Young People,CYP,Transport Related,CDA,09/08/2017,05-12834,695.33,Bridges Transport Services
Nottinghamshire County Council,1111/1001,Children and Young People,CYP,Transport Related,CDA,09/08/2017,05-12841,696.9,Fozcabs Newark Taxis
Nottinghamshire County Council,1111/1001,Children and Young People,CYP,Transport Related,CDA,09/08/2017,05-12857,945,Ng11 Cars
Nottinghamshire County Council,1111/1001,Children and Young People,CYP,Transport Related,CDA,09/08/2017,05-12859,2424,Ng11 Cars
Nottinghamshire County Council,1111/1001,Children and Young People,CYP,Transport Related,CDA,09/08/2017,05-12884,575,Abacus Cars
Nottinghamshire County Council,1111/1001,Children and Young People,CYP,Transport Related,CDA,09/08/2017,05-12898,336.6,Abacus Cars
Nottinghamshire County Council,1111/1001,Children and Young People,CYP,Transport Related,CDA,09/08/2017,05-12929,4950.4,Marshalls Of Sutton On Trent Ltd
Nottinghamshire County Council,1111/1001,Children and Young People,CYP,Transport Related,CDA,09/08/2017,05-12938,10965,Silverdale Tours Nottm Ltd
Nottinghamshire County Council,1111/1001,Children and Young People,CYP,Transport Related,CDA,09/08/2017,05-12944,1593,Tiger European Uk Ltd
Nottinghamshire County Council,1111/1001,Children and Young People,CYP,Transport Related,CDA,09/08/2017,05-12945,1309,Tiger European Uk Ltd
Nottinghamshire County Council,1111/1001,Children and Young People,CYP,Transport Related,CDA,09/08/2017,05-12960,1440,Travel Wright Ltd
Nottinghamshire County Council,1111/1001,Children and Young People,CYP,Transport Related,CDA,09/08/2017,05-12967,5820.8,Paul S Winson Coaches
Nottinghamshire County Council,1111/1001,Children and Young People,CYP,Transport Related,CDA,09/08/2017,05-12973,526.08,Rio Cabs
Nottinghamshire County Council,1111/1001,Children and Young People,CYP,Transport Related,CDA,09/08/2017,05-12983,792,Forest Cars
Nottinghamshire County Council,1111/1001,Children and Young People,CYP,Transport Related,CDA,09/08/2017,05-12986,408,Forest Cars
Nottinghamshire County Council,1111/1001,Children and Young People,CYP,Transport Related,CDA,09/08/2017,05-12997,422.4,Shiny Sky Ltd T/A A2b Cars
Nottinghamshire County Council,1111/1001,Children and Young People,CYP,Transport Related,CDA,10/08/2017,05-13438,87.24,Southside Cars
Nottinghamshire County Council,1111/1001,Children and Young People,CYP,Transport Related,CDA,10/08/2017,05-13444,304,200 Cars Ltd
Nottinghamshire County Council,1111/1001,Children and Young People,CYP,Transport Related,CDA,10/08/2017,05-13477,281.83,BN Gibson Ltd
Nottinghamshire County Council,1111/1001,Children and Young People,CYP,Transport Related,CDA,10/08/2017,05-13502,2800,Nottingham Minibuses & Coaches
Nottinghamshire County Council,1111/1001,Children and Young People,CYP,Transport Related,CDA,10/08/2017,05-13549,1292,P & P Taxis
Nottinghamshire County Council,1111/1001,Children and Young People,CYP,Transport Related,CDA,10/08/2017,05-13552,1272.6,P & P Taxis
Nottinghamshire County Council,1111/1001,Children and Young People,CYP,Transport Related,CDA,10/08/2017,05-13561,380,Eurocab 2000 Ltd
Nottinghamshire County Council,1111/1001,Children and Young People,CYP,Transport Related,CDA,10/08/2017,05-13563,1439.25,Eurocab 2000 Ltd
Nottinghamshire County Council,1111/1001,Children and Young People,CYP,Transport Related,CDA,10/08/2017,05-13564,1575.6,Eurocab 2000 Ltd
Nottinghamshire County Council,1111/1001,Children and Young People,CYP,Transport Related,CDA,10/08/2017,05-13572,253.5,Ideal Cars (Private Hire) Ltd
Nottinghamshire County Council,1111/1001,Children and Young People,CYP,Transport Related,CDA,11/08/2017,05-13577,918.15,Ace Of Mansfield Ltd
Nottinghamshire County Council,1111/1001,Children and Young People,CYP,Transport Related,CDA,11/08/2017,05-13581,1705,D G Private Hire Ltd
Nottinghamshire County Council,1111/1001,Children and Young People,CYP,Transport Related,CDA,11/08/2017,05-13583,1082.12,D G Private Hire Ltd
Nottinghamshire County Council,1111/1001,Children and Young People,CYP,Transport Related,CDA,11/08/2017,05-13587,550,Abacus Cars
Nottinghamshire County Council,1111/1001,Children and Young People,CYP,Transport Related,CDA,16/08/2017,05-14539,560,6 Five 2s
Nottinghamshire County Council,1111/1001,Children and Young People,CYP,Transport Related,CDA,22/08/2017,05-15768,954.45,Shelleys Taxis Ltd
Nottinghamshire County Council,1111/1001,Children and Young People,CYP,Transport Related,CDA,25/08/2017,05-15917,470,Forest Cars
Nottinghamshire County Council,1111/1001,Children and Young People,CYP,Transport Related,CDA,25/08/2017,05-15919,490.5,Forest Cars
Nottinghamshire County Council,1111/1001,Children and Young People,CYP,Transport Related,CEA,11/08/2017,05-10237,1045.71,Reed Employment Plc
Nottinghamshire County Council,1111/1001,Children and Young People,CYP,Transport Related,CEA,18/08/2017,05-14533,104094.57,Reed Employment Plc
Nottinghamshire County Council,1111/1001,Children and Young People,CYP,Transport Related,CEA,25/08/2017,05-14778,2947.68,Reed Employment Plc
Nottinghamshire County Council,1111/1001,Children and Young People,CYP,Supplies & Services,DAA,01/08/2017,05-10049,38862,Porchester Junior Academy -Flying H
Nottinghamshire County Council,1111/1001,Children and Young People,CYP,Supplies & Services,DEA,01/08/2017,05-16350,875,St Peters C of E Academy
Nottinghamshire County Council,1111/1001,Children and Young People,CYP,Supplies & Services,DEA,01/08/2017,05-16354,3150,[Redacted]
Nottinghamshire County Council,1111/1001,Children and Young People,CYP,Supplies & Services,DEA,02/08/2017,05-10043,875,DavittMedia
Nottinghamshire County Council,1111/1001,Children and Young People,CYP,Supplies & Services,DEA,02/08/2017,05-16321,631.5,Ruth Pearson Training Ltd
Nottinghamshire County Council,1111/1001,Children and Young People,CYP,Supplies & Services,DEA,02/08/2017,05-16324,1800,Kate Cairns Associates Ltd
Nottinghamshire County Council,1111/1001,Children and Young People,CYP,Supplies & Services,DEA,03/08/2017,05-16345,3000,Derby Hospitals NHS Foundation Trus
Nottinghamshire County Council,1111/1001,Children and Young People,CYP,Supplies & Services,DEA,29/08/2017,05-16359,2707.21,Making Waves Ltd
Nottinghamshire County Council,1111/1001,Children and Young People,CYP,Supplies & Services,DFA,14/08/2017,05-14367,551.05,Lantec Services Ltd
Nottinghamshire County Council,1111/1001,Children and Young People,CYP,Supplies & Services,DFA,16/08/2017,05-14525,759.62,Adept Telecom
Nottinghamshire County Council,1111/1001,Children and Young People,CYP,Supplies & Services,DKA,10/08/2017,05-10093,38365,Kirkby Woodhouse Academy School
Nottinghamshire County Council,1111/1001,Children and Young People,CYP,Supplies & Services,DKA,10/08/2017,05-10103,24064,Kirkby Woodhouse Academy School
Nottinghamshire County Council,1111/1001,Children and Young People,CYP,Third Party Payments,EBA,29/08/2017,05-15887,9798.48,East Leake Schools Ltd
Nottinghamshire County Council,1111/1001,Children and Young People,CYP,Third Party Payments,EBA,29/08/2017,05-15888,144019.7,Transform Schools
Nottinghamshire County Council,1111/1001,Children and Young People,CYP,Third Party Payments,EBA,29/08/2017,05-15902,246062.12,East Leake Schools Ltd
Nottinghamshire County Council,1111/1001,Children and Young People,CYP,Third Party Payments,EBA,29/08/2017,05-15903,1491497.71,Transform Schools
Nottinghamshire County Council,1111/1001,Children and Young People,CYP,Third Party Payments,EDA,03/08/2017,05-10029,5689.46,Outwood Academy - Valley
Nottinghamshire County Council,1111/1001,Children and Young People,CYP,Third Party Payments,EDA,03/08/2017,05-10030,1796.67,South Nottinghamshire Academy
Nottinghamshire County Council,1111/1001,Children and Young People,CYP,Third Party Payments,EDA,03/08/2017,05-10031,4103.21,National Church Of England Academy
Nottinghamshire County Council,1111/1001,Children and Young People,CYP,Third Party Payments,EDA,03/08/2017,05-10032,4293.4,Joseph Whittaker Academy
Nottinghamshire County Council,1111/1001,Children and Young People,CYP,Third Party Payments,EDA,03/08/2017,05-10033,5272.66,The Brunts Academy
Nottinghamshire County Council,1111/1001,Children and Young People,CYP,Third Party Payments,EDA,03/08/2017,05-10034,3451.71,The Becket Catholic Voluntary Acade
Nottinghamshire County Council,1111/1001,Children and Young People,CYP,Third Party Payments,EDA,03/08/2017,05-10035,683.87,Sir John Sherbrooke Junior Academy
Nottinghamshire County Council,1111/1001,Children and Young People,CYP,Third Party Payments,EDA,03/08/2017,05-10036,987.36,Robert Miles Junior School
Nottinghamshire County Council,1111/1001,Children and Young People,CYP,Third Party Payments,EDA,03/08/2017,05-10037,4034.42,Outwood Academy Portland
Nottinghamshire County Council,1111/1001,Children and Young People,CYP,Third Party Payments,EDA,03/08/2017,05-10038,1456.76,Kirkby Woodhouse Academy School
Nottinghamshire County Council,1111/1001,Children and Young People,CYP,Third Party Payments,EDA,03/08/2017,05-10039,2108.26,Hall Park Academy
Nottinghamshire County Council,1111/1001,Children and Young People,CYP,Third Party Payments,EDA,03/08/2017,05-10040,1974.72,Fairfield Primary Academy
Nottinghamshire County Council,1111/1001,Children and Young People,CYP,Third Party Payments,EDA,03/08/2017,05-10041,3334.36,East Leake Academy
Nottinghamshire County Council,1111/1001,Children and Young People,CYP,Third Party Payments,EDA,03/08/2017,05-10042,558.42,Archbishop Cranmer C of E Academy
Nottinghamshire County Council,1111/1001,Children and Young People,CYP,Third Party Payments,EDA,22/08/2017,05-14739,6922,Leverton C Of E Academy
Nottinghamshire County Council,1111/1001,Children and Young People,CYP,Third Party Payments,EDA,25/08/2017,05-14547,509,Keyworth Primary & Nursery School
Nottinghamshire County Council,1111/1001,Children and Young People,CYP,Third Party Payments,EDA,31/08/2017,05-15890,16666,The Beech Academy
Nottinghamshire County Council,1111/1001,Children and Young People,CYP,Third Party Payments,EDA,31/08/2017,05-15891,4166,The Beech Academy
Nottinghamshire County Council,1111/1001,Children and Young People,CYP,Third Party Payments,EDA,31/08/2017,05-15892,63064,The Beech Academy
Nottinghamshire County Council,1111/1001,Children and Young People,CYP,Third Party Payments,EDA,31/08/2017,05-15893,16666,The Beech Academy
Nottinghamshire County Council,1111/1001,Children and Young People,CYP,Third Party Payments,EDA,31/08/2017,05-15894,4166,The Beech Academy
Nottinghamshire County Council,1111/1001,Children and Young People,CYP,Third Party Payments,EDA,31/08/2017,05-15895,63064,The Beech Academy
Nottinghamshire County Council,1111/1001,Children and Young People,CYP,Third Party Payments,EDA,31/08/2017,05-15896,4166,The Beech Academy
Nottinghamshire County Council,1111/1001,Children and Young People,CYP,Third Party Payments,EDA,31/08/2017,05-15897,63064,The Beech Academy
Nottinghamshire County Council,1111/1001,Children and Young People,CYP,Third Party Payments,EDA,31/08/2017,05-15898,79537,Foxwood Academy
Nottinghamshire County Council,1111/1001,Children and Young People,CYP,Third Party Payments,EDA,31/08/2017,05-15899,79537,Foxwood Academy
Nottinghamshire County Council,1111/1001,Children and Young People,CYP,Third Party Payments,EDA,31/08/2017,05-15900,79537,Foxwood Academy
Nottinghamshire County Council,1111/1001,Children and Young People,CYP,Third Party Payments,EFA,03/08/2017,05-16340,11595,Lammas School
Nottinghamshire County Council,1111/1001,Children and Young People,CYP,Third Party Payments,EGA,01/08/2017,05-16351,18442.32,Regional Foster Placements Ltd
Nottinghamshire County Council,1111/1001,Children and Young People,CYP,Third Party Payments,EGA,01/08/2017,05-16357,3538.34,Fosterplus Ltd
Nottinghamshire County Council,1111/1001,Children and Young People,CYP,Third Party Payments,EGA,03/08/2017,05-10028,5569.95,Sherwood East Childrens Centre (RNN
Nottinghamshire County Council,1111/1001,Children and Young People,CYP,Third Party Payments,EGA,03/08/2017,05-16338,12642.85,Total Care Matters Ltd
Nottinghamshire County Council,1111/1001,Children and Young People,CYP,Third Party Payments,EGA,04/08/2017,05-16358,903407.67,Nottinghamshire Healthcare Nhs F Tr
Nottinghamshire County Council,1111/1001,Children and Young People,CYP,Third Party Payments,EGA,08/08/2017,05-12764,3216.45,Hickory House Day Nursery
Nottinghamshire County Council,1111/1001,Children and Young People,CYP,Third Party Payments,EGA,11/08/2017,05-16375,23368.42,"Culture, Learning & Libraries (Midl"
Nottinghamshire County Council,1111/1001,Children and Young People,CYP,Third Party Payments,EGA,31/08/2017,05-16084,5588.28,Kimberley Pre-School Playgroup
Nottinghamshire County Council,1111/1001,Children and Young People,CYP,Third Party Payments,EGA,31/08/2017,05-16085,13203.89,Killisick Pre-School
Nottinghamshire County Council,1111/1001,Children and Young People,CYP,Third Party Payments,EGA,31/08/2017,05-16086,10247.4,Kidzgrove
Nottinghamshire County Council,1111/1001,Children and Young People,CYP,Third Party Payments,EGA,31/08/2017,05-16087,750.6,[Redacted]
Nottinghamshire County Council,1111/1001,Children and Young People,CYP,Third Party Payments,EGA,31/08/2017,05-16088,525.42,[Redacted]
Nottinghamshire County Council,1111/1001,Children and Young People,CYP,Third Party Payments,EGA,31/08/2017,05-16089,9941.22,Jumacare Ltd T/A Church House Nurse
Nottinghamshire County Council,1111/1001,Children and Young People,CYP,Third Party Payments,EGA,31/08/2017,05-16090,2731.5,Jubilee House Christian School
Nottinghamshire County Council,1111/1001,Children and Young People,CYP,Third Party Payments,EGA,31/08/2017,05-16091,750.6,Jo's Childminding Services
Nottinghamshire County Council,1111/1001,Children and Young People,CYP,Third Party Payments,EGA,31/08/2017,05-16092,550.44,[Redacted]
Nottinghamshire County Council,1111/1001,Children and Young People,CYP,Third Party Payments,EGA,31/08/2017,05-16093,846,[Redacted]
Nottinghamshire County Council,1111/1001,Children and Young People,CYP,Third Party Payments,EGA,31/08/2017,05-16094,2067.3,Jesters Childcare Ltd
Nottinghamshire County Council,1111/1001,Children and Young People,CYP,Third Party Payments,EGA,31/08/2017,05-16095,1316.7,Jammie Dodgers Childminding Group
Nottinghamshire County Council,1111/1001,Children and Young People,CYP,Third Party Payments,EGA,31/08/2017,05-16096,3032.88,Inham Park Pre School Playgroup
Nottinghamshire County Council,1111/1001,Children and Young People,CYP,Third Party Payments,EGA,31/08/2017,05-16097,11754,Hucknall Pre-School Playgroup
Nottinghamshire County Council,1111/1001,Children and Young People,CYP,Third Party Payments,EGA,31/08/2017,05-16098,11926.8,Hucknall Day Nursery
Nottinghamshire County Council,1111/1001,Children and Young People,CYP,Third Party Payments,EGA,31/08/2017,05-16099,3285.45,Horsendale Playgroup
Nottinghamshire County Council,1111/1001,Children and Young People,CYP,Third Party Payments,EGA,31/08/2017,05-16100,5129.1,Honey Pot Day Private Day Nursery L
Nottinghamshire County Council,1111/1001,Children and Young People,CYP,Third Party Payments,EGA,31/08/2017,05-16101,6516.18,Homestead Day Nursery Ltd
Nottinghamshire County Council,1111/1001,Children and Young People,CYP,Third Party Payments,EGA,31/08/2017,05-16102,14596.53,Leos Childrens Nurseries Ltd
Nottinghamshire County Council,1111/1001,Children and Young People,CYP,Third Party Payments,EGA,31/08/2017,05-16103,17342.1,Little Bears Day Nursery
Nottinghamshire County Council,1111/1001,Children and Young People,CYP,Third Party Payments,EGA,31/08/2017,05-16104,7742.85,Little Beans Childcare Ltd
Nottinghamshire County Council,1111/1001,Children and Young People,CYP,Third Party Payments,EGA,31/08/2017,05-16105,7226.1,Little Acorns Shireoaks
Nottinghamshire County Council,1111/1001,Children and Young People,CYP,Third Party Payments,EGA,31/08/2017,05-16106,846,Little Acorns Childminding
Nottinghamshire County Council,1111/1001,Children and Young People,CYP,Third Party Payments,EGA,31/08/2017,05-16107,8763.3,Leo's Childrens Nurseries Ltd
Nottinghamshire County Council,1111/1001,Children and Young People,CYP,Third Party Payments,EGA,31/08/2017,05-16108,24422.46,Leen Mills Pre School Playgroup
Nottinghamshire County Council,1111/1001,Children and Young People,CYP,Third Party Payments,EGA,31/08/2017,05-16109,4150.8,Lambley Day Nursery Ltd
Nottinghamshire County Council,1111/1001,Children and Young People,CYP,Third Party Payments,EGA,31/08/2017,05-16110,846,Ladybird Childminding
Nottinghamshire County Council,1111/1001,Children and Young People,CYP,Third Party Payments,EGA,31/08/2017,05-16111,6875.82,Lady Bay Pre School Playgroup
Nottinghamshire County Council,1111/1001,Children and Young People,CYP,Third Party Payments,EGA,31/08/2017,05-16112,1688.85,Kneesall Pre School Playgroup
Nottinghamshire County Council,1111/1001,Children and Young People,CYP,Third Party Payments,EGA,31/08/2017,05-16113,725.58,[Redacted]
Nottinghamshire County Council,1111/1001,Children and Young People,CYP,Third Party Payments,EGA,31/08/2017,05-16114,11419.2,Kingfisher Day Nursery
Nottinghamshire County Council,1111/1001,Children and Young People,CYP,Third Party Payments,EGA,31/08/2017,05-16115,9123.9,Learning Ladder Childcare Ltd
Nottinghamshire County Council,1111/1001,Children and Young People,CYP,Third Party Payments,EGA,31/08/2017,05-16116,6530.22,Leahurst Road Pre-School
Nottinghamshire County Council,1111/1001,Children and Young People,CYP,Third Party Payments,EGA,31/08/2017,05-16117,8219.7,Hollies Day Nurseries
Nottinghamshire County Council,1111/1001,Children and Young People,CYP,Third Party Payments,EGA,31/08/2017,05-16118,14749.74,Hollies Day Nurseries Limited
Nottinghamshire County Council,1111/1001,Children and Young People,CYP,Third Party Payments,EGA,31/08/2017,05-16119,600.48,[Redacted]
Nottinghamshire County Council,1111/1001,Children and Young People,CYP,Third Party Payments,EGA,31/08/2017,05-16120,10947.06,Highfields School & Nursery
Nottinghamshire County Council,1111/1001,Children and Young People,CYP,Third Party Payments,EGA,31/08/2017,05-16121,8631,Hickory House Day Nursery
Nottinghamshire County Council,1111/1001,Children and Young People,CYP,Third Party Payments,EGA,31/08/2017,05-16122,2039.13,Hickling Pre-School
Nottinghamshire County Council,1111/1001,Children and Young People,CYP,Third Party Payments,EGA,31/08/2017,05-16123,7853.4,Hazel Hurst School
Nottinghamshire County Council,1111/1001,Children and Young People,CYP,Third Party Payments,EGA,31/08/2017,05-16124,4273.74,Haywood Road Pre-School Playgroup
Nottinghamshire County Council,1111/1001,Children and Young People,CYP,Third Party Payments,EGA,31/08/2017,05-16125,10720.8,Happy Days Childcare Services Ltd
Nottinghamshire County Council,1111/1001,Children and Young People,CYP,Third Party Payments,EGA,31/08/2017,05-16126,13402.8,Granby House Nursery
Nottinghamshire County Council,1111/1001,Children and Young People,CYP,Third Party Payments,EGA,31/08/2017,05-16127,941.4,[Redacted]
Nottinghamshire County Council,1111/1001,Children and Young People,CYP,Third Party Payments,EGA,31/08/2017,05-16128,5915.7,Gognas Day Nursery Ltd
Nottinghamshire County Council,1111/1001,Children and Young People,CYP,Third Party Payments,EGA,31/08/2017,05-16129,500.4,[Redacted]
Nottinghamshire County Council,1111/1001,Children and Young People,CYP,Third Party Payments,EGA,31/08/2017,05-16130,1927.35,[Redacted]
Nottinghamshire County Council,1111/1001,Children and Young People,CYP,Third Party Payments,EGA,31/08/2017,05-16131,802.8,[Redacted]
Nottinghamshire County Council,1111/1001,Children and Young People,CYP,Third Party Payments,EGA,31/08/2017,05-16132,1316.7,[Redacted]
Nottinghamshire County Council,1111/1001,Children and Young People,CYP,Third Party Payments,EGA,31/08/2017,05-16133,550.44,[Redacted]
Nottinghamshire County Council,1111/1001,Children and Young People,CYP,Third Party Payments,EGA,31/08/2017,05-16134,5334,Netherfield Pre School Ltd
Nottinghamshire County Council,1111/1001,Children and Young People,CYP,Third Party Payments,EGA,31/08/2017,05-16135,2677.14,Misson Pre-School
Nottinghamshire County Council,1111/1001,Children and Young People,CYP,Third Party Payments,EGA,31/08/2017,05-16136,5349.6,Millfield Nursery School
Nottinghamshire County Council,1111/1001,Children and Young People,CYP,Third Party Payments,EGA,31/08/2017,05-16137,5254.2,Mapperley Day Nursery
Nottinghamshire County Council,1111/1001,Children and Young People,CYP,Third Party Payments,EGA,31/08/2017,05-16138,941.4,Luans Little Stars
Nottinghamshire County Council,1111/1001,Children and Young People,CYP,Third Party Payments,EGA,31/08/2017,05-16139,8755.02,Luan's Little People
Nottinghamshire County Council,1111/1001,Children and Young People,CYP,Third Party Payments,EGA,31/08/2017,05-16140,8421.12,Lowdham & Epperstone Pre-School
Nottinghamshire County Council,1111/1001,Children and Young People,CYP,Third Party Payments,EGA,31/08/2017,05-16141,7503.48,Lowater Street Playgroup
Nottinghamshire County Council,1111/1001,Children and Young People,CYP,Third Party Payments,EGA,31/08/2017,05-16142,8617.87,Longdale Nursery School
Nottinghamshire County Council,1111/1001,Children and Young People,CYP,Third Party Payments,EGA,31/08/2017,05-16143,3377.7,Pea Pod Day Nursery Ltd
Nottinghamshire County Council,1111/1001,Children and Young People,CYP,Third Party Payments,EGA,31/08/2017,05-16144,35921.3,Papermoon Day Nursery Sutton In Ash
Nottinghamshire County Council,1111/1001,Children and Young People,CYP,Third Party Payments,EGA,31/08/2017,05-16145,4787.28,Noahs Ark Playgroup
Nottinghamshire County Council,1111/1001,Children and Young People,CYP,Third Party Payments,EGA,31/08/2017,05-16146,600.48,N H Childminding
Nottinghamshire County Council,1111/1001,Children and Young People,CYP,Third Party Payments,EGA,31/08/2017,05-16147,16571.7,Papermoon Day Nursery
Nottinghamshire County Council,1111/1001,Children and Young People,CYP,Third Party Payments,EGA,31/08/2017,05-16148,17571.75,Papermoon Day Nursery
Nottinghamshire County Council,1111/1001,Children and Young People,CYP,Third Party Payments,EGA,31/08/2017,05-16149,14324.2,Papermoon Day Nursery
Nottinghamshire County Council,1111/1001,Children and Young People,CYP,Third Party Payments,EGA,31/08/2017,05-16150,4766.31,Orchard School Nursery
Nottinghamshire County Council,1111/1001,Children and Young People,CYP,Third Party Payments,EGA,31/08/2017,05-16151,5231.34,Old Cooperative Day Nursery
Nottinghamshire County Council,1111/1001,Children and Young People,CYP,Third Party Payments,EGA,31/08/2017,05-16152,22030.2,Oceans Day Nursery
Nottinghamshire County Council,1111/1001,Children and Young People,CYP,Third Party Payments,EGA,31/08/2017,05-16153,10699.2,Nurseryworld & Friends Nursery & Pr
Nottinghamshire County Council,1111/1001,Children and Young People,CYP,Third Party Payments,EGA,31/08/2017,05-16154,5193.81,North Muskham Playgroup
Nottinghamshire County Council,1111/1001,Children and Young People,CYP,Third Party Payments,EGA,31/08/2017,05-16155,846,Little Tots
Nottinghamshire County Council,1111/1001,Children and Young People,CYP,Third Party Payments,EGA,31/08/2017,05-16156,12542.85,Little Oaks Nursery
Nottinghamshire County Council,1111/1001,Children and Young People,CYP,Third Party Payments,EGA,31/08/2017,05-16157,21620.29,Little Nippers Pre-School
Nottinghamshire County Council,1111/1001,Children and Young People,CYP,Third Party Payments,EGA,31/08/2017,05-16158,10997.31,Little Millers Day Nursery
Nottinghamshire County Council,1111/1001,Children and Young People,CYP,Third Party Payments,EGA,31/08/2017,05-16159,11477.7,Little Lambs Day Nursery
Nottinghamshire County Council,1111/1001,Children and Young People,CYP,Third Party Payments,EGA,31/08/2017,05-16160,6859.56,Little Kites Playgroup
Nottinghamshire County Council,1111/1001,Children and Young People,CYP,Third Party Payments,EGA,31/08/2017,05-16161,5599.8,Little Friends Day Nursery
Nottinghamshire County Council,1111/1001,Children and Young People,CYP,Third Party Payments,EGA,31/08/2017,05-16164,750.6,[Redacted]
Nottinghamshire County Council,1111/1001,Children and Young People,CYP,Third Party Payments,EGA,31/08/2017,05-16165,1116.54,[Redacted]
Nottinghamshire County Council,1111/1001,Children and Young People,CYP,Third Party Payments,EGA,31/08/2017,05-16166,846,[Redacted]
Nottinghamshire County Council,1111/1001,Children and Young People,CYP,Third Party Payments,EGA,31/08/2017,05-16167,8111.97,Pippins Pre-School
Nottinghamshire County Council,1111/1001,Children and Young People,CYP,Third Party Payments,EGA,31/08/2017,05-16168,1583.04,[Redacted]
Nottinghamshire County Council,1111/1001,Children and Young People,CYP,Third Party Payments,EGA,31/08/2017,05-16169,13707.9,Phoenix Park Nursery
Nottinghamshire County Council,1111/1001,Children and Young People,CYP,Third Party Payments,EGA,31/08/2017,05-16170,4002.3,Penguin Palace Nursery CIC
Nottinghamshire County Council,1111/1001,Children and Young People,CYP,Third Party Payments,EGA,31/08/2017,05-16171,8510.14,PSLA Newstead Childcare (HO)
Nottinghamshire County Council,1111/1001,Children and Young People,CYP,Third Party Payments,EGA,31/08/2017,05-16172,2728.8,PSLA Newstead Childcare (HO)
Nottinghamshire County Council,1111/1001,Children and Young People,CYP,Third Party Payments,EGA,31/08/2017,05-16173,2774.7,PSLA Newstead Childcare (HO)
Nottinghamshire County Council,1111/1001,Children and Young People,CYP,Third Party Payments,EGA,31/08/2017,05-16174,12065.52,PSLA Newstead Childcare (HO)
Nottinghamshire County Council,1111/1001,Children and Young People,CYP,Third Party Payments,EGA,31/08/2017,05-16175,9427.83,PSLA Newstead Childcare (HO)
Nottinghamshire County Council,1111/1001,Children and Young People,CYP,Third Party Payments,EGA,31/08/2017,05-16176,1125.9,Rachel & Philip's Home From Home Ch
Nottinghamshire County Council,1111/1001,Children and Young People,CYP,Third Party Payments,EGA,31/08/2017,05-16177,5915.7,North Leverton Pre-School Playgroup
Nottinghamshire County Council,1111/1001,Children and Young People,CYP,Third Party Payments,EGA,31/08/2017,05-16178,625.5,[Redacted]
Nottinghamshire County Council,1111/1001,Children and Young People,CYP,Third Party Payments,EGA,31/08/2017,05-16179,22525.48,The Orchard Day Nursery
Nottinghamshire County Council,1111/1001,Children and Young People,CYP,Third Party Payments,EGA,31/08/2017,05-16180,525.42,[Redacted]
Nottinghamshire County Council,1111/1001,Children and Young People,CYP,Third Party Payments,EGA,31/08/2017,05-16181,1368.9,[Redacted]
Nottinghamshire County Council,1111/1001,Children and Young People,CYP,Third Party Payments,EGA,31/08/2017,05-16182,1033.02,[Redacted]
Nottinghamshire County Council,1111/1001,Children and Young People,CYP,Third Party Payments,EGA,31/08/2017,05-16183,846,Sunrayz Childcare
Nottinghamshire County Council,1111/1001,Children and Young People,CYP,Third Party Payments,EGA,31/08/2017,05-16184,3156.3,[Redacted]
Nottinghamshire County Council,1111/1001,Children and Young People,CYP,Third Party Payments,EGA,31/08/2017,05-16185,1501.2,[Redacted]
Nottinghamshire County Council,1111/1001,Children and Young People,CYP,Third Party Payments,EGA,31/08/2017,05-16186,1376.1,[Redacted]
Nottinghamshire County Council,1111/1001,Children and Young People,CYP,Third Party Payments,EGA,31/08/2017,05-16187,13295.7,All Aboard Nursery Ltd
Nottinghamshire County Council,1111/1001,Children and Young People,CYP,Third Party Payments,EGA,31/08/2017,05-16188,11840.91,All Saints C Of E Primary School
Nottinghamshire County Council,1111/1001,Children and Young People,CYP,Third Party Payments,EGA,31/08/2017,05-16189,2627.1,Allsorts Playgroup
Nottinghamshire County Council,1111/1001,Children and Young People,CYP,Third Party Payments,EGA,31/08/2017,05-16190,4039.2,Alphabet House Day Nursery (Chilwel
Nottinghamshire County Council,1111/1001,Children and Young People,CYP,Third Party Payments,EGA,31/08/2017,05-16191,7719.3,Alphabet House Day Nursery
Nottinghamshire County Council,1111/1001,Children and Young People,CYP,Third Party Payments,EGA,31/08/2017,05-16192,4068.9,Alphabet House Day Nursery
Nottinghamshire County Council,1111/1001,Children and Young People,CYP,Third Party Payments,EGA,31/08/2017,05-16193,5632.65,Alphabet House Day Nursery WB
Nottinghamshire County Council,1111/1001,Children and Young People,CYP,Third Party Payments,EGA,31/08/2017,05-16194,13192.88,Alphabet House Day Nursery Worksop
Nottinghamshire County Council,1111/1001,Children and Young People,CYP,Third Party Payments,EGA,31/08/2017,05-16195,10530.9,Alphabet House Nursery
Nottinghamshire County Council,1111/1001,Children and Young People,CYP,Third Party Payments,EGA,31/08/2017,05-16196,4223.7,Angels With Dirty Faces Day Nursery
Nottinghamshire County Council,1111/1001,Children and Young People,CYP,Third Party Payments,EGA,31/08/2017,05-16197,19894.05,Applegarth Day Nurseries Ltd
Nottinghamshire County Council,1111/1001,Children and Young People,CYP,Third Party Payments,EGA,31/08/2017,05-16198,14545.8,Arnold House Day Nursery
Nottinghamshire County Council,1111/1001,Children and Young People,CYP,Third Party Payments,EGA,31/08/2017,05-16199,5633.28,Arnold St Mary's Pre-School
Nottinghamshire County Council,1111/1001,Children and Young People,CYP,Third Party Payments,EGA,31/08/2017,05-16200,2099.16,Arnold View Pre-School
Nottinghamshire County Council,1111/1001,Children and Young People,CYP,Third Party Payments,EGA,31/08/2017,05-16201,9013.5,Ashfield Plaza Day Nursery
Nottinghamshire County Council,1111/1001,Children and Young People,CYP,Third Party Payments,EGA,31/08/2017,05-16202,10380.2,Attenborough Church Pre-School
Nottinghamshire County Council,1111/1001,Children and Young People,CYP,Third Party Payments,EGA,31/08/2017,05-16203,10652.72,Attenborough Day Nursery & Pre-Sch
Nottinghamshire County Council,1111/1001,Children and Young People,CYP,Third Party Payments,EGA,31/08/2017,05-16204,10800.9,Aunty Sue's Day Care Ltd
Nottinghamshire County Council,1111/1001,Children and Young People,CYP,Third Party Payments,EGA,31/08/2017,05-16205,6606.9,Awsworth Schoolhouse Day Nursery
Nottinghamshire County Council,1111/1001,Children and Young People,CYP,Third Party Payments,EGA,31/08/2017,05-16206,13379.4,Balderton Pre-School
Nottinghamshire County Council,1111/1001,Children and Young People,CYP,Third Party Payments,EGA,31/08/2017,05-16207,6820.2,Balderton Village Day Nursery
Nottinghamshire County Council,1111/1001,Children and Young People,CYP,Third Party Payments,EGA,31/08/2017,05-16208,11080.8,Beacon Hill Day Nursery
Nottinghamshire County Council,1111/1001,Children and Young People,CYP,Third Party Payments,EGA,31/08/2017,05-16209,9265.5,Beeston Nursery
Nottinghamshire County Council,1111/1001,Children and Young People,CYP,Third Party Payments,EGA,31/08/2017,05-16210,5679.54,Bingham Day Nursery & Pre School
Nottinghamshire County Council,1111/1001,Children and Young People,CYP,Third Party Payments,EGA,31/08/2017,05-16211,9328.14,Bircotes Pre-School
Nottinghamshire County Council,1111/1001,Children and Young People,CYP,Third Party Payments,EGA,31/08/2017,05-16212,13293.6,Bizzy Kidz
Nottinghamshire County Council,1111/1001,Children and Young People,CYP,Third Party Payments,EGA,31/08/2017,05-16213,6250.32,Bramcote Pre-School Playgroup
Nottinghamshire County Council,1111/1001,Children and Young People,CYP,Third Party Payments,EGA,31/08/2017,05-16214,2925,Bramley Pips Nursery Ltd
Nottinghamshire County Council,1111/1001,Children and Young People,CYP,Third Party Payments,EGA,31/08/2017,05-16215,6317.55,Breedon House Nurseries Ltd
Nottinghamshire County Council,1111/1001,Children and Young People,CYP,Third Party Payments,EGA,31/08/2017,05-16216,22473.9,Breedon House Nurseries Ltd
Nottinghamshire County Council,1111/1001,Children and Young People,CYP,Third Party Payments,EGA,31/08/2017,05-16217,9332,Bright Sparks Day Nursery
Nottinghamshire County Council,1111/1001,Children and Young People,CYP,Third Party Payments,EGA,31/08/2017,05-16218,7979.85,Bright Stars Childcare
Nottinghamshire County Council,1111/1001,Children and Young People,CYP,Third Party Payments,EGA,31/08/2017,05-16219,11699.1,Brooklyn Day Nursery
Nottinghamshire County Council,1111/1001,Children and Young People,CYP,Third Party Payments,EGA,31/08/2017,05-16220,15733.8,Busy Bees (Daybrook)
Nottinghamshire County Council,1111/1001,Children and Young People,CYP,Third Party Payments,EGA,31/08/2017,05-16221,11134.32,Buttercross Pre School
Nottinghamshire County Council,1111/1001,Children and Young People,CYP,Third Party Payments,EGA,31/08/2017,05-16222,7446.6,Butterflies Nursery (West Notts Col
Nottinghamshire County Council,1111/1001,Children and Young People,CYP,Third Party Payments,EGA,31/08/2017,05-16223,846,C3 Childcare Childminding Service
Nottinghamshire County Council,1111/1001,Children and Young People,CYP,Third Party Payments,EGA,31/08/2017,05-16224,12473.5,Cared 4 Ltd T/A Brookhill House Day
Nottinghamshire County Council,1111/1001,Children and Young People,CYP,Third Party Payments,EGA,31/08/2017,05-16225,17814.6,Carlton & Gedling Day Nursery
Nottinghamshire County Council,1111/1001,Children and Young People,CYP,Third Party Payments,EGA,31/08/2017,05-16226,7152.3,Carlton Preschool Playgroup
Nottinghamshire County Council,1111/1001,Children and Young People,CYP,Third Party Payments,EGA,31/08/2017,05-16227,2538,Carousel Under 5'S Playgroup
Nottinghamshire County Council,1111/1001,Children and Young People,CYP,Third Party Payments,EGA,31/08/2017,05-16228,846,[Redacted]
Nottinghamshire County Council,1111/1001,Children and Young People,CYP,Third Party Payments,EGA,31/08/2017,05-16229,750.6,[Redacted]
Nottinghamshire County Council,1111/1001,Children and Young People,CYP,Third Party Payments,EGA,31/08/2017,05-16230,9052.56,Cedar House Day Nursery
Nottinghamshire County Council,1111/1001,Children and Young People,CYP,Third Party Payments,EGA,31/08/2017,05-16231,750.6,[Redacted]
Nottinghamshire County Council,1111/1001,Children and Young People,CYP,Third Party Payments,EGA,31/08/2017,05-16232,1571.58,Cheeky Monkeys Childminding
Nottinghamshire County Council,1111/1001,Children and Young People,CYP,Third Party Payments,EGA,31/08/2017,05-16233,7857,Cheeky Monkeys Day Nursery
Nottinghamshire County Council,1111/1001,Children and Young People,CYP,Third Party Payments,EGA,31/08/2017,05-16234,17522.55,Cherubs Childcare Centre (Mansfield
Nottinghamshire County Council,1111/1001,Children and Young People,CYP,Third Party Payments,EGA,31/08/2017,05-16235,17832.15,Cherubs Childcare Centre Ladybrook
Nottinghamshire County Council,1111/1001,Children and Young People,CYP,Third Party Payments,EGA,31/08/2017,05-16236,9165.24,Cherubs Childrens Centre Pleasley
Nottinghamshire County Council,1111/1001,Children and Young People,CYP,Third Party Payments,EGA,31/08/2017,05-16237,19275.64,Cherubs Childrens Centre Wynndale
Nottinghamshire County Council,1111/1001,Children and Young People,CYP,Third Party Payments,EGA,31/08/2017,05-16238,35590.41,Cherubs Day Nursery
Nottinghamshire County Council,1111/1001,Children and Young People,CYP,Third Party Payments,EGA,31/08/2017,05-16239,11675.7,Cherubs Ryton Park
Nottinghamshire County Council,1111/1001,Children and Young People,CYP,Third Party Payments,EGA,31/08/2017,05-16240,11729.7,Children 1st @ Breedon House
Nottinghamshire County Council,1111/1001,Children and Young People,CYP,Third Party Payments,EGA,31/08/2017,05-16241,12726,Children 1st @ Newark Centre
Nottinghamshire County Council,1111/1001,Children and Young People,CYP,Third Party Payments,EGA,31/08/2017,05-16242,9293.4,Childrens Corner Day Nursery
Nottinghamshire County Council,1111/1001,Children and Young People,CYP,Third Party Payments,EGA,31/08/2017,05-16243,7749,Childrens House Childcare Ltd
Nottinghamshire County Council,1111/1001,Children and Young People,CYP,Third Party Payments,EGA,31/08/2017,05-16244,5838.08,Christchurch Hall Pre-School Playgr
Nottinghamshire County Council,1111/1001,Children and Young People,CYP,Third Party Payments,EGA,31/08/2017,05-16245,11234.7,Claremont Early Years Ltd
Nottinghamshire County Council,1111/1001,Children and Young People,CYP,Third Party Payments,EGA,31/08/2017,05-16246,7151.04,Collingham & District Pre-School
Nottinghamshire County Council,1111/1001,Children and Young People,CYP,Third Party Payments,EGA,31/08/2017,05-16247,4105.44,Colwick Pre School Playgroup
Nottinghamshire County Council,1111/1001,Children and Young People,CYP,Third Party Payments,EGA,31/08/2017,05-16248,2574.9,Costock Pre School
Nottinghamshire County Council,1111/1001,Children and Young People,CYP,Third Party Payments,EGA,31/08/2017,05-16249,16027.2,Coteswood House School
Nottinghamshire County Council,1111/1001,Children and Young People,CYP,Third Party Payments,EGA,31/08/2017,05-16250,2913.3,Country Kids Day Nursery
Nottinghamshire County Council,1111/1001,Children and Young People,CYP,Third Party Payments,EGA,31/08/2017,05-16251,2347.2,Crossdale Busy Bees Pre-School
Nottinghamshire County Council,1111/1001,Children and Young People,CYP,Third Party Payments,EGA,31/08/2017,05-16252,9345.6,Daisies Day Nursery
Nottinghamshire County Council,1111/1001,Children and Young People,CYP,Third Party Payments,EGA,31/08/2017,05-16253,7182.9,Daisies Day Nursery
Nottinghamshire County Council,1111/1001,Children and Young People,CYP,Third Party Payments,EGA,31/08/2017,05-16254,15268.96,Discovery Day Nursery
Nottinghamshire County Council,1111/1001,Children and Young People,CYP,Third Party Payments,EGA,31/08/2017,05-16255,6990.18,Duncroft Day Nursery Ltd
Nottinghamshire County Council,1111/1001,Children and Young People,CYP,Third Party Payments,EGA,31/08/2017,05-16256,5470.86,Early Learners Centre Day Nursery
Nottinghamshire County Council,1111/1001,Children and Young People,CYP,Third Party Payments,EGA,31/08/2017,05-16257,8852.04,Early Years Playgroup
Nottinghamshire County Council,1111/1001,Children and Young People,CYP,Third Party Payments,EGA,31/08/2017,05-16258,14913.18,East Leake Day Nursery & Pre-School
Nottinghamshire County Council,1111/1001,Children and Young People,CYP,Third Party Payments,EGA,31/08/2017,05-16259,8782.44,East Leake Pre-School Playgroup
Nottinghamshire County Council,1111/1001,Children and Young People,CYP,Third Party Payments,EGA,31/08/2017,05-16260,1730.55,Edwalton Day Nursery
Nottinghamshire County Council,1111/1001,Children and Young People,CYP,Third Party Payments,EGA,31/08/2017,05-16261,7131.39,Farnsfield Pre-School
Nottinghamshire County Council,1111/1001,Children and Young People,CYP,Third Party Payments,EGA,31/08/2017,05-16262,19726,Fernwood Day Nursery Ltd
Nottinghamshire County Council,1111/1001,Children and Young People,CYP,Third Party Payments,EGA,31/08/2017,05-16263,6340.68,Fledglings Playgroup
Nottinghamshire County Council,1111/1001,Children and Young People,CYP,Third Party Payments,EGA,31/08/2017,05-16264,17827.2,Fun Farm Day Nursery
Nottinghamshire County Council,1111/1001,Children and Young People,CYP,Third Party Payments,EGA,31/08/2017,05-16265,9588.6,Good Foundations Day Nursery
Nottinghamshire County Council,1111/1001,Children and Young People,CYP,Third Party Payments,EGA,31/08/2017,05-16266,7371.18,Good Shepherd Pre-School
Nottinghamshire County Council,1111/1001,Children and Young People,CYP,Third Party Payments,EGA,31/08/2017,05-16267,8731.16,Gotham Pre-School Playgroup
Nottinghamshire County Council,1111/1001,Children and Young People,CYP,Third Party Payments,EGA,31/08/2017,05-16268,1125.9,[Redacted]
Nottinghamshire County Council,1111/1001,Children and Young People,CYP,Third Party Payments,EGA,31/08/2017,05-16269,1692,[Redacted]
Nottinghamshire County Council,1111/1001,Children and Young People,CYP,Third Party Payments,EGA,31/08/2017,05-16270,846,Kates Childminding Services
Nottinghamshire County Council,1111/1001,Children and Young People,CYP,Third Party Payments,EGA,31/08/2017,05-16271,863.2,[Redacted]
Nottinghamshire County Council,1111/1001,Children and Young People,CYP,Third Party Payments,EGA,31/08/2017,05-16272,941.4,[Redacted]
Nottinghamshire County Council,1111/1001,Children and Young People,CYP,Third Party Payments,EGA,31/08/2017,05-16273,1501.2,[Redacted]
Nottinghamshire County Council,1111/1001,Children and Young People,CYP,Third Party Payments,EGA,31/08/2017,05-16274,725.58,Little House Of Horrors
Nottinghamshire County Council,1111/1001,Children and Young People,CYP,Third Party Payments,EGA,31/08/2017,05-16275,750.6,Little Seedlings
Nottinghamshire County Council,1111/1001,Children and Young People,CYP,Third Party Payments,EGA,31/08/2017,05-16276,564.84,[Redacted]
Nottinghamshire County Council,1111/1001,Children and Young People,CYP,Third Party Payments,EGA,31/08/2017,05-16277,1501.2,Mini-me Childcare
Nottinghamshire County Council,1111/1001,Children and Young People,CYP,Third Party Payments,EGA,31/08/2017,05-16278,4937.4,Pretty Windows Ltd
Nottinghamshire County Council,1111/1001,Children and Young People,CYP,Third Party Payments,EGA,31/08/2017,05-16279,6534,[Redacted]
Nottinghamshire County Council,1111/1001,Children and Young People,CYP,Third Party Payments,EGA,31/08/2017,05-16280,750.6,Ruthies Childcare
Nottinghamshire County Council,1111/1001,Children and Young People,CYP,Third Party Payments,EGA,31/08/2017,05-16281,675.54,[Redacted]
Nottinghamshire County Council,1111/1001,Children and Young People,CYP,Third Party Payments,EGA,31/08/2017,05-16282,2685.6,[Redacted]
Nottinghamshire County Council,1111/1001,Children and Young People,CYP,Third Party Payments,EGA,31/08/2017,05-16283,846,[Redacted]
Nottinghamshire County Council,1111/1001,Children and Young People,CYP,Third Party Payments,EGA,31/08/2017,05-16284,10884.8,St Peter's Early Years
Nottinghamshire County Council,1111/1001,Children and Young People,CYP,Third Party Payments,EGA,31/08/2017,05-16285,846,The Cornerhouse Childminding
Nottinghamshire County Council,1111/1001,Children and Young People,CYP,Third Party Payments,EGA,31/08/2017,05-16286,1376.1,[Redacted]
Nottinghamshire County Council,1111/1001,Children and Young People,CYP,Third Party Payments,EGA,31/08/2017,05-16287,3493.44,PSLA Newstead Childcare (HO)
Nottinghamshire County Council,1111/1001,Children and Young People,CYP,Third Party Payments,EGA,31/08/2017,05-16290,18123.83,Carnarvon Pre-School
Nottinghamshire County Council,1111/1001,Children and Young People,CYP,Third Party Payments,EGA,31/08/2017,05-16291,7781.22,Worksop College
Nottinghamshire County Council,1111/1001,Children and Young People,CYP,Third Party Payments,EGA,31/08/2017,05-16292,18817.2,Woodthorpe Day Nursery Ltd
Nottinghamshire County Council,1111/1001,Children and Young People,CYP,Third Party Payments,EGA,31/08/2017,05-16293,5652.44,Woodborough Village Pre School
Nottinghamshire County Council,1111/1001,Children and Young People,CYP,Third Party Payments,EGA,31/08/2017,05-16294,13951.98,Westbourne House Nursery School
Nottinghamshire County Council,1111/1001,Children and Young People,CYP,Third Party Payments,EGA,31/08/2017,05-16295,17307.67,Westdale Pre-School
Nottinghamshire County Council,1111/1001,Children and Young People,CYP,Third Party Payments,EGA,31/08/2017,05-16296,1692,[Redacted]
Nottinghamshire County Council,1111/1001,Children and Young People,CYP,Third Party Payments,EGA,31/08/2017,05-16297,2633.4,[Redacted]
Nottinghamshire County Council,1111/1001,Children and Young People,CYP,Third Party Payments,EGA,31/08/2017,05-16298,5176.44,West Street Pre-School
Nottinghamshire County Council,1111/1001,Children and Young People,CYP,Third Party Payments,EGA,31/08/2017,05-16299,7100.1,Mulberry Bush Day Nursery
Nottinghamshire County Council,1111/1001,Children and Young People,CYP,Third Party Payments,EGA,31/08/2017,05-16300,8469,PSLA Newstead Childcare (HO)
Nottinghamshire County Council,1111/1001,Children and Young People,CYP,Third Party Payments,EGA,31/08/2017,05-16301,1829.21,Willoughby On The Wolds Playgroup
Nottinghamshire County Council,1111/1001,Children and Young People,CYP,Third Party Payments,EGA,31/08/2017,05-16302,3114.99,Willow Brook Pre-School
Nottinghamshire County Council,1111/1001,Children and Young People,CYP,Third Party Payments,EGA,31/08/2017,05-16303,9231.12,Willow Pre-School Playgroup
Nottinghamshire County Council,1111/1001,Children and Young People,CYP,Third Party Payments,EGA,31/08/2017,05-16304,4353.48,Windmill Kindergarten Playgroup
Nottinghamshire County Council,1111/1001,Children and Young People,CYP,Third Party Payments,EGA,31/08/2017,05-16305,9284.25,Wishing Well Day Nursery
Nottinghamshire County Council,1111/1001,Children and Young People,CYP,Third Party Payments,EGA,31/08/2017,05-16306,2722.5,Wolds Day Nursery @ Stragglethorpe
Nottinghamshire County Council,1111/1001,Children and Young People,CYP,Third Party Payments,EGA,31/08/2017,05-16307,10366.74,Wollaton Village Day Nurseries
Nottinghamshire County Council,1111/1001,Children and Young People,CYP,Third Party Payments,EGA,31/08/2017,05-16308,24885.2,Wollaton Village Day Nurseries Ltd.
Nottinghamshire County Council,1111/1001,Children and Young People,CYP,Third Party Payments,EGA,31/08/2017,05-16309,1412.1,[Redacted]
Nottinghamshire County Council,1111/1001,Children and Young People,CYP,Third Party Payments,EGA,31/08/2017,05-16310,8937,Zoes Childcare Ltd
Nottinghamshire County Council,1111/1001,Children and Young People,CYP,Third Party Payments,EGA,31/08/2017,05-16311,11190.66,Zoe's Childcare Ltd
Nottinghamshire County Council,1111/1001,Children and Young People,CYP,Third Party Payments,EGA,31/08/2017,05-16312,1368.9,[Redacted]
Nottinghamshire County Council,1111/1001,Children and Young People,CYP,Third Party Payments,EGA,31/08/2017,05-16313,7135.8,Young Rascals Day Nursery
Nottinghamshire County Council,1111/1001,Children and Young People,CYP,Third Party Payments,EGA,31/08/2017,05-16314,9007.2,West Bridgford Out Of School Care L
Nottinghamshire County Council,1111/1001,Children and Young People,CYP,Third Party Payments,EGA,31/08/2017,05-16315,7506,Wellow House School
Nottinghamshire County Council,1111/1001,Children and Young People,CYP,Third Party Payments,EGA,31/08/2017,05-16316,12809.08,Weaverthorpe Pre-School Playgroup
Nottinghamshire County Council,1111/1001,Children and Young People,CYP,Third Party Payments,EGA,31/08/2017,05-16317,625.5,[Redacted]
Nottinghamshire County Council,1111/1001,Children and Young People,CYP,Third Party Payments,EGA,31/08/2017,05-16318,4140.24,Watnall Pre-School Playgroup
Nottinghamshire County Council,1111/1001,Children and Young People,CYP,Third Party Payments,EGA,31/08/2017,05-16319,4899.24,Walesby School Playgroup
Nottinghamshire County Council,1111/1001,Children and Young People,CYP,Support Services,HAA,04/08/2017,05-12516,595,6 Five 2s
Nottinghamshire County Council,1111/1001,Children and Young People,CYP,Support Services,HAA,04/08/2017,05-12525,1360,All Wayz Travel
Nottinghamshire County Council,1111/1001,Children and Young People,CYP,Support Services,HAA,04/08/2017,05-12526,"1,530.00",All Wayz Travel
Nottinghamshire County Council,1111/1001,Children and Young People,CYP,Support Services,HAA,04/08/2017,05-12539,"3,123.50",Johnson Bros Tours Ltd
Nottinghamshire County Council,1111/1001,Children and Young People,CYP,Support Services,HAA,04/08/2017,05-12540,"3,464.50",Johnson Bros Tours Ltd
Nottinghamshire County Council,1111/1001,Children and Young People,CYP,Support Services,HAA,04/08/2017,05-12541,14625,Johnson Bros Tours Ltd
Nottinghamshire County Council,1111/1001,Children and Young People,CYP,Support Services,HAA,04/08/2017,05-12542,16427,Johnson Bros Tours Ltd
Nottinghamshire County Council,1111/1001,Children and Young People,CYP,Support Services,HAA,04/08/2017,05-12545,"1,545.30",Wrights Coaches
Nottinghamshire County Council,1111/1001,Children and Young People,CYP,Support Services,HAA,04/08/2017,05-12688,1837.75,AOT Coaches
Nottinghamshire County Council,1111/1001,Children and Young People,CYP,Support Services,HAA,04/08/2017,05-12689,"2,385.00",AOT Coaches
Nottinghamshire County Council,1111/1001,Children and Young People,CYP,Support Services,HAA,04/08/2017,05-12692,2235,AOT Coaches
Nottinghamshire County Council,1111/1001,Children and Young People,CYP,Support Services,HAA,04/08/2017,05-12693,2062,AOT Coaches
Nottinghamshire County Council,1111/1001,Children and Young People,CYP,Support Services,HAA,04/08/2017,05-12694,2208,Garys Coaches Ltd
Nottinghamshire County Council,1111/1001,Children and Young People,CYP,Support Services,HAA,04/08/2017,05-12696,1122,Meden Travel
Nottinghamshire County Council,1111/1001,Children and Young People,CYP,Support Services,HAA,04/08/2017,05-12703,2497.28,Nottingham Minibuses & Coaches
Nottinghamshire County Council,1111/1001,Children and Young People,CYP,Support Services,HAA,04/08/2017,05-12706,"1,678.75",Nottingham Minibuses & Coaches
Nottinghamshire County Council,1111/1001,Children and Young People,CYP,Support Services,HAA,04/08/2017,05-12710,"5,851.50",Freeway Coaches Ltd
Nottinghamshire County Council,1111/1001,Children and Young People,CYP,Support Services,HAA,04/08/2017,05-12711,2290.5,Freeway Coaches Ltd
Nottinghamshire County Council,1111/1001,Children and Young People,CYP,Support Services,HAA,04/08/2017,05-12712,"2,172.00",Freeway Coaches Ltd
Nottinghamshire County Council,1111/1001,Children and Young People,CYP,Support Services,HAA,04/08/2017,05-12713,2054.5,Freeway Coaches Ltd
Nottinghamshire County Council,1111/1001,Children and Young People,CYP,Support Services,HAA,04/08/2017,05-12714,"2,938.50",Freeway Coaches Ltd
Nottinghamshire County Council,1111/1001,Children and Young People,CYP,Support Services,HAA,04/08/2017,05-12715,"1,326.00",Freeway Coaches Ltd
Nottinghamshire County Council,1111/1001,Children and Young People,CYP,Support Services,HAA,04/08/2017,05-12716,3060,Kettlewell Retford Ltd
Nottinghamshire County Council,1111/1001,Children and Young People,CYP,Support Services,HAA,04/08/2017,05-12717,"6,181.20",Kettlewell Retford Ltd
Nottinghamshire County Council,1111/1001,Children and Young People,CYP,Support Services,HAA,04/08/2017,05-12718,"2,805.00",Kettlewell Retford Ltd
Nottinghamshire County Council,1111/1001,Children and Young People,CYP,Support Services,HAA,04/08/2017,05-12719,"2,805.00",Kettlewell Retford Ltd
Nottinghamshire County Council,1111/1001,Children and Young People,CYP,Support Services,HAA,04/08/2017,05-12720,2091,Kettlewell Retford Ltd
Nottinghamshire County Council,1111/1001,Children and Young People,CYP,Support Services,HAA,04/08/2017,05-12721,3830.6,Kettlewell Retford Ltd
Nottinghamshire County Council,1111/1001,Children and Young People,CYP,Support Services,HAA,04/08/2017,05-12722,5625,C W Moxon Ltd
Nottinghamshire County Council,1111/1001,Children and Young People,CYP,Support Services,HAA,04/08/2017,05-12725,"7,892.00",C W Moxon Ltd
Nottinghamshire County Council,1111/1001,Children and Young People,CYP,Support Services,HAA,04/08/2017,05-12739,"2,558.50",Nottingham Coaches
Nottinghamshire County Council,1111/1001,Children and Young People,CYP,Support Services,HAA,04/08/2017,05-12740,"2,054.00",Nottingham Coaches
Nottinghamshire County Council,1111/1001,Children and Young People,CYP,Support Services,HAA,04/08/2017,05-12741,2670.5,Nottingham Coaches
Nottinghamshire County Council,1111/1001,Children and Young People,CYP,Support Services,HAA,04/08/2017,05-12742,4797.5,Nottingham Coaches
Nottinghamshire County Council,1111/1001,Children and Young People,CYP,Support Services,HAA,04/08/2017,05-12743,2290.5,Nottingham Coaches
Nottinghamshire County Council,1111/1001,Children and Young People,CYP,Support Services,HAA,04/08/2017,05-12744,1716,Nottingham Coaches
Nottinghamshire County Council,1111/1001,Children and Young People,CYP,Support Services,HAA,04/08/2017,05-12747,"1,296.25",A2B Licensed Taxis
Nottinghamshire County Council,1111/1001,Children and Young People,CYP,Support Services,HAA,04/08/2017,05-12749,2104.47,Hammonds Coaches Ltd
Nottinghamshire County Council,1111/1001,Children and Young People,CYP,Support Services,HAA,04/08/2017,05-12750,"1,407.00",Hammonds Coaches Ltd
Nottinghamshire County Council,1111/1001,Children and Young People,CYP,Support Services,HAA,04/08/2017,05-12751,"1,309.00",Cocktail Travel T/A Unity Coaches L
Nottinghamshire County Council,1111/1001,Children and Young People,CYP,Support Services,HAA,04/08/2017,05-12752,1710,Cocktail Travel T/A Unity Coaches L
Nottinghamshire County Council,1111/1001,Children and Young People,CYP,Support Services,HAA,04/08/2017,05-12753,1500,Cocktail Travel T/A Unity Coaches L
Nottinghamshire County Council,1111/1001,Children and Young People,CYP,Support Services,HAA,09/08/2017,05-12780,2411.94,Sharpes Of Nottingham
Nottinghamshire County Council,1111/1001,Children and Young People,CYP,Support Services,HAA,09/08/2017,05-12781,2509.95,Sharpes Of Nottingham
Nottinghamshire County Council,1111/1001,Children and Young People,CYP,Support Services,HAA,09/08/2017,05-12782,2589.95,Sharpes Of Nottingham
Nottinghamshire County Council,1111/1001,Children and Young People,CYP,Support Services,HAA,09/08/2017,05-12783,2430.95,Sharpes Of Nottingham
Nottinghamshire County Council,1111/1001,Children and Young People,CYP,Support Services,HAA,09/08/2017,05-12784,2567.45,Sharpes Of Nottingham
Nottinghamshire County Council,1111/1001,Children and Young People,CYP,Support Services,HAA,09/08/2017,05-12785,"2,589.95",Sharpes Of Nottingham
Nottinghamshire County Council,1111/1001,Children and Young People,CYP,Support Services,HAA,09/08/2017,05-12786,"4,711.90",Sharpes Of Nottingham
Nottinghamshire County Council,1111/1001,Children and Young People,CYP,Support Services,HAA,09/08/2017,05-12787,2589.95,Sharpes Of Nottingham
Nottinghamshire County Council,1111/1001,Children and Young People,CYP,Support Services,HAA,09/08/2017,05-12788,2437.6,Sharpes Of Nottingham
Nottinghamshire County Council,1111/1001,Children and Young People,CYP,Support Services,HAA,09/08/2017,05-12789,2589.78,Sharpes Of Nottingham
Nottinghamshire County Council,1111/1001,Children and Young People,CYP,Support Services,HAA,09/08/2017,05-12790,2477.75,Sharpes Of Nottingham
Nottinghamshire County Council,1111/1001,Children and Young People,CYP,Support Services,HAA,09/08/2017,05-12796,4021.95,Glenn Ryder Coaches
Nottinghamshire County Council,1111/1001,Children and Young People,CYP,Support Services,HAA,09/08/2017,05-12839,1650,Fozcabs Newark Taxis
Nottinghamshire County Council,1111/1001,Children and Young People,CYP,Support Services,HAA,09/08/2017,05-12851,2290.5,Lowes Coaches Ltd
Nottinghamshire County Council,1111/1001,Children and Young People,CYP,Support Services,HAA,09/08/2017,05-12852,2240,Lowes Coaches Ltd
Nottinghamshire County Council,1111/1001,Children and Young People,CYP,Support Services,HAA,09/08/2017,05-12853,"1,979.00",Lowes Coaches Ltd
Nottinghamshire County Council,1111/1001,Children and Young People,CYP,Support Services,HAA,09/08/2017,05-12854,693.6,Ng11 Cars
Nottinghamshire County Council,1111/1001,Children and Young People,CYP,Support Services,HAA,09/08/2017,05-12860,850,Ng11 Cars
Nottinghamshire County Council,1111/1001,Children and Young People,CYP,Support Services,HAA,09/08/2017,05-12884,575,Abacus Cars
Nottinghamshire County Council,1111/1001,Children and Young People,CYP,Support Services,HAA,09/08/2017,05-12898,336.6,Abacus Cars
Nottinghamshire County Council,1111/1001,Children and Young People,CYP,Support Services,HAA,09/08/2017,05-12906,"2,400.00",Gem Mini Travel Ltd
Nottinghamshire County Council,1111/1001,Children and Young People,CYP,Support Services,HAA,09/08/2017,05-12907,2629.5,Gem Mini Travel Ltd
Nottinghamshire County Council,1111/1001,Children and Young People,CYP,Support Services,HAA,09/08/2017,05-12908,2477.5,Gem Mini Travel Ltd
Nottinghamshire County Council,1111/1001,Children and Young People,CYP,Support Services,HAA,09/08/2017,05-12909,"2,385.50",Gem Mini Travel Ltd
Nottinghamshire County Council,1111/1001,Children and Young People,CYP,Support Services,HAA,09/08/2017,05-12913,1887,K & R Cars
Nottinghamshire County Council,1111/1001,Children and Young People,CYP,Support Services,HAA,09/08/2017,05-12914,1591.8,Marshalls Of Sutton On Trent Ltd
Nottinghamshire County Council,1111/1001,Children and Young People,CYP,Support Services,HAA,09/08/2017,05-12921,"2,611.35",Marshalls Of Sutton On Trent Ltd
Nottinghamshire County Council,1111/1001,Children and Young People,CYP,Support Services,HAA,09/08/2017,05-12923,"2,550.00",Marshalls Of Sutton On Trent Ltd
Nottinghamshire County Council,1111/1001,Children and Young People,CYP,Support Services,HAA,09/08/2017,05-12925,1986.81,Marshalls Of Sutton On Trent Ltd
Nottinghamshire County Council,1111/1001,Children and Young People,CYP,Support Services,HAA,09/08/2017,05-12928,"3,111.00",Marshalls Of Sutton On Trent Ltd
Nottinghamshire County Council,1111/1001,Children and Young People,CYP,Support Services,HAA,09/08/2017,05-12931,"2,543.82",Silverdale Tours Nottm Ltd
Nottinghamshire County Council,1111/1001,Children and Young People,CYP,Support Services,HAA,09/08/2017,05-12932,2616.2,Silverdale Tours Nottm Ltd
Nottinghamshire County Council,1111/1001,Children and Young People,CYP,Support Services,HAA,09/08/2017,05-12933,2344.4,Silverdale Tours Nottm Ltd
Nottinghamshire County Council,1111/1001,Children and Young People,CYP,Support Services,HAA,09/08/2017,05-12934,2166.8,Silverdale Tours Nottm Ltd
Nottinghamshire County Council,1111/1001,Children and Young People,CYP,Support Services,HAA,09/08/2017,05-12935,"2,385.00",Silverdale Tours Nottm Ltd
Nottinghamshire County Council,1111/1001,Children and Young People,CYP,Support Services,HAA,09/08/2017,05-12936,2564.8,Silverdale Tours Nottm Ltd
Nottinghamshire County Council,1111/1001,Children and Young People,CYP,Support Services,HAA,09/08/2017,05-12937,2685.3,Silverdale Tours Nottm Ltd
Nottinghamshire County Council,1111/1001,Children and Young People,CYP,Support Services,HAA,09/08/2017,05-12939,10115.5,Tiger European Uk Ltd
Nottinghamshire County Council,1111/1001,Children and Young People,CYP,Support Services,HAA,09/08/2017,05-12940,3315,Tiger European Uk Ltd
Nottinghamshire County Council,1111/1001,Children and Young People,CYP,Support Services,HAA,09/08/2017,05-12941,2295,Tiger European Uk Ltd
Nottinghamshire County Council,1111/1001,Children and Young People,CYP,Support Services,HAA,09/08/2017,05-12942,"3,073.43",Tiger European Uk Ltd
Nottinghamshire County Council,1111/1001,Children and Young People,CYP,Support Services,HAA,09/08/2017,05-12943,"3,315.00",Tiger European Uk Ltd
Nottinghamshire County Council,1111/1001,Children and Young People,CYP,Support Services,HAA,09/08/2017,05-12946,"10,198.50",Travel Wright Ltd
Nottinghamshire County Council,1111/1001,Children and Young People,CYP,Support Services,HAA,09/08/2017,05-12948,2047.92,Travel Wright Ltd
Nottinghamshire County Council,1111/1001,Children and Young People,CYP,Support Services,HAA,09/08/2017,05-12951,"2,040.00",Travel Wright Ltd
Nottinghamshire County Council,1111/1001,Children and Young People,CYP,Support Services,HAA,09/08/2017,05-12957,2871.3,Travel Wright Ltd
Nottinghamshire County Council,1111/1001,Children and Young People,CYP,Support Services,HAA,09/08/2017,05-12958,"2,021.30",Travel Wright Ltd
Nottinghamshire County Council,1111/1001,Children and Young People,CYP,Support Services,HAA,09/08/2017,05-12961,"6,840.35",Travel Wright Ltd
Nottinghamshire County Council,1111/1001,Children and Young People,CYP,Support Services,HAA,09/08/2017,05-12963,400.03,Travel Wright Ltd
Nottinghamshire County Council,1111/1001,Children and Young People,CYP,Support Services,HAA,09/08/2017,05-12965,7990,Wilfreda Beehive
Nottinghamshire County Council,1111/1001,Children and Young People,CYP,Support Services,HAA,09/08/2017,05-12968,833,Paul S Winson Coaches
Nottinghamshire County Council,1111/1001,Children and Young People,CYP,Support Services,HAA,09/08/2017,05-12969,888,Rio Cabs
Nottinghamshire County Council,1111/1001,Children and Young People,CYP,Support Services,HAA,09/08/2017,05-12972,1088,Rio Cabs
Nottinghamshire County Council,1111/1001,Children and Young People,CYP,Support Services,HAA,09/08/2017,05-12977,3310.02,Isle Coaches
Nottinghamshire County Council,1111/1001,Children and Young People,CYP,Support Services,HAA,09/08/2017,05-12986,408,Forest Cars
Nottinghamshire County Council,1111/1001,Children and Young People,CYP,Support Services,HAA,09/08/2017,05-12995,800,Shiny Sky Ltd T/A A2b Cars
Nottinghamshire County Council,1111/1001,Children and Young People,CYP,Support Services,HAA,09/08/2017,05-13007,706.87,Shiny Sky Ltd T/A A2b Cars
Nottinghamshire County Council,1111/1001,Children and Young People,CYP,Support Services,HAA,10/08/2017,05-13444,304,200 Cars Ltd
Nottinghamshire County Council,1111/1001,Children and Young People,CYP,Support Services,HAA,10/08/2017,05-13446,561,200 Cars Ltd
Nottinghamshire County Council,1111/1001,Children and Young People,CYP,Support Services,HAA,10/08/2017,05-13447,2125,Arnold Acorn Travel
Nottinghamshire County Council,1111/1001,Children and Young People,CYP,Support Services,HAA,10/08/2017,05-13449,1360,Acorn Contracts
Nottinghamshire County Council,1111/1001,Children and Young People,CYP,Support Services,HAA,10/08/2017,05-13498,"1,858.55",Jb Tours Watnall Ltd
Nottinghamshire County Council,1111/1001,Children and Young People,CYP,Support Services,HAA,10/08/2017,05-13499,1855.4,Jb Tours Watnall Ltd
Nottinghamshire County Council,1111/1001,Children and Young People,CYP,Support Services,HAA,10/08/2017,05-13500,"2,345.95",Jb Tours Watnall Ltd
Nottinghamshire County Council,1111/1001,Children and Young People,CYP,Support Services,HAA,10/08/2017,05-13501,"2,217.00",Jb Tours Watnall Ltd
Nottinghamshire County Council,1111/1001,Children and Young People,CYP,Support Services,HAA,10/08/2017,05-13504,3926.32,Stagecoach Services Ltd
Nottinghamshire County Council,1111/1001,Children and Young People,CYP,Support Services,HAA,10/08/2017,05-13509,1351.5,Stagecoach Services Ltd
Nottinghamshire County Council,1111/1001,Children and Young People,CYP,Support Services,HAA,10/08/2017,05-13510,"2,726.38",Stagecoach Services Ltd
Nottinghamshire County Council,1111/1001,Children and Young People,CYP,Support Services,HAA,10/08/2017,05-13513,4174.6,Stagecoach Services Ltd
Nottinghamshire County Council,1111/1001,Children and Young People,CYP,Support Services,HAA,10/08/2017,05-13515,3043,Stagecoach Services Ltd
Nottinghamshire County Council,1111/1001,Children and Young People,CYP,Support Services,HAA,10/08/2017,05-13516,4573,Stagecoach Services Ltd
Nottinghamshire County Council,1111/1001,Children and Young People,CYP,Support Services,HAA,10/08/2017,05-13525,"4,184.36",Stagecoach Services Ltd
Nottinghamshire County Council,1111/1001,Children and Young People,CYP,Support Services,HAA,10/08/2017,05-13535,"4,643.89",Stagecoach Services Ltd
Nottinghamshire County Council,1111/1001,Children and Young People,CYP,Support Services,HAA,10/08/2017,05-13538,"4,915.10",Stagecoach Services Ltd
Nottinghamshire County Council,1111/1001,Children and Young People,CYP,Support Services,HAA,10/08/2017,05-13539,4876.75,Stagecoach Services Ltd
Nottinghamshire County Council,1111/1001,Children and Young People,CYP,Support Services,HAA,10/08/2017,05-13540,5788.38,Stagecoach Services Ltd
Nottinghamshire County Council,1111/1001,Children and Young People,CYP,Support Services,HAA,10/08/2017,05-13543,"1,351.50",Stagecoach Services Ltd
Nottinghamshire County Council,1111/1001,Children and Young People,CYP,Support Services,HAA,10/08/2017,05-13544,2412.81,Stagecoach Services Ltd
Nottinghamshire County Council,1111/1001,Children and Young People,CYP,Support Services,HAA,10/08/2017,05-13546,"3,213.00",Stagecoach Services Ltd
Nottinghamshire County Council,1111/1001,Children and Young People,CYP,Support Services,HAA,10/08/2017,05-13547,3043,Stagecoach Services Ltd
Nottinghamshire County Council,1111/1001,Children and Young People,CYP,Support Services,HAA,10/08/2017,05-13553,1387.37,P & P Taxis
Nottinghamshire County Council,1111/1001,Children and Young People,CYP,Support Services,HAA,10/08/2017,05-13560,1600,Broadsword Cars
Nottinghamshire County Council,1111/1001,Children and Young People,CYP,Support Services,HAA,10/08/2017,05-13568,1559.68,Community Transport for Town & Coun
Nottinghamshire County Council,1111/1001,Children and Young People,CYP,Support Services,HAA,10/08/2017,05-13572,253.5,Ideal Cars (Private Hire) Ltd
Nottinghamshire County Council,1111/1001,Children and Young People,CYP,Support Services,HAA,11/08/2017,05-13579,850,D G Private Hire Ltd
Nottinghamshire County Council,1111/1001,Children and Young People,CYP,Support Services,HAA,11/08/2017,05-13584,605.4,D G Private Hire Ltd
Nottinghamshire County Council,1111/1001,Children and Young People,CYP,Support Services,HAA,11/08/2017,05-13587,550,Abacus Cars
Nottinghamshire County Council,1111/1001,Children and Young People,CYP,Support Services,HAA,11/08/2017,05-13591,"10,077.60",Tiger European Uk Ltd
Nottinghamshire County Council,1111/1001,Children and Young People,CYP,Support Services,HAA,18/08/2017,05-14721,1785,Travel Liner
Nottinghamshire County Council,1111/1001,Children and Young People,CYP,Support Services,HAA,25/08/2017,05-15917,470,Forest Cars
Nottinghamshire County Council,1111/1001,Adult Social Care and Health,ASCH,Premises Related,BAA,01/08/2017,05-10050,559.5,Helping Hands (Notts) Ltd
Nottinghamshire County Council,1111/1001,Adult Social Care and Health,ASCH,Premises Related,BAA,01/08/2017,05-10051,653,Helping Hands (Notts) Ltd
Nottinghamshire County Council,1111/1001,Adult Social Care and Health,ASCH,Premises Related,BAA,04/08/2017,05-10250,20.51,ARC Property Services Partnership L
Nottinghamshire County Council,1111/1001,Adult Social Care and Health,ASCH,Premises Related,BAA,04/08/2017,05-10255,"6,412.65",ARC Property Services Partnership L
Nottinghamshire County Council,1111/1001,Adult Social Care and Health,ASCH,Premises Related,BAA,14/08/2017,05-14360,693.5,Groundwork Creswell Ashf & Mansf
Nottinghamshire County Council,1111/1001,Adult Social Care and Health,ASCH,Premises Related,BAA,14/08/2017,05-14361,548,Harveys Home & Garden Maintenance
Nottinghamshire County Council,1111/1001,Adult Social Care and Health,ASCH,Premises Related,BAA,14/08/2017,05-14362,522.5,ELF  Property Care
Nottinghamshire County Council,1111/1001,Adult Social Care and Health,ASCH,Premises Related,BAA,16/08/2017,05-14532,725,Cw Plumbing Heating & Gas Services
Nottinghamshire County Council,1111/1001,Adult Social Care and Health,ASCH,Premises Related,BAA,21/08/2017,05-14746,"3,288.93",ARC Property Services Partnership L
Nottinghamshire County Council,1111/1001,Adult Social Care and Health,ASCH,Premises Related,BAA,21/08/2017,05-14754,"2,793.03",ARC Property Services Partnership L
Nottinghamshire County Council,1111/1001,Adult Social Care and Health,ASCH,Premises Related,BAA,21/08/2017,05-14759,"1,213.08",ARC Property Services Partnership L
Nottinghamshire County Council,1111/1001,Adult Social Care and Health,ASCH,Premises Related,BAA,21/08/2017,05-14762,25.04,ARC Property Services Partnership L
Nottinghamshire County Council,1111/1001,Adult Social Care and Health,ASCH,Premises Related,BAA,21/08/2017,05-14765,9697.1,ARC Property Services Partnership L
Nottinghamshire County Council,1111/1001,Adult Social Care and Health,ASCH,Premises Related,BAA,21/08/2017,05-14772,696.81,ARC Property Services Partnership L
Nottinghamshire County Council,1111/1001,Adult Social Care and Health,ASCH,Premises Related,BAA,22/08/2017,05-15775,909.5,Helping Hands (Notts) Ltd
Nottinghamshire County Council,1111/1001,Adult Social Care and Health,ASCH,Premises Related,BAA,29/08/2017,05-15931,510,Plumtree Park Property Services
Nottinghamshire County Council,1111/1001,Adult Social Care and Health,ASCH,Premises Related,BAA,29/08/2017,05-15932,729,Helping Hands (Notts) Ltd
Nottinghamshire County Council,1111/1001,Adult Social Care and Health,ASCH,Premises Related,BAA,29/08/2017,05-15933,504,Helping Hands (Notts) Ltd
Nottinghamshire County Council,1111/1001,Adult Social Care and Health,ASCH,Transport Related,CAA,08/08/2017,05-12765,"5,638.86",Via East Midlands Ltd
Nottinghamshire County Council,1111/1001,Adult Social Care and Health,ASCH,Transport Related,CAA,14/08/2017,05-14351,5388.5,Via East Midlands Ltd
Nottinghamshire County Council,1111/1001,Adult Social Care and Health,ASCH,Transport Related,CAA,25/08/2017,05-15923,9453.37,Via East Midlands Ltd
Nottinghamshire County Council,1111/1001,Adult Social Care and Health,ASCH,Transport Related,CBA,09/08/2017,05-12797,3413.8,Johnson Bros Tours Ltd
Nottinghamshire County Council,1111/1001,Adult Social Care and Health,ASCH,Transport Related,CBA,09/08/2017,05-12874,3423.2,Vallances Coaches
Nottinghamshire County Council,1111/1001,Adult Social Care and Health,ASCH,Transport Related,CBA,09/08/2017,05-12966,2403.8,Aj Travel
Nottinghamshire County Council,1111/1001,Adult Social Care and Health,ASCH,Transport Related,CBA,10/08/2017,05-13488,959.9,BN Gibson Ltd
Nottinghamshire County Council,1111/1001,Adult Social Care and Health,ASCH,Transport Related,CBA,10/08/2017,05-13569,2525,Community Transport for Town & Coun
Nottinghamshire County Council,1111/1001,Adult Social Care and Health,ASCH,Transport Related,CBA,10/08/2017,05-13570,"3,030.00",Community Transport for Town & Coun
Nottinghamshire County Council,1111/1001,Adult Social Care and Health,ASCH,Transport Related,CCA,04/08/2017,05-12586,"1,520.48",Arrow Specialised Transport Ltd
Nottinghamshire County Council,1111/1001,Adult Social Care and Health,ASCH,Transport Related,CDA,04/08/2017,05-12527,1674.2,F4Control Ltd (t/a First4care)
Nottinghamshire County Council,1111/1001,Adult Social Care and Health,ASCH,Transport Related,CDA,04/08/2017,05-12586,760.12,Arrow Specialised Transport Ltd
Nottinghamshire County Council,1111/1001,Adult Social Care and Health,ASCH,Transport Related,CDA,04/08/2017,05-12596,463.52,Arrow Specialised Transport Ltd
Nottinghamshire County Council,1111/1001,Adult Social Care and Health,ASCH,Transport Related,CDA,04/08/2017,05-12598,135.68,Arrow Specialised Transport Ltd
Nottinghamshire County Council,1111/1001,Adult Social Care and Health,ASCH,Transport Related,CDA,04/08/2017,05-12600,213.76,Arrow Specialised Transport Ltd
Nottinghamshire County Council,1111/1001,Adult Social Care and Health,ASCH,Transport Related,CDA,04/08/2017,05-12608,2394,Arrow Specialised Transport Ltd
Nottinghamshire County Council,1111/1001,Adult Social Care and Health,ASCH,Transport Related,CDA,04/08/2017,05-12629,2263.8,Hawkins Taxis & Transport
Nottinghamshire County Council,1111/1001,Adult Social Care and Health,ASCH,Transport Related,CDA,04/08/2017,05-12649,1244.32,F4Control Ltd (t/a First4care)
Nottinghamshire County Council,1111/1001,Adult Social Care and Health,ASCH,Transport Related,CDA,04/08/2017,05-12655,41.85,F4Control Ltd (t/a First4care)
Nottinghamshire County Council,1111/1001,Adult Social Care and Health,ASCH,Transport Related,CDA,04/08/2017,05-12657,653.98,F4Control Ltd (t/a First4care)
Nottinghamshire County Council,1111/1001,Adult Social Care and Health,ASCH,Transport Related,CDA,04/08/2017,05-12659,"1,041.79",F4Control Ltd (t/a First4care)
Nottinghamshire County Council,1111/1001,Adult Social Care and Health,ASCH,Transport Related,CDA,04/08/2017,05-12661,170.68,F4Control Ltd (t/a First4care)
Nottinghamshire County Council,1111/1001,Adult Social Care and Health,ASCH,Transport Related,CDA,04/08/2017,05-12663,181.81,F4Control Ltd (t/a First4care)
Nottinghamshire County Council,1111/1001,Adult Social Care and Health,ASCH,Transport Related,CDA,04/08/2017,05-12668,"2,850.12",F4Control Ltd (t/a First4care)
Nottinghamshire County Council,1111/1001,Adult Social Care and Health,ASCH,Transport Related,CDA,04/08/2017,05-12669,698.76,F4Control Ltd (t/a First4care)
Nottinghamshire County Council,1111/1001,Adult Social Care and Health,ASCH,Transport Related,CDA,04/08/2017,05-12670,2451.33,F4Control Ltd (t/a First4care)
Nottinghamshire County Council,1111/1001,Adult Social Care and Health,ASCH,Transport Related,CDA,09/08/2017,05-12793,599.32,Central Cars Nottm Ltd
Nottinghamshire County Council,1111/1001,Adult Social Care and Health,ASCH,Transport Related,CDA,09/08/2017,05-12801,729.12,Ace Of Mansfield Ltd
Nottinghamshire County Council,1111/1001,Adult Social Care and Health,ASCH,Transport Related,CDA,09/08/2017,05-12802,550.8,Ace Of Mansfield Ltd
Nottinghamshire County Council,1111/1001,Adult Social Care and Health,ASCH,Transport Related,CDA,09/08/2017,05-12807,"2,184.17",Alpha Cars
Nottinghamshire County Council,1111/1001,Adult Social Care and Health,ASCH,Transport Related,CDA,09/08/2017,05-12808,"1,640.00",Alpha Cars
Nottinghamshire County Council,1111/1001,Adult Social Care and Health,ASCH,Transport Related,CDA,09/08/2017,05-12810,3283.8,Bridges Transport Services
Nottinghamshire County Council,1111/1001,Adult Social Care and Health,ASCH,Transport Related,CDA,09/08/2017,05-12811,"2,028.60",Bridges Transport Services
Nottinghamshire County Council,1111/1001,Adult Social Care and Health,ASCH,Transport Related,CDA,09/08/2017,05-12812,832.48,Bridges Transport Services
Nottinghamshire County Council,1111/1001,Adult Social Care and Health,ASCH,Transport Related,CDA,09/08/2017,05-12813,1311.03,Bridges Transport Services
Nottinghamshire County Council,1111/1001,Adult Social Care and Health,ASCH,Transport Related,CDA,09/08/2017,05-12814,1165.28,Bridges Transport Services
Nottinghamshire County Council,1111/1001,Adult Social Care and Health,ASCH,Transport Related,CDA,09/08/2017,05-12816,3168.27,Bridges Transport Services
Nottinghamshire County Council,1111/1001,Adult Social Care and Health,ASCH,Transport Related,CDA,09/08/2017,05-12817,561.6,Bridges Transport Services
Nottinghamshire County Council,1111/1001,Adult Social Care and Health,ASCH,Transport Related,CDA,09/08/2017,05-12837,1272.6,Bridges Transport Services
Nottinghamshire County Council,1111/1001,Adult Social Care and Health,ASCH,Transport Related,CDA,09/08/2017,05-12838,1964.03,Bridges Transport Services
Nottinghamshire County Council,1111/1001,Adult Social Care and Health,ASCH,Transport Related,CDA,09/08/2017,05-12840,525.2,Fozcabs Newark Taxis
Nottinghamshire County Council,1111/1001,Adult Social Care and Health,ASCH,Transport Related,CDA,09/08/2017,05-12844,1787.7,Fozcabs Newark Taxis
Nottinghamshire County Council,1111/1001,Adult Social Care and Health,ASCH,Transport Related,CDA,09/08/2017,05-12845,999.9,Galaxy Cabs Ltd
Nottinghamshire County Council,1111/1001,Adult Social Care and Health,ASCH,Transport Related,CDA,09/08/2017,05-12855,525.2,Ng11 Cars
Nottinghamshire County Council,1111/1001,Adult Social Care and Health,ASCH,Transport Related,CDA,09/08/2017,05-12865,"1,151.40",Shelleys Taxis Ltd
Nottinghamshire County Council,1111/1001,Adult Social Care and Health,ASCH,Transport Related,CDA,09/08/2017,05-12872,663.6,Carlton Cars Ltd T/A Trent Cars
Nottinghamshire County Council,1111/1001,Adult Social Care and Health,ASCH,Transport Related,CDA,09/08/2017,05-12877,572,Abacus Cars
Nottinghamshire County Council,1111/1001,Adult Social Care and Health,ASCH,Transport Related,CDA,09/08/2017,05-12878,"1,551.74",Abacus Cars
Nottinghamshire County Council,1111/1001,Adult Social Care and Health,ASCH,Transport Related,CDA,09/08/2017,05-12879,2100,Abacus Cars
Nottinghamshire County Council,1111/1001,Adult Social Care and Health,ASCH,Transport Related,CDA,09/08/2017,05-12880,"2,848.20",Abacus Cars
Nottinghamshire County Council,1111/1001,Adult Social Care and Health,ASCH,Transport Related,CDA,09/08/2017,05-12881,545.48,Abacus Cars
Nottinghamshire County Council,1111/1001,Adult Social Care and Health,ASCH,Transport Related,CDA,09/08/2017,05-12882,3308.76,Abacus Cars
Nottinghamshire County Council,1111/1001,Adult Social Care and Health,ASCH,Transport Related,CDA,09/08/2017,05-12883,905.88,Abacus Cars
Nottinghamshire County Council,1111/1001,Adult Social Care and Health,ASCH,Transport Related,CDA,09/08/2017,05-12886,965.9,Abacus Cars
Nottinghamshire County Council,1111/1001,Adult Social Care and Health,ASCH,Transport Related,CDA,09/08/2017,05-12888,"1,090.80",Abacus Cars
Nottinghamshire County Council,1111/1001,Adult Social Care and Health,ASCH,Transport Related,CDA,09/08/2017,05-12889,665.92,Abacus Cars
Nottinghamshire County Council,1111/1001,Adult Social Care and Health,ASCH,Transport Related,CDA,09/08/2017,05-12890,543.36,Abacus Cars
Nottinghamshire County Council,1111/1001,Adult Social Care and Health,ASCH,Transport Related,CDA,09/08/2017,05-12891,563.04,Abacus Cars
Nottinghamshire County Council,1111/1001,Adult Social Care and Health,ASCH,Transport Related,CDA,09/08/2017,05-12894,711,Abacus Cars
Nottinghamshire County Council,1111/1001,Adult Social Care and Health,ASCH,Transport Related,CDA,09/08/2017,05-12902,779.92,Abacus Cars
Nottinghamshire County Council,1111/1001,Adult Social Care and Health,ASCH,Transport Related,CDA,09/08/2017,05-12904,"1,357.52",Beechwood Taxis
Nottinghamshire County Council,1111/1001,Adult Social Care and Health,ASCH,Transport Related,CDA,09/08/2017,05-12978,"1,238.13",In Taxis
Nottinghamshire County Council,1111/1001,Adult Social Care and Health,ASCH,Transport Related,CDA,09/08/2017,05-12980,962,Forest Cars
Nottinghamshire County Council,1111/1001,Adult Social Care and Health,ASCH,Transport Related,CDA,10/08/2017,05-13435,2310,Taxicover Uk Ltd
Nottinghamshire County Council,1111/1001,Adult Social Care and Health,ASCH,Transport Related,CDA,10/08/2017,05-13442,14.4,200 Cars Ltd
Nottinghamshire County Council,1111/1001,Adult Social Care and Health,ASCH,Transport Related,CDA,10/08/2017,05-13448,1140.51,Acorn Contracts
Nottinghamshire County Council,1111/1001,Adult Social Care and Health,ASCH,Transport Related,CDA,10/08/2017,05-13450,960,Acorn Contracts
Nottinghamshire County Council,1111/1001,Adult Social Care and Health,ASCH,Transport Related,CDA,10/08/2017,05-13460,"3,856.02",BN Gibson Ltd
Nottinghamshire County Council,1111/1001,Adult Social Care and Health,ASCH,Transport Related,CDA,10/08/2017,05-13486,68.98,BN Gibson Ltd
Nottinghamshire County Council,1111/1001,Adult Social Care and Health,ASCH,Transport Related,CDA,10/08/2017,05-13488,2879.7,BN Gibson Ltd
Nottinghamshire County Council,1111/1001,Adult Social Care and Health,ASCH,Transport Related,CDA,10/08/2017,05-13550,"2,926.98",P & P Taxis
Nottinghamshire County Council,1111/1001,Adult Social Care and Health,ASCH,Transport Related,CDA,10/08/2017,05-13554,1101.8,P & P Taxis
Nottinghamshire County Council,1111/1001,Adult Social Care and Health,ASCH,Transport Related,CDA,10/08/2017,05-13556,600,Town Cars (UK) Ltd
Nottinghamshire County Council,1111/1001,Adult Social Care and Health,ASCH,Transport Related,CDA,10/08/2017,05-13558,525.2,Cable Cars Taxis Nottm Ltd
Nottinghamshire County Council,1111/1001,Adult Social Care and Health,ASCH,Transport Related,CDA,10/08/2017,05-13559,1993.5,AAA Cabs
Nottinghamshire County Council,1111/1001,Adult Social Care and Health,ASCH,Transport Related,CDA,10/08/2017,05-13565,1680,Eurocab 2000 Ltd
Nottinghamshire County Council,1111/1001,Adult Social Care and Health,ASCH,Transport Related,CDA,10/08/2017,05-13566,540,Eastwood Cars (UK) Ltd
Nottinghamshire County Council,1111/1001,Adult Social Care and Health,ASCH,Transport Related,CDA,10/08/2017,05-13571,861,Shiny Sky Ltd T/A A2b Cars
Nottinghamshire County Council,1111/1001,Adult Social Care and Health,ASCH,Transport Related,CDA,11/08/2017,05-13576,858.5,F4Control Ltd (t/a First4care)
Nottinghamshire County Council,1111/1001,Adult Social Care and Health,ASCH,Transport Related,CDA,11/08/2017,05-13578,1126.7,D G Private Hire Ltd
Nottinghamshire County Council,1111/1001,Adult Social Care and Health,ASCH,Transport Related,CDA,11/08/2017,05-13585,515.1,D G Private Hire Ltd
Nottinghamshire County Council,1111/1001,Adult Social Care and Health,ASCH,Transport Related,CDA,11/08/2017,05-13586,1212,Abacus Cars
Nottinghamshire County Council,1111/1001,Adult Social Care and Health,ASCH,Transport Related,CDA,11/08/2017,05-13592,966,Ideal Cars (Private Hire) Ltd
Nottinghamshire County Council,1111/1001,Adult Social Care and Health,ASCH,Transport Related,CDA,16/08/2017,05-14542,1266.09,F4Control Ltd (t/a First4care)
Nottinghamshire County Council,1111/1001,Adult Social Care and Health,ASCH,Transport Related,CDA,16/08/2017,05-14543,1333.2,F4Control Ltd (t/a First4care)
Nottinghamshire County Council,1111/1001,Adult Social Care and Health,ASCH,Transport Related,CDA,16/08/2017,05-14545,2835.8,Ace Cars
Nottinghamshire County Council,1111/1001,Adult Social Care and Health,ASCH,Transport Related,CDA,18/08/2017,05-14678,800,F4Control Ltd (t/a First4care)
Nottinghamshire County Council,1111/1001,Adult Social Care and Health,ASCH,Transport Related,CDA,18/08/2017,05-14727,1770.1,Nottingham Cars Ltd
Nottinghamshire County Council,1111/1001,Adult Social Care and Health,ASCH,Transport Related,CEA,11/08/2017,05-10237,258.81,Reed Employment Plc
Nottinghamshire County Council,1111/1001,Adult Social Care and Health,ASCH,Transport Related,CEA,18/08/2017,05-14533,64209.38,Reed Employment Plc
Nottinghamshire County Council,1111/1001,Adult Social Care and Health,ASCH,Transport Related,CEA,25/08/2017,05-14778,307.43,Reed Employment Plc
Nottinghamshire County Council,1111/1001,Adult Social Care and Health,ASCH,Supplies & Services,DAA,21/08/2017,05-14772,50.08,ARC Property Services Partnership L
Nottinghamshire County Council,1111/1001,Adult Social Care and Health,ASCH,Supplies & Services,DAA,24/08/2017,05-16378,3225,Hatherley Commercial Services Ltd
Nottinghamshire County Council,1111/1001,Adult Social Care and Health,ASCH,Supplies & Services,DBA,03/08/2017,05-16333,500,F Smales & Son Fish Merchants Ltd
Nottinghamshire County Council,1111/1001,Adult Social Care and Health,ASCH,Supplies & Services,DBA,03/08/2017,05-16341,1030.4,Mkg Food Products Ltd
Nottinghamshire County Council,1111/1001,Adult Social Care and Health,ASCH,Supplies & Services,DBA,25/08/2017,05-12497,101.09,On A Roll Sandwich Company
Nottinghamshire County Council,1111/1001,Adult Social Care and Health,ASCH,Supplies & Services,DEA,22/08/2017,05-16379,750,[Redacted]
Nottinghamshire County Council,1111/1001,Adult Social Care and Health,ASCH,Supplies & Services,DFA,16/08/2017,05-14525,754.64,Adept Telecom
Nottinghamshire County Council,1111/1001,Adult Social Care and Health,ASCH,Third Party Payments,EBA,11/08/2017,05-13612,588,Metropolitan Housing Trust
Nottinghamshire County Council,1111/1001,Adult Social Care and Health,ASCH,Third Party Payments,EBA,11/08/2017,05-13623,4986.6,Framework Housing Association
Nottinghamshire County Council,1111/1001,Adult Social Care and Health,ASCH,Third Party Payments,EGA,01/08/2017,05-10060,4745.94,Millbank (Heritage Care)
Nottinghamshire County Council,1111/1001,Adult Social Care and Health,ASCH,Third Party Payments,EGA,01/08/2017,05-10061,3316.52,Millbank (Heritage Care)
Nottinghamshire County Council,1111/1001,Adult Social Care and Health,ASCH,Third Party Payments,EGA,01/08/2017,05-10062,3558.56,Millbank (Heritage Care)
Nottinghamshire County Council,1111/1001,Adult Social Care and Health,ASCH,Third Party Payments,EGA,01/08/2017,05-10063,553.5,Ark Home Healthcare Ltd
Nottinghamshire County Council,1111/1001,Adult Social Care and Health,ASCH,Third Party Payments,EGA,01/08/2017,05-10064,774.38,Direct Health (uk) Ltd
Nottinghamshire County Council,1111/1001,Adult Social Care and Health,ASCH,Third Party Payments,EGA,01/08/2017,05-10065,590.1,Direct Health (uk) Ltd
Nottinghamshire County Council,1111/1001,Adult Social Care and Health,ASCH,Third Party Payments,EGA,01/08/2017,05-10066,686.18,Direct Health (uk) Ltd
Nottinghamshire County Council,1111/1001,Adult Social Care and Health,ASCH,Third Party Payments,EGA,01/08/2017,05-10067,600.6,Direct Health (uk) Ltd
Nottinghamshire County Council,1111/1001,Adult Social Care and Health,ASCH,Third Party Payments,EGA,01/08/2017,05-10068,603.23,Direct Health (uk) Ltd
Nottinghamshire County Council,1111/1001,Adult Social Care and Health,ASCH,Third Party Payments,EGA,01/08/2017,05-10069,732.38,Direct Health (uk) Ltd
Nottinghamshire County Council,1111/1001,Adult Social Care and Health,ASCH,Third Party Payments,EGA,01/08/2017,05-10070,551.25,Direct Health (uk) Ltd
Nottinghamshire County Council,1111/1001,Adult Social Care and Health,ASCH,Third Party Payments,EGA,01/08/2017,05-10071,696.68,Direct Health (uk) Ltd
Nottinghamshire County Council,1111/1001,Adult Social Care and Health,ASCH,Third Party Payments,EGA,01/08/2017,05-10072,521.67,Fosse Healthcare Ltd
Nottinghamshire County Council,1111/1001,Adult Social Care and Health,ASCH,Third Party Payments,EGA,01/08/2017,05-10073,527.63,Fosse Healthcare Ltd
Nottinghamshire County Council,1111/1001,Adult Social Care and Health,ASCH,Third Party Payments,EGA,01/08/2017,05-10074,570.59,Fosse Healthcare Ltd
Nottinghamshire County Council,1111/1001,Adult Social Care and Health,ASCH,Third Party Payments,EGA,01/08/2017,05-10075,531.99,Fosse Healthcare Ltd
Nottinghamshire County Council,1111/1001,Adult Social Care and Health,ASCH,Third Party Payments,EGA,01/08/2017,05-10076,517.23,Fosse Healthcare Ltd
Nottinghamshire County Council,1111/1001,Adult Social Care and Health,ASCH,Third Party Payments,EGA,01/08/2017,05-10077,1181.2,Midlands Home Care Ltd
Nottinghamshire County Council,1111/1001,Adult Social Care and Health,ASCH,Third Party Payments,EGA,01/08/2017,05-10078,590.35,Midlands Home Care Ltd
Nottinghamshire County Council,1111/1001,Adult Social Care and Health,ASCH,Third Party Payments,EGA,01/08/2017,05-10079,765.9,Midlands Home Care Ltd
Nottinghamshire County Council,1111/1001,Adult Social Care and Health,ASCH,Third Party Payments,EGA,01/08/2017,05-10080,598.75,Midlands Home Care Ltd
Nottinghamshire County Council,1111/1001,Adult Social Care and Health,ASCH,Third Party Payments,EGA,01/08/2017,05-10081,603.52,Midlands Home Care Ltd
Nottinghamshire County Council,1111/1001,Adult Social Care and Health,ASCH,Third Party Payments,EGA,01/08/2017,05-10082,540.3,Midlands Home Care Ltd
Nottinghamshire County Council,1111/1001,Adult Social Care and Health,ASCH,Third Party Payments,EGA,01/08/2017,05-10083,687.04,Mears Homecare Ltd
Nottinghamshire County Council,1111/1001,Adult Social Care and Health,ASCH,Third Party Payments,EGA,01/08/2017,05-10084,635.55,Agincare UK Ltd
Nottinghamshire County Council,1111/1001,Adult Social Care and Health,ASCH,Third Party Payments,EGA,01/08/2017,05-10085,625.32,Agincare UK Ltd
Nottinghamshire County Council,1111/1001,Adult Social Care and Health,ASCH,Third Party Payments,EGA,01/08/2017,05-10086,532.68,Agincare UK Ltd
Nottinghamshire County Council,1111/1001,Adult Social Care and Health,ASCH,Third Party Payments,EGA,01/08/2017,05-10087,540.4,Agincare UK Ltd
Nottinghamshire County Council,1111/1001,Adult Social Care and Health,ASCH,Third Party Payments,EGA,01/08/2017,05-10088,592.13,Agincare UK Ltd
Nottinghamshire County Council,1111/1001,Adult Social Care and Health,ASCH,Third Party Payments,EGA,01/08/2017,05-10089,536.54,Agincare UK Ltd
Nottinghamshire County Council,1111/1001,Adult Social Care and Health,ASCH,Third Party Payments,EGA,01/08/2017,05-10090,578.23,Agincare UK Ltd
Nottinghamshire County Council,1111/1001,Adult Social Care and Health,ASCH,Third Party Payments,EGA,01/08/2017,05-10091,537.07,Mears Homecare Ltd
Nottinghamshire County Council,1111/1001,Adult Social Care and Health,ASCH,Third Party Payments,EGA,01/08/2017,05-10092,532,Mears Homecare Ltd
Nottinghamshire County Council,1111/1001,Adult Social Care and Health,ASCH,Third Party Payments,EGA,01/08/2017,05-10094,562.4,Mears Homecare Ltd
Nottinghamshire County Council,1111/1001,Adult Social Care and Health,ASCH,Third Party Payments,EGA,01/08/2017,05-10095,532,Mears Homecare Ltd
Nottinghamshire County Council,1111/1001,Adult Social Care and Health,ASCH,Third Party Payments,EGA,01/08/2017,05-10096,506.67,Mears Homecare Ltd
Nottinghamshire County Council,1111/1001,Adult Social Care and Health,ASCH,Third Party Payments,EGA,01/08/2017,05-10097,623.2,Mears Homecare Ltd
Nottinghamshire County Council,1111/1001,Adult Social Care and Health,ASCH,Third Party Payments,EGA,01/08/2017,05-10098,585.2,Mears Homecare Ltd
Nottinghamshire County Council,1111/1001,Adult Social Care and Health,ASCH,Third Party Payments,EGA,01/08/2017,05-10099,524.4,Mears Homecare Ltd
Nottinghamshire County Council,1111/1001,Adult Social Care and Health,ASCH,Third Party Payments,EGA,01/08/2017,05-10100,537.57,Mears Homecare Ltd
Nottinghamshire County Council,1111/1001,Adult Social Care and Health,ASCH,Third Party Payments,EGA,01/08/2017,05-10101,615.6,Mears Homecare Ltd
Nottinghamshire County Council,1111/1001,Adult Social Care and Health,ASCH,Third Party Payments,EGA,01/08/2017,05-10102,592.8,Mears Homecare Ltd
Nottinghamshire County Council,1111/1001,Adult Social Care and Health,ASCH,Third Party Payments,EGA,01/08/2017,05-10104,512.24,Mears Homecare Ltd
Nottinghamshire County Council,1111/1001,Adult Social Care and Health,ASCH,Third Party Payments,EGA,01/08/2017,05-10105,1956.58,Leda Homecare Ltd
Nottinghamshire County Council,1111/1001,Adult Social Care and Health,ASCH,Third Party Payments,EGA,01/08/2017,05-10106,789.82,Amg Nursing & Care Services Ltd
Nottinghamshire County Council,1111/1001,Adult Social Care and Health,ASCH,Third Party Payments,EGA,01/08/2017,05-10107,1888.7,Amg Nursing & Care Services Ltd
Nottinghamshire County Council,1111/1001,Adult Social Care and Health,ASCH,Third Party Payments,EGA,01/08/2017,05-10108,1923.04,Amg Nursing & Care Services Ltd
Nottinghamshire County Council,1111/1001,Adult Social Care and Health,ASCH,Third Party Payments,EGA,01/08/2017,05-10109,600.95,Amg Nursing & Care Services Ltd
Nottinghamshire County Council,1111/1001,Adult Social Care and Health,ASCH,Third Party Payments,EGA,01/08/2017,05-10110,961.52,Amg Nursing & Care Services Ltd
Nottinghamshire County Council,1111/1001,Adult Social Care and Health,ASCH,Third Party Payments,EGA,01/08/2017,05-10111,3227.96,Amg Nursing & Care Services Ltd
Nottinghamshire County Council,1111/1001,Adult Social Care and Health,ASCH,Third Party Payments,EGA,01/08/2017,05-10112,1991.72,Amg Nursing & Care Services Ltd
Nottinghamshire County Council,1111/1001,Adult Social Care and Health,ASCH,Third Party Payments,EGA,01/08/2017,05-10113,2472.48,Amg Nursing & Care Services Ltd
Nottinghamshire County Council,1111/1001,Adult Social Care and Health,ASCH,Third Party Payments,EGA,01/08/2017,05-10114,3846.08,Amg Nursing & Care Services Ltd
Nottinghamshire County Council,1111/1001,Adult Social Care and Health,ASCH,Third Party Payments,EGA,01/08/2017,05-10115,3983.44,Amg Nursing & Care Services Ltd
Nottinghamshire County Council,1111/1001,Adult Social Care and Health,ASCH,Third Party Payments,EGA,01/08/2017,05-10116,961.52,Amg Nursing & Care Services Ltd
Nottinghamshire County Council,1111/1001,Adult Social Care and Health,ASCH,Third Party Payments,EGA,01/08/2017,05-10117,703.97,Amg Nursing & Care Services Ltd
Nottinghamshire County Council,1111/1001,Adult Social Care and Health,ASCH,Third Party Payments,EGA,01/08/2017,05-10118,892.84,Amg Nursing & Care Services Ltd
Nottinghamshire County Council,1111/1001,Adult Social Care and Health,ASCH,Third Party Payments,EGA,01/08/2017,05-10119,2472.48,Amg Nursing & Care Services Ltd
Nottinghamshire County Council,1111/1001,Adult Social Care and Health,ASCH,Third Party Payments,EGA,01/08/2017,05-10120,1923.04,Amg Nursing & Care Services Ltd
Nottinghamshire County Council,1111/1001,Adult Social Care and Health,ASCH,Third Party Payments,EGA,01/08/2017,05-10121,1442.28,Amg Nursing & Care Services Ltd
Nottinghamshire County Council,1111/1001,Adult Social Care and Health,ASCH,Third Party Payments,EGA,01/08/2017,05-10122,1885.34,Amg Nursing & Care Services Ltd
Nottinghamshire County Council,1111/1001,Adult Social Care and Health,ASCH,Third Party Payments,EGA,01/08/2017,05-10123,3841.16,Amg Nursing & Care Services Ltd
Nottinghamshire County Council,1111/1001,Adult Social Care and Health,ASCH,Third Party Payments,EGA,01/08/2017,05-10124,1550.56,Amg Nursing & Care Services Ltd
Nottinghamshire County Council,1111/1001,Adult Social Care and Health,ASCH,Third Party Payments,EGA,01/08/2017,05-10125,3030.64,Amg Nursing & Care Services Ltd
Nottinghamshire County Council,1111/1001,Adult Social Care and Health,ASCH,Third Party Payments,EGA,01/08/2017,05-10126,549.44,Amg Nursing & Care Services Ltd
Nottinghamshire County Council,1111/1001,Adult Social Care and Health,ASCH,Third Party Payments,EGA,01/08/2017,05-10127,"1,442.28",Amg Nursing & Care Services Ltd
Nottinghamshire County Council,1111/1001,Adult Social Care and Health,ASCH,Third Party Payments,EGA,01/08/2017,05-10128,1461.18,Amg Nursing & Care Services Ltd
Nottinghamshire County Council,1111/1001,Adult Social Care and Health,ASCH,Third Party Payments,EGA,01/08/2017,05-10129,927.18,Amg Nursing & Care Services Ltd
Nottinghamshire County Council,1111/1001,Adult Social Care and Health,ASCH,Third Party Payments,EGA,01/08/2017,05-10130,755.48,Amg Nursing & Care Services Ltd
Nottinghamshire County Council,1111/1001,Adult Social Care and Health,ASCH,Third Party Payments,EGA,01/08/2017,05-10131,1785.68,Amg Nursing & Care Services Ltd
Nottinghamshire County Council,1111/1001,Adult Social Care and Health,ASCH,Third Party Payments,EGA,01/08/2017,05-10132,3708.72,Amg Nursing & Care Services Ltd
Nottinghamshire County Council,1111/1001,Adult Social Care and Health,ASCH,Third Party Payments,EGA,01/08/2017,05-10133,961.52,Amg Nursing & Care Services Ltd
Nottinghamshire County Council,1111/1001,Adult Social Care and Health,ASCH,Third Party Payments,EGA,01/08/2017,05-10134,3674.38,Amg Nursing & Care Services Ltd
Nottinghamshire County Council,1111/1001,Adult Social Care and Health,ASCH,Third Party Payments,EGA,01/08/2017,05-10135,"1,442.28",Amg Nursing & Care Services Ltd
Nottinghamshire County Council,1111/1001,Adult Social Care and Health,ASCH,Third Party Payments,EGA,01/08/2017,05-10136,1339.26,Amg Nursing & Care Services Ltd
Nottinghamshire County Council,1111/1001,Adult Social Care and Health,ASCH,Third Party Payments,EGA,01/08/2017,05-10137,1206.77,Comfort Call Ltd
Nottinghamshire County Council,1111/1001,Adult Social Care and Health,ASCH,Third Party Payments,EGA,01/08/2017,05-10138,557.77,Comfort Call Ltd
Nottinghamshire County Council,1111/1001,Adult Social Care and Health,ASCH,Third Party Payments,EGA,01/08/2017,05-10139,526.82,Comfort Call Ltd
Nottinghamshire County Council,1111/1001,Adult Social Care and Health,ASCH,Third Party Payments,EGA,01/08/2017,05-10140,557.36,Comfort Call Ltd
Nottinghamshire County Council,1111/1001,Adult Social Care and Health,ASCH,Third Party Payments,EGA,01/08/2017,05-10141,559.9,Comfort Call Ltd
Nottinghamshire County Council,1111/1001,Adult Social Care and Health,ASCH,Third Party Payments,EGA,01/08/2017,05-10142,845.76,Amg Nursing & Care Services Ltd
Nottinghamshire County Council,1111/1001,Adult Social Care and Health,ASCH,Third Party Payments,EGA,01/08/2017,05-10143,1973.44,Amg Nursing & Care Services Ltd
Nottinghamshire County Council,1111/1001,Adult Social Care and Health,ASCH,Third Party Payments,EGA,01/08/2017,05-10144,3946.88,Amg Nursing & Care Services Ltd
Nottinghamshire County Council,1111/1001,Adult Social Care and Health,ASCH,Third Party Payments,EGA,01/08/2017,05-10145,"2,960.16",Amg Nursing & Care Services Ltd
Nottinghamshire County Council,1111/1001,Adult Social Care and Health,ASCH,Third Party Payments,EGA,01/08/2017,05-10146,986.72,Amg Nursing & Care Services Ltd
Nottinghamshire County Council,1111/1001,Adult Social Care and Health,ASCH,Third Party Payments,EGA,01/08/2017,05-10147,811.09,Comfort Call Ltd
Nottinghamshire County Council,1111/1001,Adult Social Care and Health,ASCH,Third Party Payments,EGA,01/08/2017,05-10148,3946.88,Amg Nursing & Care Services Ltd
Nottinghamshire County Council,1111/1001,Adult Social Care and Health,ASCH,Third Party Payments,EGA,01/08/2017,05-10149,599.08,Amg Nursing & Care Services Ltd
Nottinghamshire County Council,1111/1001,Adult Social Care and Health,ASCH,Third Party Payments,EGA,01/08/2017,05-10150,1762,Amg Nursing & Care Services Ltd
Nottinghamshire County Council,1111/1001,Adult Social Care and Health,ASCH,Third Party Payments,EGA,01/08/2017,05-10151,840.24,Comfort Call Ltd
Nottinghamshire County Council,1111/1001,Adult Social Care and Health,ASCH,Third Party Payments,EGA,01/08/2017,05-10152,1270.58,Amg Nursing & Care Services Ltd
Nottinghamshire County Council,1111/1001,Adult Social Care and Health,ASCH,Third Party Payments,EGA,01/08/2017,05-10153,"1,480.08",Amg Nursing & Care Services Ltd
Nottinghamshire County Council,1111/1001,Adult Social Care and Health,ASCH,Third Party Payments,EGA,01/08/2017,05-10154,1409.6,Amg Nursing & Care Services Ltd
Nottinghamshire County Council,1111/1001,Adult Social Care and Health,ASCH,Third Party Payments,EGA,01/08/2017,05-10155,2678.52,Amg Nursing & Care Services Ltd
Nottinghamshire County Council,1111/1001,Adult Social Care and Health,ASCH,Third Party Payments,EGA,01/08/2017,05-10156,2960.16,Amg Nursing & Care Services Ltd
Nottinghamshire County Council,1111/1001,Adult Social Care and Health,ASCH,Third Party Payments,EGA,01/08/2017,05-10157,"1,074.82",Amg Nursing & Care Services Ltd
Nottinghamshire County Council,1111/1001,Adult Social Care and Health,ASCH,Third Party Payments,EGA,01/08/2017,05-10158,"1,374.36",Amg Nursing & Care Services Ltd
Nottinghamshire County Council,1111/1001,Adult Social Care and Health,ASCH,Third Party Payments,EGA,01/08/2017,05-10159,669.56,Amg Nursing & Care Services Ltd
Nottinghamshire County Council,1111/1001,Adult Social Care and Health,ASCH,Third Party Payments,EGA,01/08/2017,05-10160,951.48,Amg Nursing & Care Services Ltd
Nottinghamshire County Council,1111/1001,Adult Social Care and Health,ASCH,Third Party Payments,EGA,01/08/2017,05-10161,528.6,Amg Nursing & Care Services Ltd
Nottinghamshire County Council,1111/1001,Adult Social Care and Health,ASCH,Third Party Payments,EGA,01/08/2017,05-10162,"1,162.92",Amg Nursing & Care Services Ltd
Nottinghamshire County Council,1111/1001,Adult Social Care and Health,ASCH,Third Party Payments,EGA,01/08/2017,05-10163,828.14,Amg Nursing & Care Services Ltd
Nottinghamshire County Council,1111/1001,Adult Social Care and Health,ASCH,Third Party Payments,EGA,01/08/2017,05-10164,"1,497.70",Amg Nursing & Care Services Ltd
Nottinghamshire County Council,1111/1001,Adult Social Care and Health,ASCH,Third Party Payments,EGA,01/08/2017,05-10165,528.6,Amg Nursing & Care Services Ltd
Nottinghamshire County Council,1111/1001,Adult Social Care and Health,ASCH,Third Party Payments,EGA,01/08/2017,05-10166,"2,466.80",Amg Nursing & Care Services Ltd
Nottinghamshire County Council,1111/1001,Adult Social Care and Health,ASCH,Third Party Payments,EGA,01/08/2017,05-10167,740.04,Amg Nursing & Care Services Ltd
Nottinghamshire County Council,1111/1001,Adult Social Care and Health,ASCH,Third Party Payments,EGA,01/08/2017,05-10168,"1,373.60",Amg Nursing & Care Services Ltd
Nottinghamshire County Council,1111/1001,Adult Social Care and Health,ASCH,Third Party Payments,EGA,01/08/2017,05-10169,"2,884.56",Amg Nursing & Care Services Ltd
Nottinghamshire County Council,1111/1001,Adult Social Care and Health,ASCH,Third Party Payments,EGA,01/08/2017,05-10170,2060.4,Amg Nursing & Care Services Ltd
Nottinghamshire County Council,1111/1001,Adult Social Care and Health,ASCH,Third Party Payments,EGA,01/08/2017,05-10171,927.18,Amg Nursing & Care Services Ltd
Nottinghamshire County Council,1111/1001,Adult Social Care and Health,ASCH,Third Party Payments,EGA,01/08/2017,05-10172,3743.06,Amg Nursing & Care Services Ltd
Nottinghamshire County Council,1111/1001,Adult Social Care and Health,ASCH,Third Party Payments,EGA,01/08/2017,05-10173,828.14,Amg Nursing & Care Services Ltd
Nottinghamshire County Council,1111/1001,Adult Social Care and Health,ASCH,Third Party Payments,EGA,01/08/2017,05-10174,986.7,Compassionate Care Team Ltd
Nottinghamshire County Council,1111/1001,Adult Social Care and Health,ASCH,Third Party Payments,EGA,01/08/2017,05-10175,"1,442.10",Compassionate Care Team Ltd
Nottinghamshire County Council,1111/1001,Adult Social Care and Health,ASCH,Third Party Payments,EGA,01/08/2017,05-10176,"1,669.80",Compassionate Care Team Ltd
Nottinghamshire County Council,1111/1001,Adult Social Care and Health,ASCH,Third Party Payments,EGA,01/08/2017,05-10177,865.26,Compassionate Care Team Ltd
Nottinghamshire County Council,1111/1001,Adult Social Care and Health,ASCH,Third Party Payments,EGA,01/08/2017,05-10178,546.48,Compassionate Care Team Ltd
Nottinghamshire County Council,1111/1001,Adult Social Care and Health,ASCH,Third Party Payments,EGA,01/08/2017,05-10179,1062.6,Compassionate Care Team Ltd
Nottinghamshire County Council,1111/1001,Adult Social Care and Health,ASCH,Third Party Payments,EGA,01/08/2017,05-10180,759,Compassionate Care Team Ltd
Nottinghamshire County Council,1111/1001,Adult Social Care and Health,ASCH,Third Party Payments,EGA,01/08/2017,05-10181,599.58,Compassionate Care Team Ltd
Nottinghamshire County Council,1111/1001,Adult Social Care and Health,ASCH,Third Party Payments,EGA,01/08/2017,05-10182,"1,184.04",Compassionate Care Team Ltd
Nottinghamshire County Council,1111/1001,Adult Social Care and Health,ASCH,Third Party Payments,EGA,01/08/2017,05-10183,"1,601.49",Compassionate Care Team Ltd
Nottinghamshire County Council,1111/1001,Adult Social Care and Health,ASCH,Third Party Payments,EGA,01/08/2017,05-10184,573.05,Compassionate Care Team Ltd
Nottinghamshire County Council,1111/1001,Adult Social Care and Health,ASCH,Third Party Payments,EGA,01/08/2017,05-10185,573.06,Compassionate Care Team Ltd
Nottinghamshire County Council,1111/1001,Adult Social Care and Health,ASCH,Third Party Payments,EGA,01/08/2017,05-10186,1419.33,Compassionate Care Team Ltd
Nottinghamshire County Council,1111/1001,Adult Social Care and Health,ASCH,Third Party Payments,EGA,01/08/2017,05-10187,1343.43,Compassionate Care Team Ltd
Nottinghamshire County Council,1111/1001,Adult Social Care and Health,ASCH,Third Party Payments,EGA,01/08/2017,05-10188,850.08,Compassionate Care Team Ltd
Nottinghamshire County Council,1111/1001,Adult Social Care and Health,ASCH,Third Party Payments,EGA,01/08/2017,05-10189,637.56,Compassionate Care Team Ltd
Nottinghamshire County Council,1111/1001,Adult Social Care and Health,ASCH,Third Party Payments,EGA,01/08/2017,05-10190,894.41,Compassionate Care Team Ltd
Nottinghamshire County Council,1111/1001,Adult Social Care and Health,ASCH,Third Party Payments,EGA,01/08/2017,05-10191,2290.6,Amg Nursing & Care Services Ltd
Nottinghamshire County Council,1111/1001,Adult Social Care and Health,ASCH,Third Party Payments,EGA,01/08/2017,05-10192,"1,162.92",Amg Nursing & Care Services Ltd
Nottinghamshire County Council,1111/1001,Adult Social Care and Health,ASCH,Third Party Payments,EGA,01/08/2017,05-10193,740.04,Amg Nursing & Care Services Ltd
Nottinghamshire County Council,1111/1001,Adult Social Care and Health,ASCH,Third Party Payments,EGA,01/08/2017,05-10194,"2,114.40",Amg Nursing & Care Services Ltd
Nottinghamshire County Council,1111/1001,Adult Social Care and Health,ASCH,Third Party Payments,EGA,01/08/2017,05-10195,546.22,Amg Nursing & Care Services Ltd
Nottinghamshire County Council,1111/1001,Adult Social Care and Health,ASCH,Third Party Payments,EGA,01/08/2017,05-10196,"1,303.88",Amg Nursing & Care Services Ltd
Nottinghamshire County Council,1111/1001,Adult Social Care and Health,ASCH,Third Party Payments,EGA,01/08/2017,05-10197,1339.12,Amg Nursing & Care Services Ltd
Nottinghamshire County Council,1111/1001,Adult Social Care and Health,ASCH,Third Party Payments,EGA,01/08/2017,05-10198,2678.24,Amg Nursing & Care Services Ltd
Nottinghamshire County Council,1111/1001,Adult Social Care and Health,ASCH,Third Party Payments,EGA,01/08/2017,05-10199,"1,374.36",Amg Nursing & Care Services Ltd
Nottinghamshire County Council,1111/1001,Adult Social Care and Health,ASCH,Third Party Payments,EGA,01/08/2017,05-10200,563.84,Amg Nursing & Care Services Ltd
Nottinghamshire County Council,1111/1001,Adult Social Care and Health,ASCH,Third Party Payments,EGA,01/08/2017,05-10201,1973.44,Amg Nursing & Care Services Ltd
Nottinghamshire County Council,1111/1001,Adult Social Care and Health,ASCH,Third Party Payments,EGA,01/08/2017,05-10202,881,Amg Nursing & Care Services Ltd
Nottinghamshire County Council,1111/1001,Adult Social Care and Health,ASCH,Third Party Payments,EGA,01/08/2017,05-10203,1867.72,Amg Nursing & Care Services Ltd
Nottinghamshire County Council,1111/1001,Adult Social Care and Health,ASCH,Third Party Payments,EGA,01/08/2017,05-10204,"3,946.88",Amg Nursing & Care Services Ltd
Nottinghamshire County Council,1111/1001,Adult Social Care and Health,ASCH,Third Party Payments,EGA,01/08/2017,05-10205,687.18,Amg Nursing & Care Services Ltd
Nottinghamshire County Council,1111/1001,Adult Social Care and Health,ASCH,Third Party Payments,EGA,01/08/2017,05-10206,2396.32,Amg Nursing & Care Services Ltd
Nottinghamshire County Council,1111/1001,Adult Social Care and Health,ASCH,Third Party Payments,EGA,01/08/2017,05-10207,"1,480.08",Amg Nursing & Care Services Ltd
Nottinghamshire County Council,1111/1001,Adult Social Care and Health,ASCH,Third Party Payments,EGA,01/08/2017,05-10208,"3,946.88",Amg Nursing & Care Services Ltd
Nottinghamshire County Council,1111/1001,Adult Social Care and Health,ASCH,Third Party Payments,EGA,01/08/2017,05-10209,3946.88,Amg Nursing & Care Services Ltd
Nottinghamshire County Council,1111/1001,Adult Social Care and Health,ASCH,Third Party Payments,EGA,01/08/2017,05-16355,1083.36,Hucknall Hope Lea Project
Nottinghamshire County Council,1111/1001,Adult Social Care and Health,ASCH,Third Party Payments,EGA,01/08/2017,05-16356,936.96,Hucknall Hope Lea Project
Nottinghamshire County Council,1111/1001,Adult Social Care and Health,ASCH,Third Party Payments,EGA,02/08/2017,05-16322,"2,375.52",Choice Support
Nottinghamshire County Council,1111/1001,Adult Social Care and Health,ASCH,Third Party Payments,EGA,02/08/2017,05-16327,565.6,Thera East Midlands
Nottinghamshire County Council,1111/1001,Adult Social Care and Health,ASCH,Third Party Payments,EGA,02/08/2017,05-16342,2520,Avon House Supportive Living
Nottinghamshire County Council,1111/1001,Adult Social Care and Health,ASCH,Third Party Payments,EGA,03/08/2017,05-16325,940.41,Thera East Midlands
Nottinghamshire County Council,1111/1001,Adult Social Care and Health,ASCH,Third Party Payments,EGA,03/08/2017,05-16326,777.7,Thera East Midlands
Nottinghamshire County Council,1111/1001,Adult Social Care and Health,ASCH,Third Party Payments,EGA,03/08/2017,05-16328,"1,756.44",Thera East Midlands
Nottinghamshire County Council,1111/1001,Adult Social Care and Health,ASCH,Third Party Payments,EGA,03/08/2017,05-16329,1979.6,Thera East Midlands
Nottinghamshire County Council,1111/1001,Adult Social Care and Health,ASCH,Third Party Payments,EGA,03/08/2017,05-16332,777.7,Thera East Midlands
Nottinghamshire County Council,1111/1001,Adult Social Care and Health,ASCH,Third Party Payments,EGA,03/08/2017,05-16339,"1,880.62",Thera East Midlands
Nottinghamshire County Council,1111/1001,Adult Social Care and Health,ASCH,Third Party Payments,EGA,03/08/2017,05-16346,"1,183.13",Thera East Midlands
Nottinghamshire County Council,1111/1001,Adult Social Care and Health,ASCH,Third Party Payments,EGA,03/08/2017,05-16347,"1,675.59",Thera East Midlands
Nottinghamshire County Council,1111/1001,Adult Social Care and Health,ASCH,Third Party Payments,EGA,03/08/2017,05-16348,1746.29,Thera East Midlands
Nottinghamshire County Council,1111/1001,Adult Social Care and Health,ASCH,Third Party Payments,EGA,04/08/2017,05-10262,"1,002.28",[Redacted]
Nottinghamshire County Council,1111/1001,Adult Social Care and Health,ASCH,Third Party Payments,EGA,04/08/2017,05-10263,1108.16,[Redacted]
Nottinghamshire County Council,1111/1001,Adult Social Care and Health,ASCH,Third Party Payments,EGA,04/08/2017,05-10264,"1,415.60",[Redacted]
Nottinghamshire County Council,1111/1001,Adult Social Care and Health,ASCH,Third Party Payments,EGA,04/08/2017,05-10265,1875.92,[Redacted]
Nottinghamshire County Council,1111/1001,Adult Social Care and Health,ASCH,Third Party Payments,EGA,04/08/2017,05-10266,952.08,[Redacted]
Nottinghamshire County Council,1111/1001,Adult Social Care and Health,ASCH,Third Party Payments,EGA,04/08/2017,05-10267,"1,247.16",[Redacted]
Nottinghamshire County Council,1111/1001,Adult Social Care and Health,ASCH,Third Party Payments,EGA,04/08/2017,05-10268,"1,763.12",[Redacted]
Nottinghamshire County Council,1111/1001,Adult Social Care and Health,ASCH,Third Party Payments,EGA,04/08/2017,05-10269,"1,507.16",[Redacted]
Nottinghamshire County Council,1111/1001,Adult Social Care and Health,ASCH,Third Party Payments,EGA,04/08/2017,05-10270,"1,211.24",[Redacted]
Nottinghamshire County Council,1111/1001,Adult Social Care and Health,ASCH,Third Party Payments,EGA,04/08/2017,05-10271,"1,277.80",[Redacted]
Nottinghamshire County Council,1111/1001,Adult Social Care and Health,ASCH,Third Party Payments,EGA,04/08/2017,05-10272,"1,373.72",[Redacted]
Nottinghamshire County Council,1111/1001,Adult Social Care and Health,ASCH,Third Party Payments,EGA,04/08/2017,05-10273,"1,009.12",[Redacted]
Nottinghamshire County Council,1111/1001,Adult Social Care and Health,ASCH,Third Party Payments,EGA,04/08/2017,05-10274,"1,382.24",[Redacted]
Nottinghamshire County Council,1111/1001,Adult Social Care and Health,ASCH,Third Party Payments,EGA,04/08/2017,05-10275,"2,614.00",Branthwaite Res Home (FBC)
Nottinghamshire County Council,1111/1001,Adult Social Care and Health,ASCH,Third Party Payments,EGA,04/08/2017,05-10276,"2,192.00",Branthwaite Res Home (FBC)
Nottinghamshire County Council,1111/1001,Adult Social Care and Health,ASCH,Third Party Payments,EGA,04/08/2017,05-10277,"2,192.00",Bramwell
Nottinghamshire County Council,1111/1001,Adult Social Care and Health,ASCH,Third Party Payments,EGA,04/08/2017,05-10278,"2,192.00",Bramwell
Nottinghamshire County Council,1111/1001,Adult Social Care and Health,ASCH,Third Party Payments,EGA,04/08/2017,05-10279,"2,192.00",Bramwell
Nottinghamshire County Council,1111/1001,Adult Social Care and Health,ASCH,Third Party Payments,EGA,04/08/2017,05-10280,"2,192.00",Braywood Gardens (Runwood)
Nottinghamshire County Council,1111/1001,Adult Social Care and Health,ASCH,Third Party Payments,EGA,04/08/2017,05-10281,"2,192.00",Bramwell
Nottinghamshire County Council,1111/1001,Adult Social Care and Health,ASCH,Third Party Payments,EGA,04/08/2017,05-10282,"2,384.00",Braywood Gardens (Runwood)
Nottinghamshire County Council,1111/1001,Adult Social Care and Health,ASCH,Third Party Payments,EGA,04/08/2017,05-10283,"2,076.00",The Beeches
Nottinghamshire County Council,1111/1001,Adult Social Care and Health,ASCH,Third Party Payments,EGA,04/08/2017,05-10284,"2,192.00",Bramwell
Nottinghamshire County Council,1111/1001,Adult Social Care and Health,ASCH,Third Party Payments,EGA,04/08/2017,05-10285,"2,384.00",Braywood Gardens (Runwood)
Nottinghamshire County Council,1111/1001,Adult Social Care and Health,ASCH,Third Party Payments,EGA,04/08/2017,05-10286,"2,384.00",Braywood Gardens (Runwood)
Nottinghamshire County Council,1111/1001,Adult Social Care and Health,ASCH,Third Party Payments,EGA,04/08/2017,05-10287,"6,183.48",Priory Lodge
Nottinghamshire County Council,1111/1001,Adult Social Care and Health,ASCH,Third Party Payments,EGA,04/08/2017,05-10288,"2,192.00",Bluebell Lodge
Nottinghamshire County Council,1111/1001,Adult Social Care and Health,ASCH,Third Party Payments,EGA,04/08/2017,05-10289,"2,192.00",Bluebell Lodge
Nottinghamshire County Council,1111/1001,Adult Social Care and Health,ASCH,Third Party Payments,EGA,04/08/2017,05-10290,"2,192.00",Bluebell Lodge
Nottinghamshire County Council,1111/1001,Adult Social Care and Health,ASCH,Third Party Payments,EGA,04/08/2017,05-10291,"2,356.00",Broadgate Nursing Home
Nottinghamshire County Council,1111/1001,Adult Social Care and Health,ASCH,Third Party Payments,EGA,04/08/2017,05-10292,"3,843.48",Boughton Manor Nursing Homes (Craeg
Nottinghamshire County Council,1111/1001,Adult Social Care and Health,ASCH,Third Party Payments,EGA,04/08/2017,05-10293,"2,384.00",Branthwaite Res Home (FBC)
Nottinghamshire County Council,1111/1001,Adult Social Care and Health,ASCH,Third Party Payments,EGA,04/08/2017,05-10294,"2,152.36",Belle Vue (Eastgate)
Nottinghamshire County Council,1111/1001,Adult Social Care and Health,ASCH,Third Party Payments,EGA,04/08/2017,05-10295,"7,292.00",Bridle Lodge (Creative Care)
Nottinghamshire County Council,1111/1001,Adult Social Care and Health,ASCH,Third Party Payments,EGA,04/08/2017,05-10296,"10,875.20",Bentinck Road (Framework)
Nottinghamshire County Council,1111/1001,Adult Social Care and Health,ASCH,Third Party Payments,EGA,04/08/2017,05-10297,"2,192.00",Baily House
Nottinghamshire County Council,1111/1001,Adult Social Care and Health,ASCH,Third Party Payments,EGA,04/08/2017,05-10298,"2,192.00",Bramwell
Nottinghamshire County Council,1111/1001,Adult Social Care and Health,ASCH,Third Party Payments,EGA,04/08/2017,05-10299,"2,384.00",Braywood Gardens (Runwood)
Nottinghamshire County Council,1111/1001,Adult Social Care and Health,ASCH,Third Party Payments,EGA,04/08/2017,05-10300,"2,270.29",Bramwell
Nottinghamshire County Council,1111/1001,Adult Social Care and Health,ASCH,Third Party Payments,EGA,04/08/2017,05-10301,"2,192.00",Bramwell
Nottinghamshire County Council,1111/1001,Adult Social Care and Health,ASCH,Third Party Payments,EGA,04/08/2017,05-10302,"7,335.28",Beech Tree Hall
Nottinghamshire County Council,1111/1001,Adult Social Care and Health,ASCH,Third Party Payments,EGA,04/08/2017,05-10303,"2,192.00",Braywood Gardens (Runwood)
Nottinghamshire County Council,1111/1001,Adult Social Care and Health,ASCH,Third Party Payments,EGA,04/08/2017,05-10304,"5,227.20",Blair House (Craegmoor)
Nottinghamshire County Council,1111/1001,Adult Social Care and Health,ASCH,Third Party Payments,EGA,04/08/2017,05-10305,"2,297.36",Baily House
Nottinghamshire County Council,1111/1001,Adult Social Care and Health,ASCH,Third Party Payments,EGA,04/08/2017,05-10306,"2,192.00",Bramwell
Nottinghamshire County Council,1111/1001,Adult Social Care and Health,ASCH,Third Party Payments,EGA,04/08/2017,05-10307,"2,192.00",Bramwell
Nottinghamshire County Council,1111/1001,Adult Social Care and Health,ASCH,Third Party Payments,EGA,04/08/2017,05-10308,"2,464.00",Branthwaite Res Home (FBC)
Nottinghamshire County Council,1111/1001,Adult Social Care and Health,ASCH,Third Party Payments,EGA,04/08/2017,05-10309,"2,192.00",Bramwell
Nottinghamshire County Council,1111/1001,Adult Social Care and Health,ASCH,Third Party Payments,EGA,04/08/2017,05-10310,"2,076.00",The Beeches
Nottinghamshire County Council,1111/1001,Adult Social Care and Health,ASCH,Third Party Payments,EGA,04/08/2017,05-10311,"2,436.00",Broadgate Nursing Home
Nottinghamshire County Council,1111/1001,Adult Social Care and Health,ASCH,Third Party Payments,EGA,04/08/2017,05-10312,"1,916.00",Beeston Lodge Nursing Home
Nottinghamshire County Council,1111/1001,Adult Social Care and Health,ASCH,Third Party Payments,EGA,04/08/2017,05-10313,"2,192.00",Braywood Gardens (Runwood)
Nottinghamshire County Council,1111/1001,Adult Social Care and Health,ASCH,Third Party Payments,EGA,04/08/2017,05-10314,"2,228.00",Bramcote Hills Care Home
Nottinghamshire County Council,1111/1001,Adult Social Care and Health,ASCH,Third Party Payments,EGA,04/08/2017,05-10315,"3,060.00",Boughton Manor Nursing Homes (Craeg
Nottinghamshire County Council,1111/1001,Adult Social Care and Health,ASCH,Third Party Payments,EGA,04/08/2017,05-10316,"2,356.00",Broadgate Nursing Home
Nottinghamshire County Council,1111/1001,Adult Social Care and Health,ASCH,Third Party Payments,EGA,04/08/2017,05-10317,"2,128.00",Bramcote Hills Care Home
Nottinghamshire County Council,1111/1001,Adult Social Care and Health,ASCH,Third Party Payments,EGA,04/08/2017,05-10318,"2,076.00",The Beeches
Nottinghamshire County Council,1111/1001,Adult Social Care and Health,ASCH,Third Party Payments,EGA,04/08/2017,05-10319,"1,916.00",Beeston Lodge Nursing Home
Nottinghamshire County Council,1111/1001,Adult Social Care and Health,ASCH,Third Party Payments,EGA,04/08/2017,05-10320,"2,312.00",Baily House
Nottinghamshire County Council,1111/1001,Adult Social Care and Health,ASCH,Third Party Payments,EGA,04/08/2017,05-10321,"2,192.00",Bramwell
Nottinghamshire County Council,1111/1001,Adult Social Care and Health,ASCH,Third Party Payments,EGA,04/08/2017,05-10322,"2,192.00",Bramwell
Nottinghamshire County Council,1111/1001,Adult Social Care and Health,ASCH,Third Party Payments,EGA,04/08/2017,05-10323,"1,740.44",Beechdene Residential Home
Nottinghamshire County Council,1111/1001,Adult Social Care and Health,ASCH,Third Party Payments,EGA,04/08/2017,05-10324,"1,958.00",Beechdene Residential Home
Nottinghamshire County Council,1111/1001,Adult Social Care and Health,ASCH,Third Party Payments,EGA,04/08/2017,05-10325,"7,292.00",Bridle Lodge (Creative Care)
Nottinghamshire County Council,1111/1001,Adult Social Care and Health,ASCH,Third Party Payments,EGA,04/08/2017,05-10326,"2,464.00",Branthwaite Res Home (FBC)
Nottinghamshire County Council,1111/1001,Adult Social Care and Health,ASCH,Third Party Payments,EGA,04/08/2017,05-10327,"2,192.00",Bluebell Lodge
Nottinghamshire County Council,1111/1001,Adult Social Care and Health,ASCH,Third Party Payments,EGA,04/08/2017,05-10328,"2,076.00",The Beeches
Nottinghamshire County Council,1111/1001,Adult Social Care and Health,ASCH,Third Party Payments,EGA,04/08/2017,05-10329,"2,356.00",Broadgate Nursing Home
Nottinghamshire County Council,1111/1001,Adult Social Care and Health,ASCH,Third Party Payments,EGA,04/08/2017,05-10330,"2,192.00",Braywood Gardens (Runwood)
Nottinghamshire County Council,1111/1001,Adult Social Care and Health,ASCH,Third Party Payments,EGA,04/08/2017,05-10331,"4,392.00",Blyth Country House Care Home
Nottinghamshire County Council,1111/1001,Adult Social Care and Health,ASCH,Third Party Payments,EGA,04/08/2017,05-10332,"8,107.00",Broadoak Park Residential Home
Nottinghamshire County Council,1111/1001,Adult Social Care and Health,ASCH,Third Party Payments,EGA,04/08/2017,05-10333,"2,076.00",Brailsford House Care Home
Nottinghamshire County Council,1111/1001,Adult Social Care and Health,ASCH,Third Party Payments,EGA,04/08/2017,05-10334,"2,556.00",Bramcote Hills Care Home
Nottinghamshire County Council,1111/1001,Adult Social Care and Health,ASCH,Third Party Payments,EGA,04/08/2017,05-10335,"1,916.00",Beeston Lodge Nursing Home
Nottinghamshire County Council,1111/1001,Adult Social Care and Health,ASCH,Third Party Payments,EGA,04/08/2017,05-10336,"3,620.00",Belle Vue (Eastgate)
Nottinghamshire County Council,1111/1001,Adult Social Care and Health,ASCH,Third Party Payments,EGA,04/08/2017,05-10337,"2,192.00",Bramwell
Nottinghamshire County Council,1111/1001,Adult Social Care and Health,ASCH,Third Party Payments,EGA,04/08/2017,05-10338,"2,076.00",Broadlands Care Home
Nottinghamshire County Council,1111/1001,Adult Social Care and Health,ASCH,Third Party Payments,EGA,04/08/2017,05-10339,"2,076.00",Brailsford House Care Home
Nottinghamshire County Council,1111/1001,Adult Social Care and Health,ASCH,Third Party Payments,EGA,04/08/2017,05-10340,"2,076.00",Brailsford House Care Home
Nottinghamshire County Council,1111/1001,Adult Social Care and Health,ASCH,Third Party Payments,EGA,04/08/2017,05-10341,"2,192.00",Braywood Gardens (Runwood)
Nottinghamshire County Council,1111/1001,Adult Social Care and Health,ASCH,Third Party Payments,EGA,04/08/2017,05-10342,"4,156.84",Boughton Manor Nursing Homes (Craeg
Nottinghamshire County Council,1111/1001,Adult Social Care and Health,ASCH,Third Party Payments,EGA,04/08/2017,05-10343,"1,916.00",Beeston Lodge Nursing Home
Nottinghamshire County Council,1111/1001,Adult Social Care and Health,ASCH,Third Party Payments,EGA,04/08/2017,05-10344,"2,384.00",Braywood Gardens (Runwood)
Nottinghamshire County Council,1111/1001,Adult Social Care and Health,ASCH,Third Party Payments,EGA,04/08/2017,05-10345,"2,192.00",Bluebell Lodge
Nottinghamshire County Council,1111/1001,Adult Social Care and Health,ASCH,Third Party Payments,EGA,04/08/2017,05-10346,"2,464.00",Branthwaite Res Home (FBC)
Nottinghamshire County Council,1111/1001,Adult Social Care and Health,ASCH,Third Party Payments,EGA,04/08/2017,05-10347,"2,192.00",Bramwell
Nottinghamshire County Council,1111/1001,Adult Social Care and Health,ASCH,Third Party Payments,EGA,04/08/2017,05-10348,"2,384.00",Braywood Gardens (Runwood)
Nottinghamshire County Council,1111/1001,Adult Social Care and Health,ASCH,Third Party Payments,EGA,04/08/2017,05-10349,"1,740.44",Beechdene Residential Home
